{"text_format":"3","workbook":"xlsx","n_sheets":5,"sheets":["Information","People of Muirhead Street 1841","sort by country of birth","age of country of birth","sex of residents"],"read":"whole","date_system":"1900"}

{"sheet":"Information","index":0,"n_rows":48,"n_cols":1,"rows_kept":48}
["About 1841 England, Wales & Scotland Census"]
[]
["The amount of information listed varies, but the 1841 Census records usually include the following information:"]
[]
["First name"]
["Middle name"]
["Last name"]
["Sex"]
["Birth place"]
["Age"]
["Place of residence"]
["County"]
[]
["You can also search the 1841 census by address, which is ideal for tracing the history of your house or exploring the local history of an area."]
[]
["By noting how many households there were in a building and whether the household included servants or boarders or visitors, you can gain insight into the social circumstances of the family."]
[]
["As well as the above details, census returns may also include information that not only helps us to determine who our ancestors were, but that also tell us:"]
[]
["Where your ancestors were living"]
["Who they were living with"]
["What their occupations were"]
["If they had any servants"]
["Who their neighbours were"]
["If they had any brothers and sisters"]
["What their ages were at the time of the census"]
[]
["Discover more about the 1841 census"]
[]
["The 1841 census was the first modern census, when the first Registrar General of England and Wales was made responsible for organising the count."]
[]
["The census was taken on the night of 6 June 1841 and gave the total population as 18,553,124."]
[]
["The task of counting was passed to local officers of the newly created registration service. This is the earliest census that has survived in its entirety: few of the 1801, 1811, 1821 and 1831 censuses have survived the ravages of time."]
[]
["1841 was the first time that the head of each household was given a form to fill in on behalf of everyone in the dwelling on a set day. This system still forms the basis of the method used today."]
[]
["Of course, illiteracy was high in 1841, and anyone unable to read or write would have made use of an enumerator - a literate person who would be collecting the census forms - to help fill in the details. Because of this, however, you may note mistakes that were made, such as name spellings. It should also be noted that many people were often economical with the truth when it came to their ages."]
[]
["Note: In the 1841 Census there was also a policy of rounding down ages was in place. As such, people aged:"]
[]
["15-19 were recorded as 15"]
["20-24 were recorded as 20"]
["25-29 were recorded as 25"]
["30-34 were recorded as 30"]
["35-39 were recorded as 35...and so on"]
[]
["As well as giving us the above information, the fact that census returns are taken every ten years also allows us to track the movements of our ancestors through time as they perhaps move house, get married, have children or even change occupations."]

{"sheet":"People of Muirhead Street 1841","index":1,"n_rows":604,"n_cols":12,"rows_kept":604}
["My Index","Schedule","First name(s)","Last name","Sex","Age","Birth year","Birth place"]
[1,59,"John","Hamilton","Male",45,1796,"Scotland",null,null,{"$f":"COUNTIF(H2:H604,\"*Scotland*\")","v":374},{"$f":"COUNTIF(H2:H604,\"*Ireland*\")","v":115}]
[2,59,"George","Knox","Male",30,1811,"Lanarkshire, Scotland"]
[3,59,"William","Ingles","Male",35,1806,"Lanarkshire, Scotland"]
[4,59,"Alexander","Grieve","Male",40,1801,"Scotland"]
[5,59,"James","Buchanan","Male",35,1806,"Lanarkshire, Scotland"]
[6,59,"James","Davie","Male",35,1806,"Scotland"]
[7,null,"First name(s)","Last name","Sex","Age","Birth year","Birth place"]
[8,60,"Margaret","Leatch","Female",70,1771,"Lanarkshire, Scotland"]
[9,60,"Ann","Leatch","Female",25,1816,"Lanarkshire, Scotland"]
[10,60,"John","Leatch","Male",25,1816,"Lanarkshire, Scotland"]
[11,60,"John","McGregor","Male",3,1838,"Lanarkshire, Scotland"]
[12,null,"First name(s)","Last name","Sex","Age","Birth year","Birth place"]
[13,61,"William","White","Male",60,1781,"Lanarkshire, Scotland","Night watch"]
[14,null,"First name(s)","Last name","Sex","Age","Birth year","Birth place"]
[15,62,"Margaret","McLachlen","Female",75,1766,"Scotland"]
[16,62,"Jane","McLaghlen","Female",40,1801,"Scotland"]
[17,62,"Catherine","McLaghlen","Female",25,1816,"Lanarkshire, Scotland"]
[18,null,"First name(s)","Last name","Sex","Age","Birth year","Birth place"]
[19,63,"James","Spright","Male",20,1821,"Lanarkshire, Scotland"]
[20,63,"Colven","Woods","Male",30,1811,"Ireland"]
[21,null,"First name(s)","Last name","Sex","Age","Birth year","Birth place"]
[22,64,"First name(s)","Last name","Sex","Age","Birth year","Birth place"]
[23,64,"John","Dalgliesh","Male",25,1816,"Scotland"]
[24,64,"Ellen","Dalgliesh","Female",25,1816,"Scotland"]
[25,64,"Thomas","Dalgliesh","Male",0,1841,"Lanarkshire, Scotland"]
[26,64,"Mary","Allan","Female",9,1832,"Scotland"]
[27,null,"First name(s)","Last name","Sex","Age","Birth year","Birth place"]
[28,65,"First name(s)","Last name","Sex","Age","Birth year","Birth place"]
[29,65,"Mary","Marlay","Female",40,1801,"Ireland"]
[30,65,"Ann","Marlay","Female",14,1827,"Lanarkshire, Scotland"]
[31,65,"Bridget","Marlay","Female",12,1829,"Lanarkshire, Scotland"]
[32,65,"Mary","Marlay","Female",11,1830,"Lanarkshire, Scotland"]
[33,65,"Terressy","Marlay","Female",8,1833,"Lanarkshire, Scotland"]
[34,65,"Bridget","McAvoy","Female",28,1813,"Ireland"]
[35,65,"Sarah","McCallay","Female",20,1821,"Lanarkshire, Scotland"]
[36,null,"First name(s)","Last name","Sex","Age","Birth year","Birth place"]
[37,66,"Michael","Dollan","Male",35,1806,"Ireland"]
[38,66,"Sarah","Dollan","Female",35,1806,"Ireland"]
[39,66,"Mary","Dollan","Female",5,1836,"Ireland"]
[40,66,"Sarah","Dollan","Female",1,1840,"Lanarkshire, Scotland"]
[41,66,"Henry","Grieve","Male",30,1811,"Lanarkshire, Scotland"]
[42,66,"Isabella","Grieve","Female",20,1821,"Lanarkshire, Scotland"]
[43,66,"Patrick","McGowan","Male",40,1801,"Ireland"]
[44,66,"Mary","McGowan","Female",40,1801,"Ireland"]
[45,66,"Patrick","McGowan","Male",15,1826,"Lanarkshire, Scotland"]
[46,66,"Mary","McGowan","Female",5,1836,"Lanarkshire, Scotland"]
[47,66,"Widow","McDead","Female",75,1766,"Ireland"]
[48,66,"Mary","Alexander","Female",20,1821,"Lanarkshire, Scotland"]
[49,66,"Catherine","Dick","Female",40,1801,"Lanarkshire, Scotland"]
[50,66,"Jane","Dick","Female",5,1836,"Lanarkshire, Scotland"]
[51,66,"Mary","Dick","Female",1,1840,"Lanarkshire, Scotland"]
[52,null,"First name(s)","Last name","Sex","Age","Birth year","Birth place"]
[53,67,"Patrick","Hanna","Male",45,1796,"Ireland"]
[54,67,"-","Hanna","Female",45,1796,"Ireland"]
[55,67,"Mary","Hanna","Female",10,1831,"Scotland"]
[56,67,"Catherine","Boyle","Female",40,1801,"Lanarkshire, Scotland"]
[57,67,"William","Doherty","Male",35,1806,"Ireland"]
[58,67,"Thomas","White","Male",50,1791,"Scotland"]
[59,67,"Archibald","Thomson","Male",35,1806,"Scotland"]
[60,67,"Archibald","Thomson","Male",10,1831,"Scotland"]
[61,67,"James","Hilly","Male",30,1811,"Scotland"]
[62,67,"-","Hilly","Female",25,1816,"Ireland"]
[63,67,"James","Hilly","Male",3,1838,"Scotland"]
[64,67,"John","Green","Male",20,1821,"Ireland"]
[65,67,"John","Knox","Male",15,1826,"Scotland"]
[66,null,"First name(s)","Last name","Sex","Age","Birth year","Birth place"]
[67,68,"Robert","Gillies","Male",45,1796,"Ireland"]
[68,68,"Sarah","Gillies","Female",50,1791,"England"]
[69,68,"Archibald","Gillies","Male",20,1821,"Lanarkshire, Scotland"]
[70,68,"Margaret","Gillies","Female",15,1826,"Lanarkshire, Scotland"]
[71,68,"Thomas","Paterson","Male",20,1821,"Lanarkshire, Scotland"]
[72,null,"First name(s)","Last name","Sex","Age","Birth year","Birth place"]
[73,69,"Emellea","Dillan","Female",55,1786,"Ireland"]
[74,69,"James","Dowie","Male",40,1801,"Scotland"]
[75,69,"Janet","Dowie","Female",45,1796,"Scotland"]
[76,69,"Thomas","Short","Male",55,1786,"Ireland"]
[77,69,"Elizabeth","Short","Female",50,1791,"Ireland"]
[78,69,"James","McGowan","Male",25,1816,"Scotland"]
[79,69,"Thomas","McGowan","Male",1,1840,"Lanarkshire, Scotland"]
[80,69,"Elizabeth","McGowan","Female",20,1821,"Ireland"]
[81,69,"William","McKean","Male",45,1796,"Ireland"]
[82,69,"Janet","Stewart","Female",10,1831,"Scotland"]
[83,69,"Hamilton","Hay","Male",10,1831,"Lanarkshire, Scotland"]
[84,69,"Barbara","Ross","Female",20,1821,"Scotland"]
[85,69,"Agnes","McKean","Female",10,1831,"Scotland"]
[86,null,"First name(s)","Last name","Sex","Age","Birth year","Birth place"]
[87,70,"Hugh","Bagnell","Male",25,1816,"Lanarkshire, Scotland"]
[88,70,"Mary","Bagnell","Female",40,1801,"-"]
[89,70,"George","Bagnell","Male",5,1836,"Lanarkshire, Scotland"]
[90,70,"John","O'Bryan","Male",10,1831,"Lanarkshire, Scotland"]
[91,70,"Philip","O'Bryan","Male",10,1831,"Ireland"]
[92,70,"Penelopy","O'Bryan","Female",10,1831,"Lanarkshire, Scotland"]
[93,70,"Mary","O'Bryan","Female",5,1836,"Lanarkshire, Scotland"]
[94,70,"John","Orr","Male",25,1816,"Ireland"]
[95,70,"Margaret","Orr","Female",25,1816,"Ireland"]
[96,70,"James","Orr","Male",4,1837,"Ireland"]
[97,70,"Rob","Orr","Male",2,1839,"Ireland"]
[98,70,"Torrance","Horn","Male",60,1781,"Ireland"]
[99,70,"Cathern","Horn","Female",50,1791,"Ireland"]
[100,null,"First name(s)","Last name","Sex","Age","Birth year","Birth place"]
[101,71,"John","Dodds","Male",40,1801,"Lanarkshire, Scotland"]
[102,71,"Alexander","Crooks","Male",20,1821,"Scotland"]
[103,71,"William","Stewart","Male",15,1826,"Scotland"]
[104,71,"William","Anderson","Male",20,1821,"Scotland"]
[105,71,"William","Moffer","Male",20,1821,"Lanarkshire, Scotland"]
[106,71,"Alexander","Fraser","Male",15,1826,"Scotland"]
[107,71,"Angus","Fraser","Male",15,1826,"Scotland"]
[108,71,"John","Oswald","Male",20,1821,"Scotland"]
[109,71,"Jane","Murry","Female",30,1811,"Scotland"]
[110,71,"Agnes","Dalglish","Female",50,1791,"-"]
[111,null,"First name(s)","Last name","Sex","Age","Birth year","Birth place"]
[112,72,"Sarah","Dalrumple","Female",35,1806,"Ireland"]
[113,null,"First name(s)","Last name","Sex","Age","Birth year","Birth place"]
[114,73,"Hugh","Paterson","Male",35,1806,"Scotland"]
[115,73,"Margaret","Paterson","Female",35,1806,"Scotland"]
[116,73,"Jenat","Paterson","Female",10,1831,"Lanarkshire, Scotland"]
[117,73,"Margaret","Paterson","Female",7,1834,"Lanarkshire, Scotland"]
[118,73,"George","Paterson","Male",4,1837,"Lanarkshire, Scotland"]
[119,null,"First name(s)","Last name","Sex","Age","Birth year","Birth place"]
[120,74,"Thomas","McHail","Male",30,1811,"Ireland"]
[121,74,"Margaret","McGillion","Female",25,1816,"Ireland"]
[122,74,"Thomas","McHail","Male",0,1841,"Lanarkshire, Scotland"]
[123,null,"First name(s)","Last name","Sex","Age","Birth year","Birth place"]
[124,75,"David","Anderson","Male",25,1816,"Scotland"]
[125,75,"Janet","Anderson","Female",20,1821,"Lanarkshire, Scotland"]
[126,75,"Mary","Anderson","Female",1,1840,"Lanarkshire, Scotland"]
[127,75,"John","Henderson","Male",18,1823,"Lanarkshire, Scotland"]
[128,null,"First name(s)","Last name","Sex","Age","Birth year","Birth place"]
[129,76,"Collin","Campbell","Male",30,1811,"Scotland"]
[130,76,"Mary","Campbell","Female",20,1821,"Scotland"]
[131,76,"John","Walker","Male",30,1811,"Scotland"]
[132,76,"Margaret","Wallace","Female",25,1816,"Scotland"]
[133,76,"Robert","Wallace","Male",6,1835,"Scotland"]
[134,76,"Collin","Wallace","Male",0,1841,"Scotland"]
[135,76,"Martha","McNab","Female",20,1821,"Scotland"]
[136,null,"First name(s)","Last name","Sex","Age","Birth year","Birth place"]
[137,77,"Patrick","McCarn","Male",30,1811,"Ireland"]
[138,77,"Martha","McCarn","Female",30,1811,"Ireland"]
[139,77,"Biddy","McCarn","Female",15,1826,"Ireland"]
[140,77,"Margaret","McCarn","Female",10,1831,"Ireland"]
[141,77,"Patrick","McCarn","Male",5,1836,"Lanarkshire, Scotland"]
[142,77,"Catherine","McCarn","Female",5,1836,"Lanarkshire, Scotland"]
[143,77,"John","McCarn","Male",2,1839,"Lanarkshire, Scotland"]
[144,null,"First name(s)","Last name","Sex","Age","Birth year","Birth place"]
[145,78,"Peter","Docherty","Male",20,1821,"Ireland"]
[146,78,"Daniel","Sherkey","Male",45,1796,"Ireland"]
[147,78,"Elizabeth","Sherkey","Female",40,1801,"Ireland"]
[148,78,"Mary","Sherkey","Female",20,1821,"Ireland"]
[149,78,"Catherine","Sherkey","Female",13,1828,"Ireland"]
[150,78,"James","Sherkey","Male",15,1826,"Ireland"]
[151,78,"Hugh","Sherkey","Male",11,1830,"Ireland"]
[152,78,"Lowise","Sherkey","Female",9,1832,"Ireland"]
[153,78,"Michael","Sherkey","Female",6,1835,"Ireland"]
[154,78,"Rebecca","Maden","Female",55,1786,"Ireland"]
[155,78,"Rebecca","Maden","Female",15,1826,"Ireland"]
[156,78,"Patrick","Maden","Male",14,1827,"Ireland"]
[157,78,"Ellen","Hanna","Female",30,1811,"Ireland"]
[158,78,"Catherine","Kelly","Female",40,1801,"Ireland"]
[159,78,"John","Cunningham","Male",20,1821,"Ireland"]
[160,78,"Samuel","Cunningham","Male",15,1826,"Ireland"]
[161,78,"Mary","Frirsen","Female",20,1821,"Ireland"]
[162,78,"Thomas","Cunningham","Male",1,1840,"Lanarkshire, Scotland"]
[163,null,"First name(s)","Last name","Sex","Age","Birth year","Birth place"]
[164,79,"Alexander","Dobbie","Male",35,1806,"Scotland"]
[165,79,"Agnes","Dobbie","Female",45,1796,"Scotland"]
[166,79,"William","Dobbie","Male",15,1826,"Lanarkshire, Scotland"]
[167,79,"David","Dobbie","Male",13,1828,"Lanarkshire, Scotland"]
[168,79,"Alexander","Dobbie","Male",11,1830,"Lanarkshire, Scotland"]
[169,79,"James","Dobbie","Male",9,1832,"Lanarkshire, Scotland"]
[170,79,"Andrew","Dobbie","Male",7,1834,"Lanarkshire, Scotland"]
[171,79,"John","Algie","Male",20,1821,"Scotland"]
[172,null,"First name(s)","Last name","Sex","Age","Birth year","Birth place"]
[173,80,"John","McFarlane","Male",25,1816,"Scotland"]
[174,80,"Catherine","McFarlane","Female",30,1811,"Scotland"]
[175,80,"Catherine","McFarlane","Female",1,1840,"Lanarkshire, Scotland"]
[176,null,"First name(s)","Last name","Sex","Age","Birth year","Birth place"]
[177,81,"Jane","McGill","Female",40,1801,"Lanarkshire, Scotland"]
[178,81,"Jane","McGill","Female",15,1826,"Lanarkshire, Scotland"]
[179,81,"James","McGill","Male",15,1826,"Lanarkshire, Scotland"]
[180,81,"Hugh","McGill","Male",13,1828,"Lanarkshire, Scotland"]
[181,81,"William","McGill","Male",10,1831,"Lanarkshire, Scotland"]
[182,81,"George","McGill","Male",7,1834,"Lanarkshire, Scotland"]
[183,null,"First name(s)","Last name","Sex","Age","Birth year","Birth place"]
[184,82,"Alexander","Martain","Male",35,1806,"Scotland"]
[185,82,"Farquhar","Martain","Male",20,1821,"Scotland"]
[186,82,"Donald","Martain","Male",4,1837,"Scotland"]
[187,82,"Christian","Martain","Female",31,1810,"Scotland"]
[188,82,"Jessie","Morter","Female",1,1840,"Scotland"]
[189,82,"Margaret","Macinnis","Female",1,1840,"Scotland"]
[190,null,"First name(s)","Last name","Sex","Age","Birth year","Birth place"]
[191,83,"Crawford","Chalmers","Male",40,1801,"Scotland"]
[192,83,"Martha","Chalmers","Female",35,1806,"Scotland"]
[193,83,"David","Chalmers","Male",10,1831,"Lanarkshire, Scotland"]
[194,83,"Ann","Chalmers","Female",5,1836,"Lanarkshire, Scotland"]
[195,null,"First name(s)","Last name","Sex","Age","Birth year","Birth place"]
[196,84,"Peter","Shordan","Male",40,1801,"Ireland"]
[197,84,"Jane","Shordan","Female",20,1821,"Ireland"]
[198,84,"James","Murry","Male",30,1811,"Ireland"]
[199,84,"Barbara","Murry","Female",30,1811,"Ireland"]
[200,84,"Ellen","McDonald","Female",25,1816,"Scotland"]
[201,84,"John","McDonald","Male",2,1839,"Scotland"]
[202,null,"First name(s)","Last name","Sex","Age","Birth year","Birth place"]
[203,85,"Helen","O'Hara","Female",60,1781,"Ireland"]
[204,85,"Helen","O'Hara","Female",15,1826,"Lanarkshire, Scotland"]
[205,85,"Ann","O'Hara","Female",14,1827,"Lanarkshire, Scotland"]
[206,85,"Felix","O'Hara","Male",13,1828,"Lanarkshire, Scotland"]
[207,null,"First name(s)","Last name","Sex","Age","Birth year","Birth place"]
[208,86,"Robert","Mairs","Male",50,1791,"Ireland"]
[209,86,"Sarah","Mairs","Female",51,1790,"Ireland"]
[210,86,"David","Mairs","Male",26,1815,"Lanarkshire, Scotland"]
[211,86,"Sarah","Mairs","Female",18,1823,"Lanarkshire, Scotland"]
[212,86,"Margaret","Mairs","Female",15,1826,"Lanarkshire, Scotland"]
[213,86,"Letitia","Mairs","Female",10,1831,"Lanarkshire, Scotland"]
[214,86,"James","Mairs","Male",6,1835,"Lanarkshire, Scotland"]
[215,86,"Robert","Mairs","Male",4,1837,"Lanarkshire, Scotland"]
[216,86,"Peter","Mairs","Male",2,1839,"Lanarkshire, Scotland"]
[217,null,"First name(s)","Last name","Sex","Age","Birth year","Birth place"]
[218,87,"James","Brigs","Male",35,1806,"Ireland"]
[219,87,"Mary","Brigs","Female",35,1806,"Ireland"]
[220,87,"Margaret","Brigs","Female",10,1831,"Ireland"]
[221,87,"John","Brigs","Male",12,1829,"Ireland"]
[222,87,"Mary","Brigs","Female",7,1834,"Ireland"]
[223,87,"Catherine","Brigs","Female",5,1836,"Ireland"]
[224,87,"James","Brigs","Male",3,1838,"Ireland"]
[225,87,"Mary","McDonald","Female",20,1821,"Scotland"]
[226,null,"First name(s)","Last name","Sex","Age","Birth year","Birth place"]
[227,88,"Alexander","Cammeron","Male",30,1811,"Scotland"]
[228,88,"Dennis","Thompson","Male",31,1810,"Ireland"]
[229,88,"Susan","Kennedy","Female",25,1816,"Ireland"]
[230,88,"Ann","Kennedy","Female",20,1821,"Ireland"]
[231,88,"Bridget","Shiels","Female",80,1761,"Ireland"]
[232,88,"Hugh","McAllister","Male",13,1828,"Lanarkshire, Scotland"]
[233,null,"First name(s)","Last name","Sex","Age","Birth year","Birth place"]
[234,89,"Agnes","Feren","Female",40,1801,"Ireland"]
[235,89,"Charles","McMul","Male",14,1827,"Lanarkshire, Scotland","Mc Neil actually"]
[236,89,"John","McMul","Male",4,1837,"Lanarkshire, Scotland","Mc Neil actually"]
[237,null,"First name(s)","Last name","Sex","Age","Birth year","Birth place"]
[238,56,"Walter","Dougald","Male",30,1811,"Lanarkshire, Scotland"," 5 MUIRHEAD STREET"]
[239,56,"Sophia","Dougald","Female",27,1814,"Ireland"," 5 MUIRHEAD STREET"]
[240,56,"David","Dougald","Male",65,1776,"Scotland"," 5 MUIRHEAD STREET"]
[241,null,"First name(s)","Last name","Sex","Age","Birth year","Birth place"]
[242,57,"Terrence","McThaen","Male",25,1816,"Ireland"," 5 MUIRHEAD STREET"]
[243,57,"Ann","McThaen","Female",20,1821,"Ireland"," 5 MUIRHEAD STREET"]
[244,57,"James","McThaen","Male",0,1841,"Lanarkshire, Scotland"," 5 MUIRHEAD STREET"]
[245,null,"First name(s)","Last name","Sex","Age","Birth year","Birth place"]
[246,58,"Michael","Goodwin","Male",40,1801,"Ireland"," 5 MUIRHEAD STREET"]
[247,58,"Mary","Goodwin","Female",60,1781,"Ireland"," 5 MUIRHEAD STREET"]
[248,58,"Mary","Goodwin","Female",17,1824,"Scotland"," 5 MUIRHEAD STREET"]
[249,58,"Sarah","Goodwin","Female",13,1828,"Scotland"," 5 MUIRHEAD STREET"]
[250,58,"Francis","Mulqueen","Male",50,1791,"Ireland"," 5 MUIRHEAD STREET"]
[251,null,"First name(s)","Last name","Sex","Age","Birth year","Birth place"]
[252,59,"John","McNeel","Male",25,1816,"Scotland"," 5 MUIRHEAD STREET"]
[253,59,"Margaret","McNeel","Female",25,1816,"Scotland"," 5 MUIRHEAD STREET"]
[254,59,"Jennet","McNeel","Female",5,1836,"Scotland"," 5 MUIRHEAD STREET"]
[255,59,"Alexander","McNeel","Male",1,1840,"Lanarkshire, Scotland"," 5 MUIRHEAD STREET"]
[256,59,"Nk","-","Male",0,1841,"Lanarkshire, Scotland"," 5 MUIRHEAD STREET"]
[257,null,"First name(s)","Last name","Sex","Age","Birth year","Birth place"]
[258,60,"John","Manson","Male",24,1817,"Lanarkshire, Scotland"," 5 MUIRHEAD STREET"]
[259,60,"Manrien","Manson","Female",24,1817,"Lanarkshire, Scotland"," 5 MUIRHEAD STREET"]
[260,60,"Agness","Manson","Female",4,1837,"Lanarkshire, Scotland"," 5 MUIRHEAD STREET"]
[261,60,"Robert","Manson","Male",2,1839,"Lanarkshire, Scotland"," 5 MUIRHEAD STREET"]
[262,60,"Jean","Simpson","Female",20,1821,"-"," 5 MUIRHEAD STREET"]
[263,null,"First name(s)","Last name","Sex","Age","Birth year","Birth place"]
[264,61,"Andrew","Carter","Male",34,1807,"Scotland"," 5 MUIRHEAD STREET"]
[265,61,"Margaret","Carter","Female",30,1811,"Lanarkshire, Scotland"," 5 MUIRHEAD STREET"]
[266,61,"Andrew","Carter","Male","-","-","Lanarkshire, Scotland"," 5 MUIRHEAD STREET"]
[267,61,"Isabell","Carter","Female",9,1832,"Lanarkshire, Scotland"," 5 MUIRHEAD STREET"]
[268,null,"First name(s)","Last name","Sex","Age","Birth year","Birth place"]
[269,62,"John","Sumpson","Male",34,1807,"Lanarkshire, Scotland"," 5 MUIRHEAD STREET"]
[270,62,"Isabella","Sumpson","Female",30,1811,"Lanarkshire, Scotland"," 5 MUIRHEAD STREET"]
[271,null,"First name(s)","Last name","Sex","Age","Birth year","Birth place"]
[272,63,"Robert","Scouler","Male",25,1816,"Lanarkshire, Scotland"," 5 MUIRHEAD STREET"]
[273,63,"Mary","Scouler","Female",22,1819,"Scotland"," 5 MUIRHEAD STREET"]
[274,null,"First name(s)","Last name","Sex","Age","Birth year","Birth place"]
[275,64,"John","Spencer","Male",30,1811,"England"," 5 MUIRHEAD STREET"]
[276,64,"Marrion","Spencer","Female",30,1811,"England"," 5 MUIRHEAD STREET"]
[277,64,"Thomas","Spencer","Male",6,1835,"England"," 5 MUIRHEAD STREET"]
[278,null,"First name(s)","Last name","Sex","Age","Birth year","Birth place"]
[279,65,"Mathew","Henry","Male",28,1813,"Lanarkshire, Scotland"," 5 MUIRHEAD STREET"]
[280,65,"Agness","Henry","Female",29,1812,"Ireland"," 5 MUIRHEAD STREET"]
[281,65,"George","Henry","Male",9,1832,"Lanarkshire, Scotland"," 5 MUIRHEAD STREET"]
[282,65,"Samuel","Henry","Male",7,1834,"Lanarkshire, Scotland"," 5 MUIRHEAD STREET"]
[283,65,"Elizabeth","Henry","Female",5,1836,"Lanarkshire, Scotland"," 5 MUIRHEAD STREET"]
[284,null,"First name(s)","Last name","Sex","Age","Birth year","Birth place"]
[285,66,"Isabella","Freil","Female",45,1796,"Ireland"," 5 MUIRHEAD STREET"]
[286,66,"Susey","Freil","Female",25,1816,"Ireland"," 5 MUIRHEAD STREET"]
[287,66,"Bridget","Freil","Female",20,1821,"Ireland"," 5 MUIRHEAD STREET"]
[288,66,"Rosanah","Freil","Female",18,1823,"Lanarkshire, Scotland"," 5 MUIRHEAD STREET"]
[289,66,"Isabella","Freil","Female",15,1826,"Lanarkshire, Scotland"," 5 MUIRHEAD STREET"]
[290,null,"First name(s)","Last name","Sex","Age","Birth year","Birth place"]
[291,67,"Robert","Turnbull","Male",34,1807,"Scotland"," 5 MUIRHEAD STREET"]
[292,67,"Catherine","Turnbull","Female",28,1813,"Scotland"," 5 MUIRHEAD STREET"]
[293,67,"Robert","Turnbull","Male",12,1829,"Scotland"," 5 MUIRHEAD STREET"]
[294,67,"Elizabeth","Turnbull","Female",1,1840,"Scotland"," 5 MUIRHEAD STREET"]
[295,null,"First name(s)","Last name","Sex","Age","Birth year","Birth place"]
[296,68,"James","Anderson","Male",40,1801,"Scotland"," 5 MUIRHEAD STREET"]
[297,68,"Elizabeth","Anderson","Female",40,1801,"Lanarkshire, Scotland"," 5 MUIRHEAD STREET"]
[298,68,"William","Anderson","Male",15,1826,"Lanarkshire, Scotland"," 5 MUIRHEAD STREET"]
[299,68,"James","Muir","Male",13,1828,"Lanarkshire, Scotland"," 5 MUIRHEAD STREET"]
[300,68,"Racheal","Muir","Female",7,1834,"Lanarkshire, Scotland"," 5 MUIRHEAD STREET"]
[301,68,"Margaret","Rankin","Female",30,1811,"Lanarkshire, Scotland"," 5 MUIRHEAD STREET"]
[302,null,"First name(s)","Last name","Sex","Age","Birth year","Birth place"]
[303,69,"Henry","Gardner","Male",29,1812,"Scotland"," 5 MUIRHEAD STREET"]
[304,69,"Jean","Gardner","Female",30,1811,"Scotland"," 5 MUIRHEAD STREET"]
[305,69,"Christina","Gardner","Female",1,1840,"Lanarkshire, Scotland"," 5 MUIRHEAD STREET"]
[306,null,"First name(s)","Last name","Sex","Age","Birth year","Birth place"]
[307,70,"Charles","Dorrache","Male",37,1804,"Lanarkshire, Scotland"," 5 MUIRHEAD STREET"]
[308,70,"Janet","Dorrache","Female",30,1811,"Lanarkshire, Scotland"," 5 MUIRHEAD STREET"]
[309,70,"Charles","Dorrache","Male",15,1826,"Lanarkshire, Scotland"," 5 MUIRHEAD STREET"]
[310,70,"David","Dorrache","Male",12,1829,"Lanarkshire, Scotland"," 5 MUIRHEAD STREET"]
[311,70,"Neil","Dorrache","Male",3,1838,"Lanarkshire, Scotland"," 5 MUIRHEAD STREET"]
[312,null,"First name(s)","Last name","Sex","Age","Birth year","Birth place"]
[313,71,"Robert","Brodie","Male",56,1785,"Lanarkshire, Scotland"," 5 MUIRHEAD STREET"]
[314,71,"Isabella","Brodie","Female",38,1803,"Lanarkshire, Scotland"," 5 MUIRHEAD STREET"]
[315,71,"Margaret","Brodie","Female",4,1837,"Lanarkshire, Scotland"," 5 MUIRHEAD STREET"]
[316,71,"Christinia","Brodie","Female",0,1841,"Lanarkshire, Scotland"," 5 MUIRHEAD STREET"]
[317,71,"Mary","Stewart","Female",40,1801,"Scotland"," 5 MUIRHEAD STREET"]
[318,null,"First name(s)","Last name","Sex","Age","Birth year","Birth place"]
[319,72,"Robert","Johnston","Male",20,1821,"Lanarkshire, Scotland"," 5 MUIRHEAD STREET"]
[320,72,"Jean","Johnston","Female",15,1826,"Lanarkshire, Scotland"," 5 MUIRHEAD STREET"]
[321,72,"Margaret","Taylor","Female",20,1821,"Lanarkshire, Scotland"," 5 MUIRHEAD STREET"]
[322,72,"Margaret","Naught","Female",1,1840,"Lanarkshire, Scotland"," 5 MUIRHEAD STREET"]
[323,null,"First name(s)","Last name","Sex","Age","Birth year","Birth place"]
[324,73,"Mathew","King","Male",30,1811,"Lanarkshire, Scotland"," 5 MUIRHEAD STREET"]
[325,73,"Christiana","King Sr","Female",30,1811,"Lanarkshire, Scotland"," 5 MUIRHEAD STREET"]
[326,73,"Mary","Smith","Female",8,1833,"Lanarkshire, Scotland"," 5 MUIRHEAD STREET"]
[327,null,"First name(s)","Last name","Sex","Age","Birth year","Birth place"]
[328,74,"Charles","Durrah","Male",82,1759,"Ireland"," 5 MUIRHEAD STREET"]
[329,74,"Agness","Durrah","Female",62,1779,"Lanarkshire, Scotland"," 5 MUIRHEAD STREET"]
[330,null,"First name(s)","Last name","Sex","Age","Birth year","Birth place"]
[331,75,"Robert","Steven","Male",49,1792,"Scotland"," 5 MUIRHEAD STREET"]
[332,75,"Helen","Steven","Female",45,1796,"Scotland"," 5 MUIRHEAD STREET"]
[333,75,"Thomas","Steven","Male",17,1824,"Lanarkshire, Scotland"," 5 MUIRHEAD STREET"]
[334,75,"Robert","Steven","Male",13,1828,"Lanarkshire, Scotland"," 5 MUIRHEAD STREET"]
[335,75,"John","Steven","Male",9,1832,"Lanarkshire, Scotland"," 5 MUIRHEAD STREET"]
[336,75,"James","Steven","Male",7,1834,"Lanarkshire, Scotland"," 5 MUIRHEAD STREET"]
[337,null,"First name(s)","Last name","Sex","Age","Birth year","Birth place"]
[338,76,"Robert","Campble","Male",50,1791,"Scotland"," 5 MUIRHEAD STREET"]
[339,76,"Christiana","Campble","Female",25,1816,"Scotland"," 5 MUIRHEAD STREET"]
[340,76,"Catherine","Campble","Female",5,1836,"Scotland"," 5 MUIRHEAD STREET"]
[341,76,"James","Campble","Male",3,1838,"Scotland"," 5 MUIRHEAD STREET"]
[342,76,"Jennet","Campble","Female",0,1841,"Lanarkshire, Scotland"," 5 MUIRHEAD STREET"]
[343,76,"James","Clark","Male",23,1818,"England"," 5 MUIRHEAD STREET"]
[344,76,"Mary","McDonald","Female",18,1823,"Scotland"," 5 MUIRHEAD STREET"]
[345,76,"Peter","Brodie","Male",20,1821,"Ireland"," 5 MUIRHEAD STREET"]
[346,null,"First name(s)","Last name","Sex","Age","Birth year","Birth place"]
[347,77,"Andrew","Mitchell","Male",35,1806,"Scotland"," 5 MUIRHEAD STREET"]
[348,77,"Elezibeth","Mitchell","Female",34,1807,"Scotland"," 5 MUIRHEAD STREET"]
[349,77,"John","Mitchell","Male",10,1831,"Scotland"," 5 MUIRHEAD STREET"]
[350,77,"Elezibeth","Mitchell","Female",9,1832,"Lanarkshire, Scotland"," 5 MUIRHEAD STREET"]
[351,null,"First name(s)","Last name","Sex","Age","Birth year","Birth place"]
[352,78,"Gilbert","Cowan","Male",27,1814,"Lanarkshire, Scotland"," 5 MUIRHEAD STREET"]
[353,78,"Elizabeth","Cowan","Female",24,1817,"England"," 5 MUIRHEAD STREET"]
[354,78,"James","Cowan","Male",0,1841,"Lanarkshire, Scotland"," 5 MUIRHEAD STREET"]
[355,78,"Mary","Cowan","Female",70,1771,"Lanarkshire, Scotland"," 5 MUIRHEAD STREET"]
[356,null,"First name(s)","Last name","Sex","Age","Birth year","Birth place"]
[357,79,"Mary","Turner","Female",45,1796,"Scotland"," 5 MUIRHEAD STREET"]
[358,79,"Alexander","Turner","Male",25,1816,"Scotland"," 5 MUIRHEAD STREET"]
[359,79,"Agnes","Turner","Female",20,1821,"-"," 5 MUIRHEAD STREET"]
[360,null,"First name(s)","Last name","Sex","Age","Birth year","Birth place"]
[361,80,"William","Brekenride","Male",74,1767,"Lanarkshire, Scotland"," 5 MUIRHEAD STREET"]
[362,80,"Lillias","Brekenride","Female",73,1768,"Lanarkshire, Scotland"," 5 MUIRHEAD STREET"]
[363,null,"First name(s)","Last name","Sex","Age","Birth year","Birth place"]
[364,81,"William","Brekenride","Male",30,1811,"Lanarkshire, Scotland"," 5 MUIRHEAD STREET"]
[365,81,"Margaret","Brekenride","Female",30,1811,"Scotland"," 5 MUIRHEAD STREET"]
[366,81,"James","Lawrie","Male",20,1821,"Lanarkshire, Scotland"," 5 MUIRHEAD STREET"]
[367,81,"Agness","Lawrie","Female",20,1821,"Lanarkshire, Scotland"," 5 MUIRHEAD STREET"]
[368,81,"Alexander","Lawrie","Male",0,1841,"Lanarkshire, Scotland"," 5 MUIRHEAD STREET"]
[369,81,"Helen","Miller","Female",25,1816,"Lanarkshire, Scotland"," 5 MUIRHEAD STREET"]
[370,null,"First name(s)","Last name","Sex","Age","Birth year","Birth place"]
[371,82,"James","Roberton","Male",45,1796,"Scotland"," 5 MUIRHEAD STREET"]
[372,82,"Isabella","Roberton","Female",45,1796,"Scotland"," 5 MUIRHEAD STREET"]
[373,82,"Jean","Roberton","Female",20,1821,"Scotland"," 5 MUIRHEAD STREET"]
[374,82,"Isabella","Roberton","Female",15,1826,"Scotland"," 5 MUIRHEAD STREET"]
[375,82,"Johnston","Roberton","Male",13,1828,"Scotland"," 5 MUIRHEAD STREET"]
[376,82,"Mary","Roberton","Female",9,1832,"Lanarkshire, Scotland"," 5 MUIRHEAD STREET"]
[377,82,"James","Roberton","Male",5,1836,"Lanarkshire, Scotland"," 5 MUIRHEAD STREET"]
[378,82,"Helen","Roberton","Female",13,1828,"-"," 5 MUIRHEAD STREET"]
[379,82,"John","Chisholm","Male",20,1821,"England"," 5 MUIRHEAD STREET"]
[380,82,"John","Ensing","Male",58,1783,"Scotland"," 5 MUIRHEAD STREET"]
[381,82,"James","Coupeer","Male",31,1810,"Lanarkshire, Scotland"," 5 MUIRHEAD STREET"]
[382,82,"Jennet","Coupeer","Female",28,1813,"Scotland"," 5 MUIRHEAD STREET"]
[383,82,"Jennet","Coupeer","Female",3,1838,"Lanarkshire, Scotland"," 5 MUIRHEAD STREET"]
[384,null,"First name(s)","Last name","Sex","Age","Birth year","Birth place"]
[385,83,"Catherine","McLachlan","Female",46,1795,"Scotland"," 5 MUIRHEAD STREET"]
[386,83,"Andrew","McLachlan","Male",21,1820,"Lanarkshire, Scotland"," 5 MUIRHEAD STREET"]
[387,null,"First name(s)","Last name","Sex","Age","Birth year","Birth place"]
[388,84,"Andrew","Bruce","Male",56,1785,"Scotland"," 5 MUIRHEAD STREET"]
[389,84,"William","Bruce","Male",33,1808,"Scotland"," 5 MUIRHEAD STREET"]
[390,84,"Agness","Bruce","Female",24,1817,"Scotland"," 5 MUIRHEAD STREET"]
[391,84,"Charles","Bruce","Male",22,1819,"Scotland"," 5 MUIRHEAD STREET"]
[392,84,"James","Bruce","Male",20,1821,"Scotland"," 5 MUIRHEAD STREET"]
[393,84,"Peter","Bruce","Male",16,1825,"Scotland"," 5 MUIRHEAD STREET"]
[394,84,"Henry","Bruce","Male",14,1827,"Scotland"," 5 MUIRHEAD STREET"]
[395,null,"First name(s)","Last name","Sex","Age","Birth year","Birth place"]
[396,85,"Andrew","Eddie","Male",60,1781,"Lanarkshire, Scotland"," 5 MUIRHEAD STREET"]
[397,85,"Elizebith","Eddie","Female",60,1781,"Scotland"," 5 MUIRHEAD STREET"]
[398,85,"John","Eddie","Male",25,1816,"Lanarkshire, Scotland"," 5 MUIRHEAD STREET"]
[399,85,"James","Eddie","Male",15,1826,"Lanarkshire, Scotland"," 5 MUIRHEAD STREET"]
[400,null,"First name(s)","Last name","Sex","Age","Birth year","Birth place"]
[401,86,"Archibald","McAustin","Male",35,1806,"Scotland"," 5 MUIRHEAD STREET"]
[402,86,"Jean","McAustin","Female",30,1811,"Lanarkshire, Scotland"," 5 MUIRHEAD STREET"]
[403,86,"Archibald","McAustin","Male",9,1832,"Lanarkshire, Scotland"," 5 MUIRHEAD STREET"]
[404,86,"Mary","McAustin","Female",5,1836,"Lanarkshire, Scotland"," 5 MUIRHEAD STREET"]
[405,86,"Margaret","McAustin","Female",3,1838,"Lanarkshire, Scotland"," 5 MUIRHEAD STREET"]
[406,86,"Mary","Campbell","Female",45,1796,"Scotland"," 5 MUIRHEAD STREET"]
[407,null,"First name(s)","Last name","Sex","Age","Birth year","Birth place"]
[408,55,"Jennet","McIlneher","Female",38,1803,"Scotland","7 MUIRHEAD STREET"]
[409,55,"James","McIlneher","Male",15,1826,"Lanarkshire, Scotland","7 MUIRHEAD STREET"]
[410,55,"Margaret","McIlneher","Female",13,1828,"Lanarkshire, Scotland","7 MUIRHEAD STREET"]
[411,55,"Jennet","McIlneher","Female",8,1833,"Lanarkshire, Scotland","7 MUIRHEAD STREET"]
[412,55,"Mary","McIlneher","Female",6,1835,"Lanarkshire, Scotland","7 MUIRHEAD STREET"]
[413,55,"William","McIlneher","Male",4,1837,"Lanarkshire, Scotland","7 MUIRHEAD STREET"]
[414,null,"First name(s)","Last name","Sex","Age","Birth year","Birth place"]
[415,54,"James","Parcel","Male",26,1815,"Lanarkshire, Scotland","9 MUIRHEAD STREET"]
[416,54,"Martha","Parcel","Female",30,1811,"Scotland","9 MUIRHEAD STREET"]
[417,54,"Martha","Parcel","Female",19,1822,"Lanarkshire, Scotland","9 MUIRHEAD STREET"]
[418,54,"Marian","Parcel","Female",7,1834,"Lanarkshire, Scotland","9 MUIRHEAD STREET"]
[419,54,"Euphemia","Parcel","Female",3,1838,"Lanarkshire, Scotland","9 MUIRHEAD STREET"]
[420,54,"Jean","Parcel","Female",0,1841,"Lanarkshire, Scotland","9 MUIRHEAD STREET"]
[421,54,"Jean","Anderson","Female",20,1821,"-","9 MUIRHEAD STREET"]
[422,null,"First name(s)","Last name","Sex","Age","Birth year","Birth place"]
[423,97,"James","Coats","Male",35,1806,"Lanarkshire, Scotland","13 MUIRHEAD STREET"]
[424,97,"Jennet","Coats","Female",20,1821,"Lanarkshire, Scotland","13 MUIRHEAD STREET"]
[425,97,"Mary","Muir","Female",20,1821,"Lanarkshire, Scotland","13 MUIRHEAD STREET"]
[426,null,"First name(s)","Last name","Sex","Age","Birth year","Birth place"]
[427,44,"Finlay","Stalker","Male",40,1801,"Scotland","19 MUIRHEAD STREET"]
[428,44,"Margaret","Stalker","Female",35,1806,"Scotland","19 MUIRHEAD STREET"]
[429,44,"Isabela","Stalker","Female",12,1829,"Lanarkshire, Scotland","19 MUIRHEAD STREET"]
[430,44,"John","Stalker","Male",3,1838,"Lanarkshire, Scotland","19 MUIRHEAD STREET"]
[431,44,"Tinlay","Stalker","Male",0,1841,"Lanarkshire, Scotland","19 MUIRHEAD STREET"]
[432,null,"First name(s)","Last name","Sex","Age","Birth year","Birth place"]
[433,45,"John","Ramsay","Male",54,1787,"Scotland","19 MUIRHEAD STREET"]
[434,45,"Thomas","Jaffray","Male",6,1835,"Lanarkshire, Scotland","19 MUIRHEAD STREET"]
[435,null,"First name(s)","Last name","Sex","Age","Birth year","Birth place"]
[436,46,"Walter","Laird","Male",30,1811,"Scotland","19 MUIRHEAD STREET"]
[437,46,"John","Laird","Male",6,1835,"Lanarkshire, Scotland","19 MUIRHEAD STREET"]
[438,46,"Ann","Laird","Female",4,1837,"Lanarkshire, Scotland","19 MUIRHEAD STREET"]
[439,46,"Joseph","Laird","Male",3,1838,"Lanarkshire, Scotland","19 MUIRHEAD STREET"]
[440,46,"Janet","Laird","Female",65,1776,"Scotland","19 MUIRHEAD STREET"]
[441,null,"First name(s)","Last name","Sex","Age","Birth year","Birth place"]
[442,47,"Mary","Cameron","Female",50,1791,"Lanarkshire, Scotland","19 MUIRHEAD STREET"]
[443,47,"Margaret","Cameron","Female",20,1821,"Lanarkshire, Scotland","19 MUIRHEAD STREET"]
[444,null,"First name(s)","Last name","Sex","Age","Birth year","Birth place"]
[445,48,"Jean","Cameron","Female",19,1822,"Lanarkshire, Scotland","19 MUIRHEAD STREET"]
[446,48,"Marian","Barclay","Female",20,1821,"Lanarkshire, Scotland","19 MUIRHEAD STREET"]
[447,48,"Margaret","Barclay","Female",18,1823,"-","19 MUIRHEAD STREET"]
[448,48,"M Wm","Barclay","Male",14,1827,"Scotland","19 MUIRHEAD STREET"]
[449,null,"First name(s)","Last name","Sex","Age","Birth year","Birth place"]
[450,49,"David","Henderson","Male",30,1811,"Scotland","19 MUIRHEAD STREET"]
[451,49,"Elizabeth","Henderson","Female",25,1816,"Scotland","19 MUIRHEAD STREET"]
[452,null,"First name(s)","Last name","Sex","Age","Birth year","Birth place"]
[453,50,"James","Henderson","Male",0,1841,"Lanarkshire, Scotland","19 MUIRHEAD STREET"]
[454,50,"Agness","Agnew","Female",12,1829,"Lanarkshire, Scotland","19 MUIRHEAD STREET"]
[455,50,"Hendry","Muir","Male",31,1810,"Ireland","19 MUIRHEAD STREET"]
[456,50,"Mary","Muir","Female",36,1805,"Ireland","19 MUIRHEAD STREET"]
[457,50,"Jean","Muir","Female",5,1836,"Ireland","19 MUIRHEAD STREET"]
[458,null,"First name(s)","Last name","Sex","Age","Birth year","Birth place"]
[459,51,"James","Finlater","Male",50,1791,"Lanarkshire, Scotland","19 MUIRHEAD STREET"]
[460,51,"Ann","Finlater","Female",50,1791,"Lanarkshire, Scotland","19 MUIRHEAD STREET"]
[461,null,"First name(s)","Last name","Sex","Age","Birth year","Birth place"]
[462,52,"James","Little","Male",46,1795,"England","19 MUIRHEAD STREET"]
[463,52,"James","Little","Male",17,1824,"Lanarkshire, Scotland","19 MUIRHEAD STREET"]
[464,52,"Robert","Little","Male",13,1828,"Lanarkshire, Scotland","19 MUIRHEAD STREET"]
[465,52,"Mary","Little","Female",11,1830,"Lanarkshire, Scotland","19 MUIRHEAD STREET"]
[466,null,"First name(s)","Last name","Sex","Age","Birth year","Birth place"]
[467,53,"Alexander","Little","Male",7,1834,"Lanarkshire, Scotland","19 MUIRHEAD STREET"]
[468,53,"John","Muir","Male",25,1816,"Ireland","19 MUIRHEAD STREET"]
[469,53,"Elizabeth","Muir","Female",25,1816,"England","19 MUIRHEAD STREET"]
[470,53,"John","Muir","Male",1,1840,"Lanarkshire, Scotland","19 MUIRHEAD STREET"]
[471,53,"Robert","Muir","Male",46,1795,"Ireland","19 MUIRHEAD STREET"]
[472,53,"Allan","Scott","Male",35,1806,"Lanarkshire, Scotland","19 MUIRHEAD STREET"]
[473,53,"William","Scott","Male",15,1826,"Lanarkshire, Scotland","19 MUIRHEAD STREET"]
[474,53,"Archabilad","Scott","Male",14,1827,"Lanarkshire, Scotland","19 MUIRHEAD STREET"]
[475,53,"Allan","Scott","Male",10,1831,"Lanarkshire, Scotland","19 MUIRHEAD STREET"]
[476,53,"Isabella","Scott","Female",5,1836,"Lanarkshire, Scotland","19 MUIRHEAD STREET"]
[477,53,"Jean","Scott","Female",4,1837,"Lanarkshire, Scotland","19 MUIRHEAD STREET"]
[478,null,"First name(s)","Last name","Sex","Age","Birth year","Birth place"]
[479,39,"James","McIntyre","Male",30,1811,"Lanarkshire, Scotland","21 MUIRHEAD STREET"]
[480,39,"Isabella","McIntyre","Female",25,1816,"Lanarkshire, Scotland","21 MUIRHEAD STREET"]
[481,39,"Isabella","McIntyre","Female",5,1836,"Lanarkshire, Scotland","21 MUIRHEAD STREET"]
[482,39,"James","McIntyre","Male",3,1838,"Lanarkshire, Scotland","21 MUIRHEAD STREET"]
[483,39,"Christiane","McIntyre","Female",1,1840,"Lanarkshire, Scotland","21 MUIRHEAD STREET"]
[484,39,"Jean","Shaw","Female",40,1801,"Lanarkshire, Scotland","21 MUIRHEAD STREET"]
[485,39,"Neil","Shaw","Male",15,1826,"Lanarkshire, Scotland","21 MUIRHEAD STREET"]
[486,39,"James","Shaw","Male",14,1827,"Lanarkshire, Scotland","21 MUIRHEAD STREET"]
[487,39,"Jean","Shaw","Female",10,1831,"Lanarkshire, Scotland","21 MUIRHEAD STREET"]
[488,null,"First name(s)","Last name","Sex","Age","Birth year","Birth place"]
[489,40,"George","Henderson","Male",35,1806,"Scotland","21 MUIRHEAD STREET"]
[490,40,"Jean","Henderson","Female",30,1811,"Scotland","21 MUIRHEAD STREET"]
[491,40,"George","Henderson","Male",9,1832,"Lanarkshire, Scotland","21 MUIRHEAD STREET"]
[492,40,"Jennet","Henderson","Female",5,1836,"Lanarkshire, Scotland","21 MUIRHEAD STREET"]
[493,40,"Alex","Chinies","Male",25,1816,"Scotland","21 MUIRHEAD STREET"]
[494,40,"James","Leviston","Male",28,1813,"Scotland","21 MUIRHEAD STREET"]
[495,40,"John","Wright","Male",19,1822,"Scotland","21 MUIRHEAD STREET"]
[496,null,"First name(s)","Last name","Sex","Age","Birth year","Birth place"]
[497,41,"Daniel","McGregor","Male",56,1785,"Lanarkshire, Scotland","21 MUIRHEAD STREET"]
[498,41,"Susan","McGregor","Female",40,1801,"Lanarkshire, Scotland","21 MUIRHEAD STREET"]
[499,41,"Janet","McGregor","Female",45,1796,"Lanarkshire, Scotland","21 MUIRHEAD STREET"]
[500,null,"First name(s)","Last name","Sex","Age","Birth year","Birth place"]
[501,42,"Peter","McNaught","Male",61,1780,"Scotland","21 MUIRHEAD STREET"]
[502,42,"Ellison","McNaught","Female",65,1776,"Scotland","21 MUIRHEAD STREET"]
[503,42,"Archibald","Wilson","Male",35,1806,"-","21 MUIRHEAD STREET"]
[504,42,"Jonas","Wilson","Female",50,1791,"England","21 MUIRHEAD STREET"]
[505,null,"First name(s)","Last name","Sex","Age","Birth year","Birth place"]
[506,43,"William","Stevenson","Male",36,1805,"Lanarkshire, Scotland","21 MUIRHEAD STREET"]
[507,43,"Helen","Stevenson","Female",30,1811,"Lanarkshire, Scotland","21 MUIRHEAD STREET"]
[508,null,"First name(s)","Last name","Sex","Age","Birth year","Birth place"]
[509,26,"Charles","Kerr","Male",25,1816,"Ireland","25 MUIRHEAD STREET"]
[510,26,"Sally","Kerr","Female",25,1816,"Ireland","25 MUIRHEAD STREET"]
[511,26,"Mary","Kerr","Female",7,1834,"Lanarkshire, Scotland","25 MUIRHEAD STREET"]
[512,26,"Charles","Kerr","Male",2,1839,"Lanarkshire, Scotland","25 MUIRHEAD STREET"]
[513,26,"Agness","Mardy","Female",30,1811,"Lanarkshire, Scotland","25 MUIRHEAD STREET"]
[514,26,"Jennet","Adams","Female",50,1791,"Ireland","25 MUIRHEAD STREET"]
[515,null,"First name(s)","Last name","Sex","Age","Birth year","Birth place"]
[516,27,"John","Carmicheal","Male",40,1801,"Lanarkshire, Scotland","25 MUIRHEAD STREET"]
[517,27,"Helen","Carmicheal","Female",40,1801,"Lanarkshire, Scotland","25 MUIRHEAD STREET"]
[518,27,"Agness","Carmicheal","Female",15,1826,"Lanarkshire, Scotland","25 MUIRHEAD STREET"]
[519,27,"Margaret","Carmicheal","Female",13,1828,"Lanarkshire, Scotland","25 MUIRHEAD STREET"]
[520,null,"First name(s)","Last name","Sex","Age","Birth year","Birth place"]
[521,28,"Peter","Crossan","Male",34,1807,"Ireland","25 MUIRHEAD STREET"]
[522,28,"Ann","Crossan","Female",38,1803,"Ireland","25 MUIRHEAD STREET"]
[523,28,"Peter","Crossan","Male",16,1825,"Lanarkshire, Scotland","25 MUIRHEAD STREET"]
[524,28,"Catherine","Crossan","Female",10,1831,"Lanarkshire, Scotland","25 MUIRHEAD STREET"]
[525,28,"Agness","Crossan","Female",4,1837,"Lanarkshire, Scotland","25 MUIRHEAD STREET"]
[526,28,"Daniel","Crossan","Male",1,1840,"Lanarkshire, Scotland","25 MUIRHEAD STREET"]
[527,28,"Ann","Harison","Female",55,1786,"Ireland","25 MUIRHEAD STREET"]
[528,28,"Thomas","Higgins","Male",60,1781,"Ireland","25 MUIRHEAD STREET"]
[529,28,"Pat","Backs","Male",15,1826,"Ireland","25 MUIRHEAD STREET"]
[530,null,"First name(s)","Last name","Sex","Age","Birth year","Birth place"]
[531,29,"John","Sumers","Male",30,1811,"Ireland","25 MUIRHEAD STREET"]
[532,29,"Nancy","Sumers","Female",40,1801,"Ireland","25 MUIRHEAD STREET"]
[533,29,"Bryce","Sumers","Male",20,1821,"Ireland","25 MUIRHEAD STREET"]
[534,29,"Mary","Crossan","Female",15,1826,"Lanarkshire, Scotland","25 MUIRHEAD STREET"]
[535,29,"John","Crossan","Male",13,1828,"Lanarkshire, Scotland","25 MUIRHEAD STREET"]
[536,29,"Mary","Docherty","Female",20,1821,"Ireland","25 MUIRHEAD STREET"]
[537,29,"Nancy","Docherty","Female",15,1826,"Ireland","25 MUIRHEAD STREET"]
[538,29,"Mary","Docherty","Female",18,1823,"Ireland","25 MUIRHEAD STREET"]
[539,null,"First name(s)","Last name","Sex","Age","Birth year","Birth place"]
[540,30,"Margaret","Gowie","Female",29,1812,"Scotland","25 MUIRHEAD STREET"]
[541,30,"Ann","Gowie","Female",13,1828,"Scotland","25 MUIRHEAD STREET"]
[542,30,"David","Gowie","Male",5,1836,"Lanarkshire, Scotland","25 MUIRHEAD STREET"]
[543,30,"Jean","Ingles","Female",25,1816,"Scotland","25 MUIRHEAD STREET"]
[544,null,"First name(s)","Last name","Sex","Age","Birth year","Birth place"]
[545,31,"William","McIlneher","Male",25,1816,"Lanarkshire, Scotland","25 MUIRHEAD STREET"]
[546,31,"Margaret","McIlneher","Female",20,1821,"Lanarkshire, Scotland","25 MUIRHEAD STREET"]
[547,31,"Robert","Nichal","Male",50,1791,"Ireland","25 MUIRHEAD STREET"]
[548,31,"Ann","Nichal","Female",50,1791,"Ireland","25 MUIRHEAD STREET"]
[549,31,"Robert","Nichal","Male",10,1831,"Ireland","25 MUIRHEAD STREET"]
[550,31,"Thomas","Cully","Male",22,1819,"Ireland","25 MUIRHEAD STREET"]
[551,null,"First name(s)","Last name","Sex","Age","Birth year","Birth place"]
[552,32,"Thomas","McCaul","Male",30,1811,"Ireland","25 MUIRHEAD STREET"]
[553,32,"Rosanah","McCaul","Female",30,1811,"Ireland","25 MUIRHEAD STREET"]
[554,32,"Timothy","McCaul","Male",11,1830,"Ireland","25 MUIRHEAD STREET"]
[555,32,"John","Melen","Male",25,1816,"Ireland","25 MUIRHEAD STREET"]
[556,32,"Archibald","Melen","Male",18,1823,"Ireland","25 MUIRHEAD STREET"]
[557,32,"James","Kettley","Male",20,1821,"Ireland","25 MUIRHEAD STREET"]
[558,32,"Helen","McNaulty","Female",50,1791,"Ireland","25 MUIRHEAD STREET"]
[559,32,"Mary","McCaul","Female",20,1821,"Ireland","25 MUIRHEAD STREET"]
[560,null,"First name(s)","Last name","Sex","Age","Birth year","Birth place"]
[561,33,"William","Scott","Male",25,1816,"Scotland","25 MUIRHEAD STREET"]
[562,33,"Janet","Scott","Female",20,1821,"Lanarkshire, Scotland","25 MUIRHEAD STREET"]
[563,33,"Margaret","Sutherland","Female",35,1806,"Lanarkshire, Scotland","25 MUIRHEAD STREET"]
[564,33,"Barbra","Sutherland","Female",15,1826,"Lanarkshire, Scotland","25 MUIRHEAD STREET"]
[565,33,"James","Sutherland","Male",13,1828,"Lanarkshire, Scotland","25 MUIRHEAD STREET"]
[566,33,"Agness","Sutherland","Female",3,1838,"Lanarkshire, Scotland","25 MUIRHEAD STREET"]
[567,null,"First name(s)","Last name","Sex","Age","Birth year","Birth place"]
[568,34,"Charles","Dufin","Male",38,1803,"Ireland","25 MUIRHEAD STREET"]
[569,34,"Elizabeth","Dufin","Female",35,1806,"Ireland","25 MUIRHEAD STREET"]
[570,34,"Margaret","Dufin","Female",12,1829,"Scotland","25 MUIRHEAD STREET"]
[571,34,"James","Duffin","Male",8,1833,"Scotland","25 MUIRHEAD STREET"]
[572,34,"Elizabeth","Duffin","Female",6,1835,"Scotland","25 MUIRHEAD STREET"]
[573,34,"Mary","Duffin","Female",3,1838,"Lanarkshire, Scotland","25 MUIRHEAD STREET"]
[574,null,"First name(s)","Last name","Sex","Age","Birth year","Birth place"]
[575,35,"Catherine","Sloan","Female",40,1801,"England","25 MUIRHEAD STREET"]
[576,35,"John","Sloan","Male",15,1826,"Lanarkshire, Scotland","25 MUIRHEAD STREET"]
[577,35,"Ann","Sloan","Female",10,1831,"Lanarkshire, Scotland","25 MUIRHEAD STREET"]
[578,35,"William","Sloan","Male",5,1836,"Lanarkshire, Scotland","25 MUIRHEAD STREET"]
[579,null,"First name(s)","Last name","Sex","Age","Birth year","Birth place"]
[580,36,"John","Fitspatrick","Male",30,1811,"Lanarkshire, Scotland","25 MUIRHEAD STREET"]
[581,36,"Jennet","Fitspatrick","Female",25,1816,"Lanarkshire, Scotland","25 MUIRHEAD STREET"]
[582,36,"Mary","Fitspatrick","Female",8,1833,"Lanarkshire, Scotland","25 MUIRHEAD STREET"]
[583,36,"Agness","Fitspatrick","Female",0,1841,"Lanarkshire, Scotland","25 MUIRHEAD STREET"]
[584,null,"First name(s)","Last name","Sex","Age","Birth year","Birth place"]
[585,37,"Jennet","Smith","Female",40,1801,"Scotland","25 MUIRHEAD STREET"]
[586,37,"Elezibeth","Smith","Female",18,1823,"Lanarkshire, Scotland","25 MUIRHEAD STREET"]
[587,37,"Robert","Smith","Male",10,1831,"Scotland","25 MUIRHEAD STREET"]
[588,37,"Lillias","Smith","Female",13,1828,"Lanarkshire, Scotland","25 MUIRHEAD STREET"]
[589,null,"First name(s)","Last name","Sex","Age","Birth year","Birth place"]
[590,38,"James","Miller","Male",25,1816,"Lanarkshire, Scotland","25 MUIRHEAD STREET"]
[591,38,"Elizabeth","Miller","Female",25,1816,"Lanarkshire, Scotland","25 MUIRHEAD STREET"]
[592,38,"Elizabeth","Miller","Female",6,1835,"Lanarkshire, Scotland","25 MUIRHEAD STREET"]
[593,38,"Cathern","Miller","Female",4,1837,"Scotland","25 MUIRHEAD STREET"]
[594,38,"David","Miller","Male",0,1841,"Lanarkshire, Scotland","25 MUIRHEAD STREET"]
[595,null,"First name(s)","Last name","Sex","Age","Birth year","Birth place"]
[596,25,"John","Buchanan","Male",35,1806,"Lanarkshire, Scotland","37MUIRHEAD STREET"]
[597,25,"Margaret","Buchanan","Female",25,1816,"Lanarkshire, Scotland","37MUIRHEAD STREET"]
[598,25,"David","Buchanan","Male",10,1831,"Lanarkshire, Scotland","37MUIRHEAD STREET"]
[599,25,"John","Buchanan","Male",8,1833,"Lanarkshire, Scotland","37MUIRHEAD STREET"]
[600,25,"Jean","Buchanan","Female",6,1835,"Lanarkshire, Scotland","37MUIRHEAD STREET"]
[601,25,"Lawrence","Buchanan","Male",4,1837,"Lanarkshire, Scotland","37MUIRHEAD STREET"]
[602,25,"William","Buchanan","Male",2,1839,"Lanarkshire, Scotland","37MUIRHEAD STREET"]
[603,25,"George","Buchanan","Male",0,1841,"Lanarkshire, Scotland","37MUIRHEAD STREET"]

{"sheet":"sort by country of birth","index":2,"n_rows":509,"n_cols":18,"rows_kept":509}
["My Index","Schedule","First name(s)","Last name","Sex","Age","Birth year","Birth place",null,"Scotland","Ireland","England",{"$nulls":4},"Lanarkshire","No Place Given"]
[596,25,"John","Buchanan","Male",35,1806,"Lanarkshire, Scotland",null,{"$f":"COUNTIF(H2:H509,\"*Scotland*\")","v":374},{"$f":"COUNTIF(H2:H509,\"*Ireland*\")","v":115},{"$f":"COUNTIF(H2:H509,\"*England*\")","v":11},null,null,{"$f":"SUM(J2:N2)","v":500},null,{"$f":"COUNTIF(H2:H509,\"*Lanarkshire*\")","v":245},8]
[597,25,"Margaret","Buchanan","Female",25,1816,"Lanarkshire, Scotland"]
[598,25,"David","Buchanan","Male",10,1831,"Lanarkshire, Scotland",null,508]
[599,25,"John","Buchanan","Male",8,1833,"Lanarkshire, Scotland"]
[600,25,"Jean","Buchanan","Female",6,1835,"Lanarkshire, Scotland",{"$nulls":8},{"$f":"Q2/J4","v":{"v":0.4822834645669291,"d":"48.23%"}},"percentage born in Lanarkshire"]
[601,25,"Lawrence","Buchanan","Male",4,1837,"Lanarkshire, Scotland"]
[602,25,"William","Buchanan","Male",2,1839,"Lanarkshire, Scotland"]
[603,25,"George","Buchanan","Male",0,1841,"Lanarkshire, Scotland"]
[509,26,"Charles","Kerr","Male",25,1816,"Ireland"]
[510,26,"Sally","Kerr","Female",25,1816,"Ireland"]
[511,26,"Mary","Kerr","Female",7,1834,"Lanarkshire, Scotland",{"$nulls":4},"Scotland","Ireland","England","Other"]
[512,26,"Charles","Kerr","Male",2,1839,"Lanarkshire, Scotland",{"$nulls":4},374,115,11,8]
[513,26,"Agness","Mardy","Female",30,1811,"Lanarkshire, Scotland",{"$nulls":4},{"$f":"M13/500","v":{"v":0.748,"d":"74.80%"}},{"$f":"N13/500","v":{"v":0.23,"d":"23.00%"}},{"$f":"O13/500","v":{"v":0.022,"d":"2.20%"}},{"$f":"P13/500","v":{"v":0.016,"d":"1.60%"}}]
[514,26,"Jennet","Adams","Female",50,1791,"Ireland"]
[516,27,"John","Carmicheal","Male",40,1801,"Lanarkshire, Scotland"]
[517,27,"Helen","Carmicheal","Female",40,1801,"Lanarkshire, Scotland"]
[518,27,"Agness","Carmicheal","Female",15,1826,"Lanarkshire, Scotland"]
[519,27,"Margaret","Carmicheal","Female",13,1828,"Lanarkshire, Scotland"]
[521,28,"Peter","Crossan","Male",34,1807,"Ireland"]
[522,28,"Ann","Crossan","Female",38,1803,"Ireland"]
[523,28,"Peter","Crossan","Male",16,1825,"Lanarkshire, Scotland"]
[524,28,"Catherine","Crossan","Female",10,1831,"Lanarkshire, Scotland"]
[525,28,"Agness","Crossan","Female",4,1837,"Lanarkshire, Scotland"]
[526,28,"Daniel","Crossan","Male",1,1840,"Lanarkshire, Scotland"]
[527,28,"Ann","Harison","Female",55,1786,"Ireland"]
[528,28,"Thomas","Higgins","Male",60,1781,"Ireland"]
[529,28,"Pat","Backs","Male",15,1826,"Ireland"]
[531,29,"John","Sumers","Male",30,1811,"Ireland"]
[532,29,"Nancy","Sumers","Female",40,1801,"Ireland"]
[533,29,"Bryce","Sumers","Male",20,1821,"Ireland"]
[534,29,"Mary","Crossan","Female",15,1826,"Lanarkshire, Scotland"]
[535,29,"John","Crossan","Male",13,1828,"Lanarkshire, Scotland"]
[536,29,"Mary","Docherty","Female",20,1821,"Ireland"]
[537,29,"Nancy","Docherty","Female",15,1826,"Ireland"]
[538,29,"Mary","Docherty","Female",18,1823,"Ireland"]
[540,30,"Margaret","Gowie","Female",29,1812,"Scotland"]
[541,30,"Ann","Gowie","Female",13,1828,"Scotland"]
[542,30,"David","Gowie","Male",5,1836,"Lanarkshire, Scotland"]
[543,30,"Jean","Ingles","Female",25,1816,"Scotland"]
[545,31,"William","McIlneher","Male",25,1816,"Lanarkshire, Scotland"]
[546,31,"Margaret","McIlneher","Female",20,1821,"Lanarkshire, Scotland"]
[547,31,"Robert","Nichal","Male",50,1791,"Ireland"]
[548,31,"Ann","Nichal","Female",50,1791,"Ireland"]
[549,31,"Robert","Nichal","Male",10,1831,"Ireland"]
[550,31,"Thomas","Cully","Male",22,1819,"Ireland"]
[552,32,"Thomas","McCaul","Male",30,1811,"Ireland"]
[553,32,"Rosanah","McCaul","Female",30,1811,"Ireland"]
[554,32,"Timothy","McCaul","Male",11,1830,"Ireland"]
[555,32,"John","Melen","Male",25,1816,"Ireland"]
[556,32,"Archibald","Melen","Male",18,1823,"Ireland"]
[557,32,"James","Kettley","Male",20,1821,"Ireland"]
[558,32,"Helen","McNaulty","Female",50,1791,"Ireland"]
[559,32,"Mary","McCaul","Female",20,1821,"Ireland"]
[561,33,"William","Scott","Male",25,1816,"Scotland"]
[562,33,"Janet","Scott","Female",20,1821,"Lanarkshire, Scotland"]
[563,33,"Margaret","Sutherland","Female",35,1806,"Lanarkshire, Scotland"]
[564,33,"Barbra","Sutherland","Female",15,1826,"Lanarkshire, Scotland"]
[565,33,"James","Sutherland","Male",13,1828,"Lanarkshire, Scotland"]
[566,33,"Agness","Sutherland","Female",3,1838,"Lanarkshire, Scotland"]
[568,34,"Charles","Dufin","Male",38,1803,"Ireland"]
[569,34,"Elizabeth","Dufin","Female",35,1806,"Ireland"]
[570,34,"Margaret","Dufin","Female",12,1829,"Scotland"]
[571,34,"James","Duffin","Male",8,1833,"Scotland"]
[572,34,"Elizabeth","Duffin","Female",6,1835,"Scotland"]
[573,34,"Mary","Duffin","Female",3,1838,"Lanarkshire, Scotland"]
[575,35,"Catherine","Sloan","Female",40,1801,"England"]
[576,35,"John","Sloan","Male",15,1826,"Lanarkshire, Scotland"]
[577,35,"Ann","Sloan","Female",10,1831,"Lanarkshire, Scotland"]
[578,35,"William","Sloan","Male",5,1836,"Lanarkshire, Scotland"]
[580,36,"John","Fitspatrick","Male",30,1811,"Lanarkshire, Scotland"]
[581,36,"Jennet","Fitspatrick","Female",25,1816,"Lanarkshire, Scotland"]
[582,36,"Mary","Fitspatrick","Female",8,1833,"Lanarkshire, Scotland"]
[583,36,"Agness","Fitspatrick","Female",0,1841,"Lanarkshire, Scotland"]
[585,37,"Jennet","Smith","Female",40,1801,"Scotland"]
[586,37,"Elezibeth","Smith","Female",18,1823,"Lanarkshire, Scotland"]
[587,37,"Robert","Smith","Male",10,1831,"Scotland"]
[588,37,"Lillias","Smith","Female",13,1828,"Lanarkshire, Scotland"]
[590,38,"James","Miller","Male",25,1816,"Lanarkshire, Scotland"]
[591,38,"Elizabeth","Miller","Female",25,1816,"Lanarkshire, Scotland"]
[592,38,"Elizabeth","Miller","Female",6,1835,"Lanarkshire, Scotland"]
[593,38,"Cathern","Miller","Female",4,1837,"Scotland"]
[594,38,"David","Miller","Male",0,1841,"Lanarkshire, Scotland"]
[479,39,"James","McIntyre","Male",30,1811,"Lanarkshire, Scotland"]
[480,39,"Isabella","McIntyre","Female",25,1816,"Lanarkshire, Scotland"]
[481,39,"Isabella","McIntyre","Female",5,1836,"Lanarkshire, Scotland"]
[482,39,"James","McIntyre","Male",3,1838,"Lanarkshire, Scotland"]
[483,39,"Christiane","McIntyre","Female",1,1840,"Lanarkshire, Scotland"]
[484,39,"Jean","Shaw","Female",40,1801,"Lanarkshire, Scotland"]
[485,39,"Neil","Shaw","Male",15,1826,"Lanarkshire, Scotland"]
[486,39,"James","Shaw","Male",14,1827,"Lanarkshire, Scotland"]
[487,39,"Jean","Shaw","Female",10,1831,"Lanarkshire, Scotland"]
[489,40,"George","Henderson","Male",35,1806,"Scotland"]
[490,40,"Jean","Henderson","Female",30,1811,"Scotland"]
[491,40,"George","Henderson","Male",9,1832,"Lanarkshire, Scotland"]
[492,40,"Jennet","Henderson","Female",5,1836,"Lanarkshire, Scotland"]
[493,40,"Alex","Chinies","Male",25,1816,"Scotland"]
[494,40,"James","Leviston","Male",28,1813,"Scotland"]
[495,40,"John","Wright","Male",19,1822,"Scotland"]
[497,41,"Daniel","McGregor","Male",56,1785,"Lanarkshire, Scotland"]
[498,41,"Susan","McGregor","Female",40,1801,"Lanarkshire, Scotland"]
[499,41,"Janet","McGregor","Female",45,1796,"Lanarkshire, Scotland"]
[501,42,"Peter","McNaught","Male",61,1780,"Scotland"]
[502,42,"Ellison","McNaught","Female",65,1776,"Scotland"]
[503,42,"Archibald","Wilson","Male",35,1806,"-"]
[504,42,"Jonas","Wilson","Female",50,1791,"England"]
[506,43,"William","Stevenson","Male",36,1805,"Lanarkshire, Scotland"]
[507,43,"Helen","Stevenson","Female",30,1811,"Lanarkshire, Scotland"]
[427,44,"Finlay","Stalker","Male",40,1801,"Scotland"]
[428,44,"Margaret","Stalker","Female",35,1806,"Scotland"]
[429,44,"Isabela","Stalker","Female",12,1829,"Lanarkshire, Scotland"]
[430,44,"John","Stalker","Male",3,1838,"Lanarkshire, Scotland"]
[431,44,"Tinlay","Stalker","Male",0,1841,"Lanarkshire, Scotland"]
[433,45,"John","Ramsay","Male",54,1787,"Scotland"]
[434,45,"Thomas","Jaffray","Male",6,1835,"Lanarkshire, Scotland"]
[436,46,"Walter","Laird","Male",30,1811,"Scotland"]
[437,46,"John","Laird","Male",6,1835,"Lanarkshire, Scotland"]
[438,46,"Ann","Laird","Female",4,1837,"Lanarkshire, Scotland"]
[439,46,"Joseph","Laird","Male",3,1838,"Lanarkshire, Scotland"]
[440,46,"Janet","Laird","Female",65,1776,"Scotland"]
[442,47,"Mary","Cameron","Female",50,1791,"Lanarkshire, Scotland"]
[443,47,"Margaret","Cameron","Female",20,1821,"Lanarkshire, Scotland"]
[445,48,"Jean","Cameron","Female",19,1822,"Lanarkshire, Scotland"]
[446,48,"Marian","Barclay","Female",20,1821,"Lanarkshire, Scotland"]
[447,48,"Margaret","Barclay","Female",18,1823,"-"]
[448,48,"M Wm","Barclay","Male",14,1827,"Scotland"]
[450,49,"David","Henderson","Male",30,1811,"Scotland"]
[451,49,"Elizabeth","Henderson","Female",25,1816,"Scotland"]
[453,50,"James","Henderson","Male",0,1841,"Lanarkshire, Scotland"]
[454,50,"Agness","Agnew","Female",12,1829,"Lanarkshire, Scotland"]
[455,50,"Hendry","Muir","Male",31,1810,"Ireland"]
[456,50,"Mary","Muir","Female",36,1805,"Ireland"]
[457,50,"Jean","Muir","Female",5,1836,"Ireland"]
[459,51,"James","Finlater","Male",50,1791,"Lanarkshire, Scotland"]
[460,51,"Ann","Finlater","Female",50,1791,"Lanarkshire, Scotland"]
[462,52,"James","Little","Male",46,1795,"England"]
[463,52,"James","Little","Male",17,1824,"Lanarkshire, Scotland"]
[464,52,"Robert","Little","Male",13,1828,"Lanarkshire, Scotland"]
[465,52,"Mary","Little","Female",11,1830,"Lanarkshire, Scotland"]
[467,53,"Alexander","Little","Male",7,1834,"Lanarkshire, Scotland"]
[468,53,"John","Muir","Male",25,1816,"Ireland"]
[469,53,"Elizabeth","Muir","Female",25,1816,"England"]
[470,53,"John","Muir","Male",1,1840,"Lanarkshire, Scotland"]
[471,53,"Robert","Muir","Male",46,1795,"Ireland"]
[472,53,"Allan","Scott","Male",35,1806,"Lanarkshire, Scotland"]
[473,53,"William","Scott","Male",15,1826,"Lanarkshire, Scotland"]
[474,53,"Archabilad","Scott","Male",14,1827,"Lanarkshire, Scotland"]
[475,53,"Allan","Scott","Male",10,1831,"Lanarkshire, Scotland"]
[476,53,"Isabella","Scott","Female",5,1836,"Lanarkshire, Scotland"]
[477,53,"Jean","Scott","Female",4,1837,"Lanarkshire, Scotland"]
[415,54,"James","Parcel","Male",26,1815,"Lanarkshire, Scotland"]
[416,54,"Martha","Parcel","Female",30,1811,"Scotland"]
[417,54,"Martha","Parcel","Female",19,1822,"Lanarkshire, Scotland"]
[418,54,"Marian","Parcel","Female",7,1834,"Lanarkshire, Scotland"]
[419,54,"Euphemia","Parcel","Female",3,1838,"Lanarkshire, Scotland"]
[420,54,"Jean","Parcel","Female",0,1841,"Lanarkshire, Scotland"]
[421,54,"Jean","Anderson","Female",20,1821,"-"]
[408,55,"Jennet","McIlneher","Female",38,1803,"Scotland"]
[409,55,"James","McIlneher","Male",15,1826,"Lanarkshire, Scotland"]
[410,55,"Margaret","McIlneher","Female",13,1828,"Lanarkshire, Scotland"]
[411,55,"Jennet","McIlneher","Female",8,1833,"Lanarkshire, Scotland"]
[412,55,"Mary","McIlneher","Female",6,1835,"Lanarkshire, Scotland"]
[413,55,"William","McIlneher","Male",4,1837,"Lanarkshire, Scotland"]
[238,56,"Walter","Dougald","Male",30,1811,"Lanarkshire, Scotland"]
[239,56,"Sophia","Dougald","Female",27,1814,"Ireland"]
[240,56,"David","Dougald","Male",65,1776,"Scotland"]
[242,57,"Terrence","McThaen","Male",25,1816,"Ireland"]
[243,57,"Ann","McThaen","Female",20,1821,"Ireland"]
[244,57,"James","McThaen","Male",0,1841,"Lanarkshire, Scotland"]
[246,58,"Michael","Goodwin","Male",40,1801,"Ireland"]
[247,58,"Mary","Goodwin","Female",60,1781,"Ireland"]
[248,58,"Mary","Goodwin","Female",17,1824,"Scotland"]
[249,58,"Sarah","Goodwin","Female",13,1828,"Scotland"]
[250,58,"Francis","Mulqueen","Male",50,1791,"Ireland"]
[1,59,"John","Hamilton","Male",45,1796,"Scotland"]
[2,59,"George","Knox","Male",30,1811,"Lanarkshire, Scotland"]
[3,59,"William","Ingles","Male",35,1806,"Lanarkshire, Scotland"]
[4,59,"Alexander","Grieve","Male",40,1801,"Scotland"]
[5,59,"James","Buchanan","Male",35,1806,"Lanarkshire, Scotland"]
[6,59,"James","Davie","Male",35,1806,"Scotland"]
[252,59,"John","McNeel","Male",25,1816,"Scotland"]
[253,59,"Margaret","McNeel","Female",25,1816,"Scotland"]
[254,59,"Jennet","McNeel","Female",5,1836,"Scotland"]
[255,59,"Alexander","McNeel","Male",1,1840,"Lanarkshire, Scotland"]
[256,59,"Nk","-","Male",0,1841,"Lanarkshire, Scotland"]
[8,60,"Margaret","Leatch","Female",70,1771,"Lanarkshire, Scotland"]
[9,60,"Ann","Leatch","Female",25,1816,"Lanarkshire, Scotland"]
[10,60,"John","Leatch","Male",25,1816,"Lanarkshire, Scotland"]
[11,60,"John","McGregor","Male",3,1838,"Lanarkshire, Scotland"]
[258,60,"John","Manson","Male",24,1817,"Lanarkshire, Scotland"]
[259,60,"Manrien","Manson","Female",24,1817,"Lanarkshire, Scotland"]
[260,60,"Agness","Manson","Female",4,1837,"Lanarkshire, Scotland"]
[261,60,"Robert","Manson","Male",2,1839,"Lanarkshire, Scotland"]
[262,60,"Jean","Simpson","Female",20,1821,"-"]
[13,61,"William","White","Male",60,1781,"Lanarkshire, Scotland"]
[264,61,"Andrew","Carter","Male",34,1807,"Scotland"]
[265,61,"Margaret","Carter","Female",30,1811,"Lanarkshire, Scotland"]
[266,61,"Andrew","Carter","Male","-","-","Lanarkshire, Scotland"]
[267,61,"Isabell","Carter","Female",9,1832,"Lanarkshire, Scotland"]
[15,62,"Margaret","McLachlen","Female",75,1766,"Scotland"]
[16,62,"Jane","McLaghlen","Female",40,1801,"Scotland"]
[17,62,"Catherine","McLaghlen","Female",25,1816,"Lanarkshire, Scotland"]
[269,62,"John","Sumpson","Male",34,1807,"Lanarkshire, Scotland"]
[270,62,"Isabella","Sumpson","Female",30,1811,"Lanarkshire, Scotland"]
[19,63,"James","Spright","Male",20,1821,"Lanarkshire, Scotland"]
[20,63,"Colven","Woods","Male",30,1811,"Ireland"]
[272,63,"Robert","Scouler","Male",25,1816,"Lanarkshire, Scotland"]
[273,63,"Mary","Scouler","Female",22,1819,"Scotland"]
[23,64,"John","Dalgliesh","Male",25,1816,"Scotland"]
[24,64,"Ellen","Dalgliesh","Female",25,1816,"Scotland"]
[25,64,"Thomas","Dalgliesh","Male",0,1841,"Lanarkshire, Scotland"]
[26,64,"Mary","Allan","Female",9,1832,"Scotland"]
[275,64,"John","Spencer","Male",30,1811,"England"]
[276,64,"Marrion","Spencer","Female",30,1811,"England"]
[277,64,"Thomas","Spencer","Male",6,1835,"England"]
[29,65,"Mary","Marlay","Female",40,1801,"Ireland"]
[30,65,"Ann","Marlay","Female",14,1827,"Lanarkshire, Scotland"]
[31,65,"Bridget","Marlay","Female",12,1829,"Lanarkshire, Scotland"]
[32,65,"Mary","Marlay","Female",11,1830,"Lanarkshire, Scotland"]
[33,65,"Terressy","Marlay","Female",8,1833,"Lanarkshire, Scotland"]
[34,65,"Bridget","McAvoy","Female",28,1813,"Ireland"]
[35,65,"Sarah","McCallay","Female",20,1821,"Lanarkshire, Scotland"]
[279,65,"Mathew","Henry","Male",28,1813,"Lanarkshire, Scotland"]
[280,65,"Agness","Henry","Female",29,1812,"Ireland"]
[281,65,"George","Henry","Male",9,1832,"Lanarkshire, Scotland"]
[282,65,"Samuel","Henry","Male",7,1834,"Lanarkshire, Scotland"]
[283,65,"Elizabeth","Henry","Female",5,1836,"Lanarkshire, Scotland"]
[37,66,"Michael","Dollan","Male",35,1806,"Ireland"]
[38,66,"Sarah","Dollan","Female",35,1806,"Ireland"]
[39,66,"Mary","Dollan","Female",5,1836,"Ireland"]
[40,66,"Sarah","Dollan","Female",1,1840,"Lanarkshire, Scotland"]
[41,66,"Henry","Grieve","Male",30,1811,"Lanarkshire, Scotland"]
[42,66,"Isabella","Grieve","Female",20,1821,"Lanarkshire, Scotland"]
[43,66,"Patrick","McGowan","Male",40,1801,"Ireland"]
[44,66,"Mary","McGowan","Female",40,1801,"Ireland"]
[45,66,"Patrick","McGowan","Male",15,1826,"Lanarkshire, Scotland"]
[46,66,"Mary","McGowan","Female",5,1836,"Lanarkshire, Scotland"]
[47,66,"Widow","McDead","Female",75,1766,"Ireland"]
[48,66,"Mary","Alexander","Female",20,1821,"Lanarkshire, Scotland"]
[49,66,"Catherine","Dick","Female",40,1801,"Lanarkshire, Scotland"]
[50,66,"Jane","Dick","Female",5,1836,"Lanarkshire, Scotland"]
[51,66,"Mary","Dick","Female",1,1840,"Lanarkshire, Scotland"]
[285,66,"Isabella","Freil","Female",45,1796,"Ireland"]
[286,66,"Susey","Freil","Female",25,1816,"Ireland"]
[287,66,"Bridget","Freil","Female",20,1821,"Ireland"]
[288,66,"Rosanah","Freil","Female",18,1823,"Lanarkshire, Scotland"]
[289,66,"Isabella","Freil","Female",15,1826,"Lanarkshire, Scotland"]
[53,67,"Patrick","Hanna","Male",45,1796,"Ireland"]
[54,67,"-","Hanna","Female",45,1796,"Ireland"]
[55,67,"Mary","Hanna","Female",10,1831,"Scotland"]
[56,67,"Catherine","Boyle","Female",40,1801,"Lanarkshire, Scotland"]
[57,67,"William","Doherty","Male",35,1806,"Ireland"]
[58,67,"Thomas","White","Male",50,1791,"Scotland"]
[59,67,"Archibald","Thomson","Male",35,1806,"Scotland"]
[60,67,"Archibald","Thomson","Male",10,1831,"Scotland"]
[61,67,"James","Hilly","Male",30,1811,"Scotland"]
[62,67,"-","Hilly","Female",25,1816,"Ireland"]
[63,67,"James","Hilly","Male",3,1838,"Scotland"]
[64,67,"John","Green","Male",20,1821,"Ireland"]
[65,67,"John","Knox","Male",15,1826,"Scotland"]
[291,67,"Robert","Turnbull","Male",34,1807,"Scotland"]
[292,67,"Catherine","Turnbull","Female",28,1813,"Scotland"]
[293,67,"Robert","Turnbull","Male",12,1829,"Scotland"]
[294,67,"Elizabeth","Turnbull","Female",1,1840,"Scotland"]
[67,68,"Robert","Gillies","Male",45,1796,"Ireland"]
[68,68,"Sarah","Gillies","Female",50,1791,"England"]
[69,68,"Archibald","Gillies","Male",20,1821,"Lanarkshire, Scotland"]
[70,68,"Margaret","Gillies","Female",15,1826,"Lanarkshire, Scotland"]
[71,68,"Thomas","Paterson","Male",20,1821,"Lanarkshire, Scotland"]
[296,68,"James","Anderson","Male",40,1801,"Scotland"]
[297,68,"Elizabeth","Anderson","Female",40,1801,"Lanarkshire, Scotland"]
[298,68,"William","Anderson","Male",15,1826,"Lanarkshire, Scotland"]
[299,68,"James","Muir","Male",13,1828,"Lanarkshire, Scotland"]
[300,68,"Racheal","Muir","Female",7,1834,"Lanarkshire, Scotland"]
[301,68,"Margaret","Rankin","Female",30,1811,"Lanarkshire, Scotland"]
[73,69,"Emellea","Dillan","Female",55,1786,"Ireland"]
[74,69,"James","Dowie","Male",40,1801,"Scotland"]
[75,69,"Janet","Dowie","Female",45,1796,"Scotland"]
[76,69,"Thomas","Short","Male",55,1786,"Ireland"]
[77,69,"Elizabeth","Short","Female",50,1791,"Ireland"]
[78,69,"James","McGowan","Male",25,1816,"Scotland"]
[79,69,"Thomas","McGowan","Male",1,1840,"Lanarkshire, Scotland"]
[80,69,"Elizabeth","McGowan","Female",20,1821,"Ireland"]
[81,69,"William","McKean","Male",45,1796,"Ireland"]
[82,69,"Janet","Stewart","Female",10,1831,"Scotland"]
[83,69,"Hamilton","Hay","Male",10,1831,"Lanarkshire, Scotland"]
[84,69,"Barbara","Ross","Female",20,1821,"Scotland"]
[85,69,"Agnes","McKean","Female",10,1831,"Scotland"]
[303,69,"Henry","Gardner","Male",29,1812,"Scotland"]
[304,69,"Jean","Gardner","Female",30,1811,"Scotland"]
[305,69,"Christina","Gardner","Female",1,1840,"Lanarkshire, Scotland"]
[87,70,"Hugh","Bagnell","Male",25,1816,"Lanarkshire, Scotland"]
[88,70,"Mary","Bagnell","Female",40,1801,"-"]
[89,70,"George","Bagnell","Male",5,1836,"Lanarkshire, Scotland"]
[90,70,"John","O'Bryan","Male",10,1831,"Lanarkshire, Scotland"]
[91,70,"Philip","O'Bryan","Male",10,1831,"Ireland"]
[92,70,"Penelopy","O'Bryan","Female",10,1831,"Lanarkshire, Scotland"]
[93,70,"Mary","O'Bryan","Female",5,1836,"Lanarkshire, Scotland"]
[94,70,"John","Orr","Male",25,1816,"Ireland"]
[95,70,"Margaret","Orr","Female",25,1816,"Ireland"]
[96,70,"James","Orr","Male",4,1837,"Ireland"]
[97,70,"Rob","Orr","Male",2,1839,"Ireland"]
[98,70,"Torrance","Horn","Male",60,1781,"Ireland"]
[99,70,"Cathern","Horn","Female",50,1791,"Ireland"]
[307,70,"Charles","Dorrache","Male",37,1804,"Lanarkshire, Scotland"]
[308,70,"Janet","Dorrache","Female",30,1811,"Lanarkshire, Scotland"]
[309,70,"Charles","Dorrache","Male",15,1826,"Lanarkshire, Scotland"]
[310,70,"David","Dorrache","Male",12,1829,"Lanarkshire, Scotland"]
[311,70,"Neil","Dorrache","Male",3,1838,"Lanarkshire, Scotland"]
[101,71,"John","Dodds","Male",40,1801,"Lanarkshire, Scotland"]
[102,71,"Alexander","Crooks","Male",20,1821,"Scotland"]
[103,71,"William","Stewart","Male",15,1826,"Scotland"]
[104,71,"William","Anderson","Male",20,1821,"Scotland"]
[105,71,"William","Moffer","Male",20,1821,"Lanarkshire, Scotland"]
[106,71,"Alexander","Fraser","Male",15,1826,"Scotland"]
[107,71,"Angus","Fraser","Male",15,1826,"Scotland"]
[108,71,"John","Oswald","Male",20,1821,"Scotland"]
[109,71,"Jane","Murry","Female",30,1811,"Scotland"]
[110,71,"Agnes","Dalglish","Female",50,1791,"-"]
[313,71,"Robert","Brodie","Male",56,1785,"Lanarkshire, Scotland"]
[314,71,"Isabella","Brodie","Female",38,1803,"Lanarkshire, Scotland"]
[315,71,"Margaret","Brodie","Female",4,1837,"Lanarkshire, Scotland"]
[316,71,"Christinia","Brodie","Female",0,1841,"Lanarkshire, Scotland"]
[317,71,"Mary","Stewart","Female",40,1801,"Scotland"]
[112,72,"Sarah","Dalrumple","Female",35,1806,"Ireland"]
[319,72,"Robert","Johnston","Male",20,1821,"Lanarkshire, Scotland"]
[320,72,"Jean","Johnston","Female",15,1826,"Lanarkshire, Scotland"]
[321,72,"Margaret","Taylor","Female",20,1821,"Lanarkshire, Scotland"]
[322,72,"Margaret","Naught","Female",1,1840,"Lanarkshire, Scotland"]
[114,73,"Hugh","Paterson","Male",35,1806,"Scotland"]
[115,73,"Margaret","Paterson","Female",35,1806,"Scotland"]
[116,73,"Jenat","Paterson","Female",10,1831,"Lanarkshire, Scotland"]
[117,73,"Margaret","Paterson","Female",7,1834,"Lanarkshire, Scotland"]
[118,73,"George","Paterson","Male",4,1837,"Lanarkshire, Scotland"]
[324,73,"Mathew","King","Male",30,1811,"Lanarkshire, Scotland"]
[325,73,"Christiana","King Sr","Female",30,1811,"Lanarkshire, Scotland"]
[326,73,"Mary","Smith","Female",8,1833,"Lanarkshire, Scotland"]
[120,74,"Thomas","McHail","Male",30,1811,"Ireland"]
[121,74,"Margaret","McGillion","Female",25,1816,"Ireland"]
[122,74,"Thomas","McHail","Male",0,1841,"Lanarkshire, Scotland"]
[328,74,"Charles","Durrah","Male",82,1759,"Ireland"]
[329,74,"Agness","Durrah","Female",62,1779,"Lanarkshire, Scotland"]
[124,75,"David","Anderson","Male",25,1816,"Scotland"]
[125,75,"Janet","Anderson","Female",20,1821,"Lanarkshire, Scotland"]
[126,75,"Mary","Anderson","Female",1,1840,"Lanarkshire, Scotland"]
[127,75,"John","Henderson","Male",18,1823,"Lanarkshire, Scotland"]
[331,75,"Robert","Steven","Male",49,1792,"Scotland"]
[332,75,"Helen","Steven","Female",45,1796,"Scotland"]
[333,75,"Thomas","Steven","Male",17,1824,"Lanarkshire, Scotland"]
[334,75,"Robert","Steven","Male",13,1828,"Lanarkshire, Scotland"]
[335,75,"John","Steven","Male",9,1832,"Lanarkshire, Scotland"]
[336,75,"James","Steven","Male",7,1834,"Lanarkshire, Scotland"]
[129,76,"Collin","Campbell","Male",30,1811,"Scotland"]
[130,76,"Mary","Campbell","Female",20,1821,"Scotland"]
[131,76,"John","Walker","Male",30,1811,"Scotland"]
[132,76,"Margaret","Wallace","Female",25,1816,"Scotland"]
[133,76,"Robert","Wallace","Male",6,1835,"Scotland"]
[134,76,"Collin","Wallace","Male",0,1841,"Scotland"]
[135,76,"Martha","McNab","Female",20,1821,"Scotland"]
[338,76,"Robert","Campble","Male",50,1791,"Scotland"]
[339,76,"Christiana","Campble","Female",25,1816,"Scotland"]
[340,76,"Catherine","Campble","Female",5,1836,"Scotland"]
[341,76,"James","Campble","Male",3,1838,"Scotland"]
[342,76,"Jennet","Campble","Female",0,1841,"Lanarkshire, Scotland"]
[343,76,"James","Clark","Male",23,1818,"England"]
[344,76,"Mary","McDonald","Female",18,1823,"Scotland"]
[345,76,"Peter","Brodie","Male",20,1821,"Ireland"]
[137,77,"Patrick","McCarn","Male",30,1811,"Ireland"]
[138,77,"Martha","McCarn","Female",30,1811,"Ireland"]
[139,77,"Biddy","McCarn","Female",15,1826,"Ireland"]
[140,77,"Margaret","McCarn","Female",10,1831,"Ireland"]
[141,77,"Patrick","McCarn","Male",5,1836,"Lanarkshire, Scotland"]
[142,77,"Catherine","McCarn","Female",5,1836,"Lanarkshire, Scotland"]
[143,77,"John","McCarn","Male",2,1839,"Lanarkshire, Scotland"]
[347,77,"Andrew","Mitchell","Male",35,1806,"Scotland"]
[348,77,"Elezibeth","Mitchell","Female",34,1807,"Scotland"]
[349,77,"John","Mitchell","Male",10,1831,"Scotland"]
[350,77,"Elezibeth","Mitchell","Female",9,1832,"Lanarkshire, Scotland"]
[145,78,"Peter","Docherty","Male",20,1821,"Ireland"]
[146,78,"Daniel","Sherkey","Male",45,1796,"Ireland"]
[147,78,"Elizabeth","Sherkey","Female",40,1801,"Ireland"]
[148,78,"Mary","Sherkey","Female",20,1821,"Ireland"]
[149,78,"Catherine","Sherkey","Female",13,1828,"Ireland"]
[150,78,"James","Sherkey","Male",15,1826,"Ireland"]
[151,78,"Hugh","Sherkey","Male",11,1830,"Ireland"]
[152,78,"Lowise","Sherkey","Female",9,1832,"Ireland"]
[153,78,"Michael","Sherkey","Female",6,1835,"Ireland"]
[154,78,"Rebecca","Maden","Female",55,1786,"Ireland"]
[155,78,"Rebecca","Maden","Female",15,1826,"Ireland"]
[156,78,"Patrick","Maden","Male",14,1827,"Ireland"]
[157,78,"Ellen","Hanna","Female",30,1811,"Ireland"]
[158,78,"Catherine","Kelly","Female",40,1801,"Ireland"]
[159,78,"John","Cunningham","Male",20,1821,"Ireland"]
[160,78,"Samuel","Cunningham","Male",15,1826,"Ireland"]
[161,78,"Mary","Frirsen","Female",20,1821,"Ireland"]
[162,78,"Thomas","Cunningham","Male",1,1840,"Lanarkshire, Scotland"]
[352,78,"Gilbert","Cowan","Male",27,1814,"Lanarkshire, Scotland"]
[353,78,"Elizabeth","Cowan","Female",24,1817,"England"]
[354,78,"James","Cowan","Male",0,1841,"Lanarkshire, Scotland"]
[355,78,"Mary","Cowan","Female",70,1771,"Lanarkshire, Scotland"]
[164,79,"Alexander","Dobbie","Male",35,1806,"Scotland"]
[165,79,"Agnes","Dobbie","Female",45,1796,"Scotland"]
[166,79,"William","Dobbie","Male",15,1826,"Lanarkshire, Scotland"]
[167,79,"David","Dobbie","Male",13,1828,"Lanarkshire, Scotland"]
[168,79,"Alexander","Dobbie","Male",11,1830,"Lanarkshire, Scotland"]
[169,79,"James","Dobbie","Male",9,1832,"Lanarkshire, Scotland"]
[170,79,"Andrew","Dobbie","Male",7,1834,"Lanarkshire, Scotland"]
[171,79,"John","Algie","Male",20,1821,"Scotland"]
[357,79,"Mary","Turner","Female",45,1796,"Scotland"]
[358,79,"Alexander","Turner","Male",25,1816,"Scotland"]
[359,79,"Agnes","Turner","Female",20,1821,"-"]
[173,80,"John","McFarlane","Male",25,1816,"Scotland"]
[174,80,"Catherine","McFarlane","Female",30,1811,"Scotland"]
[175,80,"Catherine","McFarlane","Female",1,1840,"Lanarkshire, Scotland"]
[361,80,"William","Brekenride","Male",74,1767,"Lanarkshire, Scotland"]
[362,80,"Lillias","Brekenride","Female",73,1768,"Lanarkshire, Scotland"]
[177,81,"Jane","McGill","Female",40,1801,"Lanarkshire, Scotland"]
[178,81,"Jane","McGill","Female",15,1826,"Lanarkshire, Scotland"]
[179,81,"James","McGill","Male",15,1826,"Lanarkshire, Scotland"]
[180,81,"Hugh","McGill","Male",13,1828,"Lanarkshire, Scotland"]
[181,81,"William","McGill","Male",10,1831,"Lanarkshire, Scotland"]
[182,81,"George","McGill","Male",7,1834,"Lanarkshire, Scotland"]
[364,81,"William","Brekenride","Male",30,1811,"Lanarkshire, Scotland"]
[365,81,"Margaret","Brekenride","Female",30,1811,"Scotland"]
[366,81,"James","Lawrie","Male",20,1821,"Lanarkshire, Scotland"]
[367,81,"Agness","Lawrie","Female",20,1821,"Lanarkshire, Scotland"]
[368,81,"Alexander","Lawrie","Male",0,1841,"Lanarkshire, Scotland"]
[369,81,"Helen","Miller","Female",25,1816,"Lanarkshire, Scotland"]
[184,82,"Alexander","Martain","Male",35,1806,"Scotland"]
[185,82,"Farquhar","Martain","Male",20,1821,"Scotland"]
[186,82,"Donald","Martain","Male",4,1837,"Scotland"]
[187,82,"Christian","Martain","Female",31,1810,"Scotland"]
[188,82,"Jessie","Morter","Female",1,1840,"Scotland"]
[189,82,"Margaret","Macinnis","Female",1,1840,"Scotland"]
[371,82,"James","Roberton","Male",45,1796,"Scotland"]
[372,82,"Isabella","Roberton","Female",45,1796,"Scotland"]
[373,82,"Jean","Roberton","Female",20,1821,"Scotland"]
[374,82,"Isabella","Roberton","Female",15,1826,"Scotland"]
[375,82,"Johnston","Roberton","Male",13,1828,"Scotland"]
[376,82,"Mary","Roberton","Female",9,1832,"Lanarkshire, Scotland"]
[377,82,"James","Roberton","Male",5,1836,"Lanarkshire, Scotland"]
[378,82,"Helen","Roberton","Female",13,1828,"-"]
[379,82,"John","Chisholm","Male",20,1821,"England"]
[380,82,"John","Ensing","Male",58,1783,"Scotland"]
[381,82,"James","Coupeer","Male",31,1810,"Lanarkshire, Scotland"]
[382,82,"Jennet","Coupeer","Female",28,1813,"Scotland"]
[383,82,"Jennet","Coupeer","Female",3,1838,"Lanarkshire, Scotland"]
[191,83,"Crawford","Chalmers","Male",40,1801,"Scotland"]
[192,83,"Martha","Chalmers","Female",35,1806,"Scotland"]
[193,83,"David","Chalmers","Male",10,1831,"Lanarkshire, Scotland"]
[194,83,"Ann","Chalmers","Female",5,1836,"Lanarkshire, Scotland"]
[385,83,"Catherine","McLachlan","Female",46,1795,"Scotland"]
[386,83,"Andrew","McLachlan","Male",21,1820,"Lanarkshire, Scotland"]
[196,84,"Peter","Shordan","Male",40,1801,"Ireland"]
[197,84,"Jane","Shordan","Female",20,1821,"Ireland"]
[198,84,"James","Murry","Male",30,1811,"Ireland"]
[199,84,"Barbara","Murry","Female",30,1811,"Ireland"]
[200,84,"Ellen","McDonald","Female",25,1816,"Scotland"]
[201,84,"John","McDonald","Male",2,1839,"Scotland"]
[388,84,"Andrew","Bruce","Male",56,1785,"Scotland"]
[389,84,"William","Bruce","Male",33,1808,"Scotland"]
[390,84,"Agness","Bruce","Female",24,1817,"Scotland"]
[391,84,"Charles","Bruce","Male",22,1819,"Scotland"]
[392,84,"James","Bruce","Male",20,1821,"Scotland"]
[393,84,"Peter","Bruce","Male",16,1825,"Scotland"]
[394,84,"Henry","Bruce","Male",14,1827,"Scotland"]
[203,85,"Helen","O'Hara","Female",60,1781,"Ireland"]
[204,85,"Helen","O'Hara","Female",15,1826,"Lanarkshire, Scotland"]
[205,85,"Ann","O'Hara","Female",14,1827,"Lanarkshire, Scotland"]
[206,85,"Felix","O'Hara","Male",13,1828,"Lanarkshire, Scotland"]
[396,85,"Andrew","Eddie","Male",60,1781,"Lanarkshire, Scotland"]
[397,85,"Elizebith","Eddie","Female",60,1781,"Scotland"]
[398,85,"John","Eddie","Male",25,1816,"Lanarkshire, Scotland"]
[399,85,"James","Eddie","Male",15,1826,"Lanarkshire, Scotland"]
[208,86,"Robert","Mairs","Male",50,1791,"Ireland"]
[209,86,"Sarah","Mairs","Female",51,1790,"Ireland"]
[210,86,"David","Mairs","Male",26,1815,"Lanarkshire, Scotland"]
[211,86,"Sarah","Mairs","Female",18,1823,"Lanarkshire, Scotland"]
[212,86,"Margaret","Mairs","Female",15,1826,"Lanarkshire, Scotland"]
[213,86,"Letitia","Mairs","Female",10,1831,"Lanarkshire, Scotland"]
[214,86,"James","Mairs","Male",6,1835,"Lanarkshire, Scotland"]
[215,86,"Robert","Mairs","Male",4,1837,"Lanarkshire, Scotland"]
[216,86,"Peter","Mairs","Male",2,1839,"Lanarkshire, Scotland"]
[401,86,"Archibald","McAustin","Male",35,1806,"Scotland"]
[402,86,"Jean","McAustin","Female",30,1811,"Lanarkshire, Scotland"]
[403,86,"Archibald","McAustin","Male",9,1832,"Lanarkshire, Scotland"]
[404,86,"Mary","McAustin","Female",5,1836,"Lanarkshire, Scotland"]
[405,86,"Margaret","McAustin","Female",3,1838,"Lanarkshire, Scotland"]
[406,86,"Mary","Campbell","Female",45,1796,"Scotland"]
[218,87,"James","Brigs","Male",35,1806,"Ireland"]
[219,87,"Mary","Brigs","Female",35,1806,"Ireland"]
[220,87,"Margaret","Brigs","Female",10,1831,"Ireland"]
[221,87,"John","Brigs","Male",12,1829,"Ireland"]
[222,87,"Mary","Brigs","Female",7,1834,"Ireland"]
[223,87,"Catherine","Brigs","Female",5,1836,"Ireland"]
[224,87,"James","Brigs","Male",3,1838,"Ireland"]
[225,87,"Mary","McDonald","Female",20,1821,"Scotland"]
[227,88,"Alexander","Cammeron","Male",30,1811,"Scotland"]
[228,88,"Dennis","Thompson","Male",31,1810,"Ireland"]
[229,88,"Susan","Kennedy","Female",25,1816,"Ireland"]
[230,88,"Ann","Kennedy","Female",20,1821,"Ireland"]
[231,88,"Bridget","Shiels","Female",80,1761,"Ireland"]
[232,88,"Hugh","McAllister","Male",13,1828,"Lanarkshire, Scotland"]
[234,89,"Agnes","Feren","Female",40,1801,"Ireland"]
[235,89,"Charles","McMul","Male",14,1827,"Lanarkshire, Scotland"]
[236,89,"John","McMul","Male",4,1837,"Lanarkshire, Scotland"]
[423,97,"James","Coats","Male",35,1806,"Lanarkshire, Scotland"]
[424,97,"Jennet","Coats","Female",20,1821,"Lanarkshire, Scotland"]
[425,97,"Mary","Muir","Female",20,1821,"Lanarkshire, Scotland"]

{"sheet":"age of country of birth","index":3,"n_rows":509,"n_cols":22,"rows_kept":509}
["My Index","Schedule","First name(s)","Last name","Sex","Age","Birth year","Birth place",null,"Age","Scotland","Ireland","England",null,"Total",null,"Age","Scotland","Ireland","England",null,"Total"]
[603,25,"George","Buchanan","Male",0,1841,"Lanarkshire, Scotland",null,"0-5",{"$f":"COUNTIF(H2:H84,\"*Scotland*\")","v":77},{"$f":"COUNTIF(H2:H84,\"*Ireland*\")","v":6},{"$f":"COUNTIF(H2:H84,\"*England*\")","v":0},null,{"$f":"SUM(K2:N2)","v":83},null,"1-15",{"$f":"K2+K5+K9","v":185},{"$f":"L2+L5+L9","v":24},{"$f":"M2+M5+M9","v":1},null,{"$f":"SUM(R2:T2)","v":210}]
[583,36,"Agness","Fitspatrick","Female",0,1841,"Lanarkshire, Scotland"]
[594,38,"David","Miller","Male",0,1841,"Lanarkshire, Scotland",null,"Age","Scotland","Ireland","England",null,"Total",null,"Age","Scotland","Ireland","England",null,"Total"]
[431,44,"Tinlay","Stalker","Male",0,1841,"Lanarkshire, Scotland",null,"6-10",{"$f":"COUNTIF(H85:H142,\"*Scotland*\")","v":50},{"$f":"COUNTIF(H85:H142,\"*Ireland*\")","v":7},{"$f":"COUNTIF(H85:H142,\"*England*\")","v":1},null,{"$f":"SUM(K5:N5)","v":58},null,"16-25",{"$f":"K13+K17","v":73},{"$f":"L13+L17","v":29},{"$f":"M13+M17","v":4},null,{"$f":"SUM(R5:T5)","v":106}]
[453,50,"James","Henderson","Male",0,1841,"Lanarkshire, Scotland"]
[420,54,"Jean","Parcel","Female",0,1841,"Lanarkshire, Scotland",{"$nulls":8},"Age","Scotland","Ireland","England",null,"Total"]
[244,57,"James","McThaen","Male",0,1841,"Lanarkshire, Scotland",null,"Age","Scotland","Ireland","England",null,"Total",null,"26-40",{"$f":"K21+K24","v":81},{"$f":"L21+L24","v":35},{"$f":"M21+M24","v":3},null,{"$f":"SUM(R8:T8)","v":119}]
[256,59,"Nk","-","Male",0,1841,"Lanarkshire, Scotland",null,"11-15",{"$f":"COUNTIF(H143:H212,\"*Scotland*\")","v":58},{"$f":"COUNTIF(H143:H212,\"*Ireland*\")","v":11},{"$f":"COUNTIF(H143:H212,\"*England*\")","v":0},null,{"$f":"SUM(K9:N9)","v":69}]
[25,64,"Thomas","Dalgliesh","Male",0,1841,"Lanarkshire, Scotland",{"$nulls":8},"Age","Scotland","Ireland","England",null,"Total"]
[316,71,"Christinia","Brodie","Female",0,1841,"Lanarkshire, Scotland",{"$nulls":8},"41 and above",{"$f":"K27+K30+K33","v":34},{"$f":"L27+L30+L33","v":27},{"$f":"M27+M30+M33","v":3},null,{"$f":"SUM(R11:T11)","v":64}]
[122,74,"Thomas","McHail","Male",0,1841,"Lanarkshire, Scotland",null,"Age","Scotland","Ireland","England",null,"Total"]
[134,76,"Collin","Wallace","Male",0,1841,"Scotland",null,"16-20",{"$f":"COUNTIF(H213:H273,\"*Scotland*\")","v":39},{"$f":"COUNTIF(H213:H273,\"*Ireland*\")","v":17},{"$f":"COUNTIF(H213:H273,\"*England*\")","v":1},null,{"$f":"SUM(K13:N13)","v":57},{"$nulls":6},{"$f":"V2+V5+V8+V11","v":499}]
[342,76,"Jennet","Campble","Female",0,1841,"Lanarkshire, Scotland",{"$nulls":11},"Not Country of Origin",null,8]
[354,78,"James","Cowan","Male",0,1841,"Lanarkshire, Scotland",{"$nulls":11},"No age",null,1]
[368,81,"Alexander","Lawrie","Male",0,1841,"Lanarkshire, Scotland",null,"Age","Scotland","Ireland","England",null,"Total"]
[526,28,"Daniel","Crossan","Male",1,1840,"Lanarkshire, Scotland",null,"21-25",{"$f":"COUNTIF(H274:H322,\"*Scotland*\")","v":34},{"$f":"COUNTIF(H274:H322,\"*Ireland*\")","v":12},{"$f":"COUNTIF(H274:H322,\"*England*\")","v":3},null,{"$f":"SUM(K17:N17)","v":49},{"$nulls":6},{"$f":"SUM(V13:V16)","v":508}]
[483,39,"Christiane","McIntyre","Female",1,1840,"Lanarkshire, Scotland"]
[470,53,"John","Muir","Male",1,1840,"Lanarkshire, Scotland"]
[255,59,"Alexander","McNeel","Male",1,1840,"Lanarkshire, Scotland",null,"Age","Scotland","Ireland","England",null,"Total"]
[40,66,"Sarah","Dollan","Female",1,1840,"Lanarkshire, Scotland",null,"26-30",{"$f":"COUNTIF(H323:H373,\"*Scotland*\")","v":36},{"$f":"COUNTIF(H323:H373,\"*Ireland*\")","v":13},{"$f":"COUNTIF(H323:H373,\"*England*\")","v":2},null,{"$f":"SUM(K21:N21)","v":51}]
[51,66,"Mary","Dick","Female",1,1840,"Lanarkshire, Scotland"]
[294,67,"Elizabeth","Turnbull","Female",1,1840,"Scotland",null,"Age","Scotland","Ireland","England",null,"Total",null,"Age","Scotland","Ireland","England"]
[79,69,"Thomas","McGowan","Male",1,1840,"Lanarkshire, Scotland",null,"31-40",{"$f":"COUNTIF(H374:H443,\"*Scotland*\")","v":45},{"$f":"COUNTIF(H374:H443,\"*Ireland*\")","v":22},{"$f":"COUNTIF(H374:H443,\"*England*\")","v":1},null,{"$f":"SUM(K24:N24)","v":68},null,"1-15",{"$f":"R2/V2","v":{"v":0.8809523809523809,"d":"88.10%"}},{"$f":"S2/V2","v":{"v":0.11428571428571428,"d":"11.43%"}},{"$f":"T2/V2","v":{"v":0.004761904761904762,"d":"0.48%"}}]
[305,69,"Christina","Gardner","Female",1,1840,"Lanarkshire, Scotland",{"$nulls":8},"16-25",{"$f":"R5/V5","v":{"v":0.6886792452830188,"d":"68.87%"}},{"$f":"S5/V5","v":{"v":0.27358490566037735,"d":"27.36%"}},{"$f":"T5/V5","v":{"v":0.03773584905660377,"d":"3.77%"}}]
[322,72,"Margaret","Naught","Female",1,1840,"Lanarkshire, Scotland",null,"Age","Scotland","Ireland","England",null,"Total",null,"26-40",{"$f":"R8/V8","v":{"v":0.680672268907563,"d":"68.07%"}},{"$f":"S8/V8","v":{"v":0.29411764705882354,"d":"29.41%"}},{"$f":"T8/V8","v":{"v":0.025210084033613446,"d":"2.52%"}}]
[126,75,"Mary","Anderson","Female",1,1840,"Lanarkshire, Scotland",null,"41-50",{"$f":"COUNTIF(H444:H478,\"*Scotland*\")","v":16},{"$f":"COUNTIF(H444:H478,\"*Ireland*\")","v":15},{"$f":"COUNTIF(H444:H478,\"*England*\")","v":3},null,{"$f":"SUM(K27:N27)","v":34},null,"41 and above",{"$f":"R11/V11","v":{"v":0.53125,"d":"53.13%"}},{"$f":"S11/V11","v":{"v":0.421875,"d":"42.19%"}},{"$f":"T11/V11","v":{"v":0.046875,"d":"4.69%"}}]
[162,78,"Thomas","Cunningham","Male",1,1840,"Lanarkshire, Scotland",{"$nulls":9},{"$f":"AVERAGE(R24:R27)","v":{"v":0.6953884737857408,"d":"69.54%"}},{"$f":"AVERAGE(S24:S27)","v":{"v":0.2759658167512288,"d":"27.60%"}},{"$f":"AVERAGE(T24:T27)","v":{"v":0.028645709463030494,"d":"2.86%"}}]
[175,80,"Catherine","McFarlane","Female",1,1840,"Lanarkshire, Scotland",null,"Age","Scotland","Ireland","England",null,"Total"]
[188,82,"Jessie","Morter","Female",1,1840,"Scotland",null,"51-60",{"$f":"COUNTIF(H479:H495,\"*Scotland*\")","v":8},{"$f":"COUNTIF(H479:H495,\"*Ireland*\")","v":9},{"$f":"COUNTIF(H479:H495,\"*England*\")","v":0},null,{"$f":"SUM(K30:N30)","v":17}]
[189,82,"Margaret","Macinnis","Female",1,1840,"Scotland"]
[602,25,"William","Buchanan","Male",2,1839,"Lanarkshire, Scotland",null,"Age","Scotland","Ireland","England",null,"Total"]
[512,26,"Charles","Kerr","Male",2,1839,"Lanarkshire, Scotland",null,"61+",{"$f":"COUNTIF(H496:H508,\"*Scotland*\")","v":10},{"$f":"COUNTIF(H496:H508,\"*Ireland*\")","v":3},{"$f":"COUNTIF(H496:H508,\"*England*\")","v":0},8,{"$f":"SUM(K33:N33)","v":21}]
[261,60,"Robert","Manson","Male",2,1839,"Lanarkshire, Scotland"]
[97,70,"Rob","Orr","Male",2,1839,"Ireland"]
[143,77,"John","McCarn","Male",2,1839,"Lanarkshire, Scotland"]
[201,84,"John","McDonald","Male",2,1839,"Scotland",{"$nulls":6},{"$f":"SUM(O1:O34)","v":507}]
[216,86,"Peter","Mairs","Male",2,1839,"Lanarkshire, Scotland",{"$nulls":5},"No age given",1]
[566,33,"Agness","Sutherland","Female",3,1838,"Lanarkshire, Scotland",{"$nulls":6},{"$f":"O37+O38","v":508}]
[573,34,"Mary","Duffin","Female",3,1838,"Lanarkshire, Scotland"]
[482,39,"James","McIntyre","Male",3,1838,"Lanarkshire, Scotland"]
[430,44,"John","Stalker","Male",3,1838,"Lanarkshire, Scotland"]
[439,46,"Joseph","Laird","Male",3,1838,"Lanarkshire, Scotland"]
[419,54,"Euphemia","Parcel","Female",3,1838,"Lanarkshire, Scotland"]
[11,60,"John","McGregor","Male",3,1838,"Lanarkshire, Scotland"]
[63,67,"James","Hilly","Male",3,1838,"Scotland"]
[311,70,"Neil","Dorrache","Male",3,1838,"Lanarkshire, Scotland"]
[341,76,"James","Campble","Male",3,1838,"Scotland"]
[383,82,"Jennet","Coupeer","Female",3,1838,"Lanarkshire, Scotland"]
[405,86,"Margaret","McAustin","Female",3,1838,"Lanarkshire, Scotland"]
[224,87,"James","Brigs","Male",3,1838,"Ireland"]
[601,25,"Lawrence","Buchanan","Male",4,1837,"Lanarkshire, Scotland"]
[525,28,"Agness","Crossan","Female",4,1837,"Lanarkshire, Scotland"]
[593,38,"Cathern","Miller","Female",4,1837,"Scotland"]
[438,46,"Ann","Laird","Female",4,1837,"Lanarkshire, Scotland"]
[477,53,"Jean","Scott","Female",4,1837,"Lanarkshire, Scotland"]
[413,55,"William","McIlneher","Male",4,1837,"Lanarkshire, Scotland"]
[260,60,"Agness","Manson","Female",4,1837,"Lanarkshire, Scotland"]
[96,70,"James","Orr","Male",4,1837,"Ireland"]
[315,71,"Margaret","Brodie","Female",4,1837,"Lanarkshire, Scotland"]
[118,73,"George","Paterson","Male",4,1837,"Lanarkshire, Scotland"]
[186,82,"Donald","Martain","Male",4,1837,"Scotland"]
[215,86,"Robert","Mairs","Male",4,1837,"Lanarkshire, Scotland"]
[236,89,"John","McMul","Male",4,1837,"Lanarkshire, Scotland"]
[542,30,"David","Gowie","Male",5,1836,"Lanarkshire, Scotland"]
[578,35,"William","Sloan","Male",5,1836,"Lanarkshire, Scotland"]
[481,39,"Isabella","McIntyre","Female",5,1836,"Lanarkshire, Scotland"]
[492,40,"Jennet","Henderson","Female",5,1836,"Lanarkshire, Scotland"]
[457,50,"Jean","Muir","Female",5,1836,"Ireland"]
[476,53,"Isabella","Scott","Female",5,1836,"Lanarkshire, Scotland"]
[254,59,"Jennet","McNeel","Female",5,1836,"Scotland"]
[283,65,"Elizabeth","Henry","Female",5,1836,"Lanarkshire, Scotland"]
[39,66,"Mary","Dollan","Female",5,1836,"Ireland"]
[46,66,"Mary","McGowan","Female",5,1836,"Lanarkshire, Scotland"]
[50,66,"Jane","Dick","Female",5,1836,"Lanarkshire, Scotland"]
[89,70,"George","Bagnell","Male",5,1836,"Lanarkshire, Scotland"]
[93,70,"Mary","O'Bryan","Female",5,1836,"Lanarkshire, Scotland"]
[340,76,"Catherine","Campble","Female",5,1836,"Scotland"]
[141,77,"Patrick","McCarn","Male",5,1836,"Lanarkshire, Scotland"]
[142,77,"Catherine","McCarn","Female",5,1836,"Lanarkshire, Scotland"]
[377,82,"James","Roberton","Male",5,1836,"Lanarkshire, Scotland"]
[194,83,"Ann","Chalmers","Female",5,1836,"Lanarkshire, Scotland"]
[404,86,"Mary","McAustin","Female",5,1836,"Lanarkshire, Scotland"]
[223,87,"Catherine","Brigs","Female",5,1836,"Ireland"]
[600,25,"Jean","Buchanan","Female",6,1835,"Lanarkshire, Scotland"]
[572,34,"Elizabeth","Duffin","Female",6,1835,"Scotland"]
[592,38,"Elizabeth","Miller","Female",6,1835,"Lanarkshire, Scotland"]
[434,45,"Thomas","Jaffray","Male",6,1835,"Lanarkshire, Scotland"]
[437,46,"John","Laird","Male",6,1835,"Lanarkshire, Scotland"]
[412,55,"Mary","McIlneher","Female",6,1835,"Lanarkshire, Scotland"]
[277,64,"Thomas","Spencer","Male",6,1835,"England"]
[133,76,"Robert","Wallace","Male",6,1835,"Scotland"]
[153,78,"Michael","Sherkey","Female",6,1835,"Ireland"]
[214,86,"James","Mairs","Male",6,1835,"Lanarkshire, Scotland"]
[511,26,"Mary","Kerr","Female",7,1834,"Lanarkshire, Scotland"]
[467,53,"Alexander","Little","Male",7,1834,"Lanarkshire, Scotland"]
[418,54,"Marian","Parcel","Female",7,1834,"Lanarkshire, Scotland"]
[282,65,"Samuel","Henry","Male",7,1834,"Lanarkshire, Scotland"]
[300,68,"Racheal","Muir","Female",7,1834,"Lanarkshire, Scotland"]
[117,73,"Margaret","Paterson","Female",7,1834,"Lanarkshire, Scotland"]
[336,75,"James","Steven","Male",7,1834,"Lanarkshire, Scotland"]
[170,79,"Andrew","Dobbie","Male",7,1834,"Lanarkshire, Scotland"]
[182,81,"George","McGill","Male",7,1834,"Lanarkshire, Scotland"]
[222,87,"Mary","Brigs","Female",7,1834,"Ireland"]
[599,25,"John","Buchanan","Male",8,1833,"Lanarkshire, Scotland"]
[571,34,"James","Duffin","Male",8,1833,"Scotland"]
[582,36,"Mary","Fitspatrick","Female",8,1833,"Lanarkshire, Scotland"]
[411,55,"Jennet","McIlneher","Female",8,1833,"Lanarkshire, Scotland"]
[33,65,"Terressy","Marlay","Female",8,1833,"Lanarkshire, Scotland"]
[326,73,"Mary","Smith","Female",8,1833,"Lanarkshire, Scotland"]
[491,40,"George","Henderson","Male",9,1832,"Lanarkshire, Scotland"]
[267,61,"Isabell","Carter","Female",9,1832,"Lanarkshire, Scotland"]
[26,64,"Mary","Allan","Female",9,1832,"Scotland"]
[281,65,"George","Henry","Male",9,1832,"Lanarkshire, Scotland"]
[335,75,"John","Steven","Male",9,1832,"Lanarkshire, Scotland"]
[350,77,"Elezibeth","Mitchell","Female",9,1832,"Lanarkshire, Scotland"]
[152,78,"Lowise","Sherkey","Female",9,1832,"Ireland"]
[169,79,"James","Dobbie","Male",9,1832,"Lanarkshire, Scotland"]
[376,82,"Mary","Roberton","Female",9,1832,"Lanarkshire, Scotland"]
[403,86,"Archibald","McAustin","Male",9,1832,"Lanarkshire, Scotland"]
[598,25,"David","Buchanan","Male",10,1831,"Lanarkshire, Scotland"]
[524,28,"Catherine","Crossan","Female",10,1831,"Lanarkshire, Scotland"]
[549,31,"Robert","Nichal","Male",10,1831,"Ireland"]
[577,35,"Ann","Sloan","Female",10,1831,"Lanarkshire, Scotland"]
[587,37,"Robert","Smith","Male",10,1831,"Scotland"]
[487,39,"Jean","Shaw","Female",10,1831,"Lanarkshire, Scotland"]
[475,53,"Allan","Scott","Male",10,1831,"Lanarkshire, Scotland"]
[55,67,"Mary","Hanna","Female",10,1831,"Scotland"]
[60,67,"Archibald","Thomson","Male",10,1831,"Scotland"]
[82,69,"Janet","Stewart","Female",10,1831,"Scotland"]
[83,69,"Hamilton","Hay","Male",10,1831,"Lanarkshire, Scotland"]
[85,69,"Agnes","McKean","Female",10,1831,"Scotland"]
[90,70,"John","O'Bryan","Male",10,1831,"Lanarkshire, Scotland"]
[91,70,"Philip","O'Bryan","Male",10,1831,"Ireland"]
[92,70,"Penelopy","O'Bryan","Female",10,1831,"Lanarkshire, Scotland"]
[116,73,"Jenat","Paterson","Female",10,1831,"Lanarkshire, Scotland"]
[140,77,"Margaret","McCarn","Female",10,1831,"Ireland"]
[349,77,"John","Mitchell","Male",10,1831,"Scotland"]
[181,81,"William","McGill","Male",10,1831,"Lanarkshire, Scotland"]
[193,83,"David","Chalmers","Male",10,1831,"Lanarkshire, Scotland"]
[213,86,"Letitia","Mairs","Female",10,1831,"Lanarkshire, Scotland"]
[220,87,"Margaret","Brigs","Female",10,1831,"Ireland"]
[554,32,"Timothy","McCaul","Male",11,1830,"Ireland"]
[465,52,"Mary","Little","Female",11,1830,"Lanarkshire, Scotland"]
[32,65,"Mary","Marlay","Female",11,1830,"Lanarkshire, Scotland"]
[151,78,"Hugh","Sherkey","Male",11,1830,"Ireland"]
[168,79,"Alexander","Dobbie","Male",11,1830,"Lanarkshire, Scotland"]
[570,34,"Margaret","Dufin","Female",12,1829,"Scotland"]
[429,44,"Isabela","Stalker","Female",12,1829,"Lanarkshire, Scotland"]
[454,50,"Agness","Agnew","Female",12,1829,"Lanarkshire, Scotland"]
[31,65,"Bridget","Marlay","Female",12,1829,"Lanarkshire, Scotland"]
[293,67,"Robert","Turnbull","Male",12,1829,"Scotland"]
[310,70,"David","Dorrache","Male",12,1829,"Lanarkshire, Scotland"]
[221,87,"John","Brigs","Male",12,1829,"Ireland"]
[519,27,"Margaret","Carmicheal","Female",13,1828,"Lanarkshire, Scotland"]
[535,29,"John","Crossan","Male",13,1828,"Lanarkshire, Scotland"]
[541,30,"Ann","Gowie","Female",13,1828,"Scotland"]
[565,33,"James","Sutherland","Male",13,1828,"Lanarkshire, Scotland"]
[588,37,"Lillias","Smith","Female",13,1828,"Lanarkshire, Scotland"]
[464,52,"Robert","Little","Male",13,1828,"Lanarkshire, Scotland"]
[410,55,"Margaret","McIlneher","Female",13,1828,"Lanarkshire, Scotland"]
[249,58,"Sarah","Goodwin","Female",13,1828,"Scotland"]
[299,68,"James","Muir","Male",13,1828,"Lanarkshire, Scotland"]
[334,75,"Robert","Steven","Male",13,1828,"Lanarkshire, Scotland"]
[149,78,"Catherine","Sherkey","Female",13,1828,"Ireland"]
[167,79,"David","Dobbie","Male",13,1828,"Lanarkshire, Scotland"]
[180,81,"Hugh","McGill","Male",13,1828,"Lanarkshire, Scotland"]
[375,82,"Johnston","Roberton","Male",13,1828,"Scotland"]
[378,82,"Helen","Roberton","Female",13,1828,"-"]
[206,85,"Felix","O'Hara","Male",13,1828,"Lanarkshire, Scotland"]
[232,88,"Hugh","McAllister","Male",13,1828,"Lanarkshire, Scotland"]
[486,39,"James","Shaw","Male",14,1827,"Lanarkshire, Scotland"]
[448,48,"M Wm","Barclay","Male",14,1827,"Scotland"]
[474,53,"Archabilad","Scott","Male",14,1827,"Lanarkshire, Scotland"]
[30,65,"Ann","Marlay","Female",14,1827,"Lanarkshire, Scotland"]
[156,78,"Patrick","Maden","Male",14,1827,"Ireland"]
[394,84,"Henry","Bruce","Male",14,1827,"Scotland"]
[205,85,"Ann","O'Hara","Female",14,1827,"Lanarkshire, Scotland"]
[235,89,"Charles","McMul","Male",14,1827,"Lanarkshire, Scotland"]
[518,27,"Agness","Carmicheal","Female",15,1826,"Lanarkshire, Scotland"]
[529,28,"Pat","Backs","Male",15,1826,"Ireland"]
[534,29,"Mary","Crossan","Female",15,1826,"Lanarkshire, Scotland"]
[537,29,"Nancy","Docherty","Female",15,1826,"Ireland"]
[564,33,"Barbra","Sutherland","Female",15,1826,"Lanarkshire, Scotland"]
[576,35,"John","Sloan","Male",15,1826,"Lanarkshire, Scotland"]
[485,39,"Neil","Shaw","Male",15,1826,"Lanarkshire, Scotland"]
[473,53,"William","Scott","Male",15,1826,"Lanarkshire, Scotland"]
[409,55,"James","McIlneher","Male",15,1826,"Lanarkshire, Scotland"]
[45,66,"Patrick","McGowan","Male",15,1826,"Lanarkshire, Scotland"]
[289,66,"Isabella","Freil","Female",15,1826,"Lanarkshire, Scotland"]
[65,67,"John","Knox","Male",15,1826,"Scotland"]
[70,68,"Margaret","Gillies","Female",15,1826,"Lanarkshire, Scotland"]
[298,68,"William","Anderson","Male",15,1826,"Lanarkshire, Scotland"]
[309,70,"Charles","Dorrache","Male",15,1826,"Lanarkshire, Scotland"]
[103,71,"William","Stewart","Male",15,1826,"Scotland"]
[106,71,"Alexander","Fraser","Male",15,1826,"Scotland"]
[107,71,"Angus","Fraser","Male",15,1826,"Scotland"]
[320,72,"Jean","Johnston","Female",15,1826,"Lanarkshire, Scotland"]
[139,77,"Biddy","McCarn","Female",15,1826,"Ireland"]
[150,78,"James","Sherkey","Male",15,1826,"Ireland"]
[155,78,"Rebecca","Maden","Female",15,1826,"Ireland"]
[160,78,"Samuel","Cunningham","Male",15,1826,"Ireland"]
[166,79,"William","Dobbie","Male",15,1826,"Lanarkshire, Scotland"]
[178,81,"Jane","McGill","Female",15,1826,"Lanarkshire, Scotland"]
[179,81,"James","McGill","Male",15,1826,"Lanarkshire, Scotland"]
[374,82,"Isabella","Roberton","Female",15,1826,"Scotland"]
[204,85,"Helen","O'Hara","Female",15,1826,"Lanarkshire, Scotland"]
[399,85,"James","Eddie","Male",15,1826,"Lanarkshire, Scotland"]
[212,86,"Margaret","Mairs","Female",15,1826,"Lanarkshire, Scotland"]
[523,28,"Peter","Crossan","Male",16,1825,"Lanarkshire, Scotland"]
[393,84,"Peter","Bruce","Male",16,1825,"Scotland"]
[463,52,"James","Little","Male",17,1824,"Lanarkshire, Scotland"]
[248,58,"Mary","Goodwin","Female",17,1824,"Scotland"]
[333,75,"Thomas","Steven","Male",17,1824,"Lanarkshire, Scotland"]
[538,29,"Mary","Docherty","Female",18,1823,"Ireland"]
[556,32,"Archibald","Melen","Male",18,1823,"Ireland"]
[586,37,"Elezibeth","Smith","Female",18,1823,"Lanarkshire, Scotland"]
[447,48,"Margaret","Barclay","Female",18,1823,"-"]
[288,66,"Rosanah","Freil","Female",18,1823,"Lanarkshire, Scotland"]
[127,75,"John","Henderson","Male",18,1823,"Lanarkshire, Scotland"]
[344,76,"Mary","McDonald","Female",18,1823,"Scotland"]
[211,86,"Sarah","Mairs","Female",18,1823,"Lanarkshire, Scotland"]
[495,40,"John","Wright","Male",19,1822,"Scotland"]
[445,48,"Jean","Cameron","Female",19,1822,"Lanarkshire, Scotland"]
[417,54,"Martha","Parcel","Female",19,1822,"Lanarkshire, Scotland"]
[533,29,"Bryce","Sumers","Male",20,1821,"Ireland"]
[536,29,"Mary","Docherty","Female",20,1821,"Ireland"]
[546,31,"Margaret","McIlneher","Female",20,1821,"Lanarkshire, Scotland"]
[557,32,"James","Kettley","Male",20,1821,"Ireland"]
[559,32,"Mary","McCaul","Female",20,1821,"Ireland"]
[562,33,"Janet","Scott","Female",20,1821,"Lanarkshire, Scotland"]
[443,47,"Margaret","Cameron","Female",20,1821,"Lanarkshire, Scotland"]
[446,48,"Marian","Barclay","Female",20,1821,"Lanarkshire, Scotland"]
[421,54,"Jean","Anderson","Female",20,1821,"-"]
[243,57,"Ann","McThaen","Female",20,1821,"Ireland"]
[262,60,"Jean","Simpson","Female",20,1821,"-"]
[19,63,"James","Spright","Male",20,1821,"Lanarkshire, Scotland"]
[35,65,"Sarah","McCallay","Female",20,1821,"Lanarkshire, Scotland"]
[42,66,"Isabella","Grieve","Female",20,1821,"Lanarkshire, Scotland"]
[48,66,"Mary","Alexander","Female",20,1821,"Lanarkshire, Scotland"]
[287,66,"Bridget","Freil","Female",20,1821,"Ireland"]
[64,67,"John","Green","Male",20,1821,"Ireland"]
[69,68,"Archibald","Gillies","Male",20,1821,"Lanarkshire, Scotland"]
[71,68,"Thomas","Paterson","Male",20,1821,"Lanarkshire, Scotland"]
[80,69,"Elizabeth","McGowan","Female",20,1821,"Ireland"]
[84,69,"Barbara","Ross","Female",20,1821,"Scotland"]
[102,71,"Alexander","Crooks","Male",20,1821,"Scotland"]
[104,71,"William","Anderson","Male",20,1821,"Scotland"]
[105,71,"William","Moffer","Male",20,1821,"Lanarkshire, Scotland"]
[108,71,"John","Oswald","Male",20,1821,"Scotland"]
[319,72,"Robert","Johnston","Male",20,1821,"Lanarkshire, Scotland"]
[321,72,"Margaret","Taylor","Female",20,1821,"Lanarkshire, Scotland"]
[125,75,"Janet","Anderson","Female",20,1821,"Lanarkshire, Scotland"]
[130,76,"Mary","Campbell","Female",20,1821,"Scotland"]
[135,76,"Martha","McNab","Female",20,1821,"Scotland"]
[345,76,"Peter","Brodie","Male",20,1821,"Ireland"]
[145,78,"Peter","Docherty","Male",20,1821,"Ireland"]
[148,78,"Mary","Sherkey","Female",20,1821,"Ireland"]
[159,78,"John","Cunningham","Male",20,1821,"Ireland"]
[161,78,"Mary","Frirsen","Female",20,1821,"Ireland"]
[171,79,"John","Algie","Male",20,1821,"Scotland"]
[359,79,"Agnes","Turner","Female",20,1821,"-"]
[366,81,"James","Lawrie","Male",20,1821,"Lanarkshire, Scotland"]
[367,81,"Agness","Lawrie","Female",20,1821,"Lanarkshire, Scotland"]
[185,82,"Farquhar","Martain","Male",20,1821,"Scotland"]
[373,82,"Jean","Roberton","Female",20,1821,"Scotland"]
[379,82,"John","Chisholm","Male",20,1821,"England"]
[197,84,"Jane","Shordan","Female",20,1821,"Ireland"]
[392,84,"James","Bruce","Male",20,1821,"Scotland"]
[225,87,"Mary","McDonald","Female",20,1821,"Scotland"]
[230,88,"Ann","Kennedy","Female",20,1821,"Ireland"]
[424,97,"Jennet","Coats","Female",20,1821,"Lanarkshire, Scotland"]
[425,97,"Mary","Muir","Female",20,1821,"Lanarkshire, Scotland"]
[386,83,"Andrew","McLachlan","Male",21,1820,"Lanarkshire, Scotland"]
[550,31,"Thomas","Cully","Male",22,1819,"Ireland"]
[273,63,"Mary","Scouler","Female",22,1819,"Scotland"]
[391,84,"Charles","Bruce","Male",22,1819,"Scotland"]
[343,76,"James","Clark","Male",23,1818,"England"]
[258,60,"John","Manson","Male",24,1817,"Lanarkshire, Scotland"]
[259,60,"Manrien","Manson","Female",24,1817,"Lanarkshire, Scotland"]
[353,78,"Elizabeth","Cowan","Female",24,1817,"England"]
[390,84,"Agness","Bruce","Female",24,1817,"Scotland"]
[597,25,"Margaret","Buchanan","Female",25,1816,"Lanarkshire, Scotland"]
[509,26,"Charles","Kerr","Male",25,1816,"Ireland"]
[510,26,"Sally","Kerr","Female",25,1816,"Ireland"]
[543,30,"Jean","Ingles","Female",25,1816,"Scotland"]
[545,31,"William","McIlneher","Male",25,1816,"Lanarkshire, Scotland"]
[555,32,"John","Melen","Male",25,1816,"Ireland"]
[561,33,"William","Scott","Male",25,1816,"Scotland"]
[581,36,"Jennet","Fitspatrick","Female",25,1816,"Lanarkshire, Scotland"]
[590,38,"James","Miller","Male",25,1816,"Lanarkshire, Scotland"]
[591,38,"Elizabeth","Miller","Female",25,1816,"Lanarkshire, Scotland"]
[480,39,"Isabella","McIntyre","Female",25,1816,"Lanarkshire, Scotland"]
[493,40,"Alex","Chinies","Male",25,1816,"Scotland"]
[451,49,"Elizabeth","Henderson","Female",25,1816,"Scotland"]
[468,53,"John","Muir","Male",25,1816,"Ireland"]
[469,53,"Elizabeth","Muir","Female",25,1816,"England"]
[242,57,"Terrence","McThaen","Male",25,1816,"Ireland"]
[252,59,"John","McNeel","Male",25,1816,"Scotland"]
[253,59,"Margaret","McNeel","Female",25,1816,"Scotland"]
[9,60,"Ann","Leatch","Female",25,1816,"Lanarkshire, Scotland"]
[10,60,"John","Leatch","Male",25,1816,"Lanarkshire, Scotland"]
[17,62,"Catherine","McLaghlen","Female",25,1816,"Lanarkshire, Scotland"]
[272,63,"Robert","Scouler","Male",25,1816,"Lanarkshire, Scotland"]
[23,64,"John","Dalgliesh","Male",25,1816,"Scotland"]
[24,64,"Ellen","Dalgliesh","Female",25,1816,"Scotland"]
[286,66,"Susey","Freil","Female",25,1816,"Ireland"]
[62,67,"-","Hilly","Female",25,1816,"Ireland"]
[78,69,"James","McGowan","Male",25,1816,"Scotland"]
[87,70,"Hugh","Bagnell","Male",25,1816,"Lanarkshire, Scotland"]
[94,70,"John","Orr","Male",25,1816,"Ireland"]
[95,70,"Margaret","Orr","Female",25,1816,"Ireland"]
[121,74,"Margaret","McGillion","Female",25,1816,"Ireland"]
[124,75,"David","Anderson","Male",25,1816,"Scotland"]
[132,76,"Margaret","Wallace","Female",25,1816,"Scotland"]
[339,76,"Christiana","Campble","Female",25,1816,"Scotland"]
[358,79,"Alexander","Turner","Male",25,1816,"Scotland"]
[173,80,"John","McFarlane","Male",25,1816,"Scotland"]
[369,81,"Helen","Miller","Female",25,1816,"Lanarkshire, Scotland"]
[200,84,"Ellen","McDonald","Female",25,1816,"Scotland"]
[398,85,"John","Eddie","Male",25,1816,"Lanarkshire, Scotland"]
[229,88,"Susan","Kennedy","Female",25,1816,"Ireland"]
[415,54,"James","Parcel","Male",26,1815,"Lanarkshire, Scotland"]
[210,86,"David","Mairs","Male",26,1815,"Lanarkshire, Scotland"]
[239,56,"Sophia","Dougald","Female",27,1814,"Ireland"]
[352,78,"Gilbert","Cowan","Male",27,1814,"Lanarkshire, Scotland"]
[494,40,"James","Leviston","Male",28,1813,"Scotland"]
[34,65,"Bridget","McAvoy","Female",28,1813,"Ireland"]
[279,65,"Mathew","Henry","Male",28,1813,"Lanarkshire, Scotland"]
[292,67,"Catherine","Turnbull","Female",28,1813,"Scotland"]
[382,82,"Jennet","Coupeer","Female",28,1813,"Scotland"]
[540,30,"Margaret","Gowie","Female",29,1812,"Scotland"]
[280,65,"Agness","Henry","Female",29,1812,"Ireland"]
[303,69,"Henry","Gardner","Male",29,1812,"Scotland"]
[513,26,"Agness","Mardy","Female",30,1811,"Lanarkshire, Scotland"]
[531,29,"John","Sumers","Male",30,1811,"Ireland"]
[552,32,"Thomas","McCaul","Male",30,1811,"Ireland"]
[553,32,"Rosanah","McCaul","Female",30,1811,"Ireland"]
[580,36,"John","Fitspatrick","Male",30,1811,"Lanarkshire, Scotland"]
[479,39,"James","McIntyre","Male",30,1811,"Lanarkshire, Scotland"]
[490,40,"Jean","Henderson","Female",30,1811,"Scotland"]
[507,43,"Helen","Stevenson","Female",30,1811,"Lanarkshire, Scotland"]
[436,46,"Walter","Laird","Male",30,1811,"Scotland"]
[450,49,"David","Henderson","Male",30,1811,"Scotland"]
[416,54,"Martha","Parcel","Female",30,1811,"Scotland"]
[238,56,"Walter","Dougald","Male",30,1811,"Lanarkshire, Scotland"]
[2,59,"George","Knox","Male",30,1811,"Lanarkshire, Scotland"]
[265,61,"Margaret","Carter","Female",30,1811,"Lanarkshire, Scotland"]
[270,62,"Isabella","Sumpson","Female",30,1811,"Lanarkshire, Scotland"]
[20,63,"Colven","Woods","Male",30,1811,"Ireland"]
[275,64,"John","Spencer","Male",30,1811,"England"]
[276,64,"Marrion","Spencer","Female",30,1811,"England"]
[41,66,"Henry","Grieve","Male",30,1811,"Lanarkshire, Scotland"]
[61,67,"James","Hilly","Male",30,1811,"Scotland"]
[301,68,"Margaret","Rankin","Female",30,1811,"Lanarkshire, Scotland"]
[304,69,"Jean","Gardner","Female",30,1811,"Scotland"]
[308,70,"Janet","Dorrache","Female",30,1811,"Lanarkshire, Scotland"]
[109,71,"Jane","Murry","Female",30,1811,"Scotland"]
[324,73,"Mathew","King","Male",30,1811,"Lanarkshire, Scotland"]
[325,73,"Christiana","King Sr","Female",30,1811,"Lanarkshire, Scotland"]
[120,74,"Thomas","McHail","Male",30,1811,"Ireland"]
[129,76,"Collin","Campbell","Male",30,1811,"Scotland"]
[131,76,"John","Walker","Male",30,1811,"Scotland"]
[137,77,"Patrick","McCarn","Male",30,1811,"Ireland"]
[138,77,"Martha","McCarn","Female",30,1811,"Ireland"]
[157,78,"Ellen","Hanna","Female",30,1811,"Ireland"]
[174,80,"Catherine","McFarlane","Female",30,1811,"Scotland"]
[364,81,"William","Brekenride","Male",30,1811,"Lanarkshire, Scotland"]
[365,81,"Margaret","Brekenride","Female",30,1811,"Scotland"]
[198,84,"James","Murry","Male",30,1811,"Ireland"]
[199,84,"Barbara","Murry","Female",30,1811,"Ireland"]
[402,86,"Jean","McAustin","Female",30,1811,"Lanarkshire, Scotland"]
[227,88,"Alexander","Cammeron","Male",30,1811,"Scotland"]
[455,50,"Hendry","Muir","Male",31,1810,"Ireland"]
[187,82,"Christian","Martain","Female",31,1810,"Scotland"]
[381,82,"James","Coupeer","Male",31,1810,"Lanarkshire, Scotland"]
[228,88,"Dennis","Thompson","Male",31,1810,"Ireland"]
[389,84,"William","Bruce","Male",33,1808,"Scotland"]
[521,28,"Peter","Crossan","Male",34,1807,"Ireland"]
[264,61,"Andrew","Carter","Male",34,1807,"Scotland"]
[269,62,"John","Sumpson","Male",34,1807,"Lanarkshire, Scotland"]
[291,67,"Robert","Turnbull","Male",34,1807,"Scotland"]
[348,77,"Elezibeth","Mitchell","Female",34,1807,"Scotland"]
[596,25,"John","Buchanan","Male",35,1806,"Lanarkshire, Scotland"]
[563,33,"Margaret","Sutherland","Female",35,1806,"Lanarkshire, Scotland"]
[569,34,"Elizabeth","Dufin","Female",35,1806,"Ireland"]
[489,40,"George","Henderson","Male",35,1806,"Scotland"]
[503,42,"Archibald","Wilson","Male",35,1806,"-"]
[428,44,"Margaret","Stalker","Female",35,1806,"Scotland"]
[472,53,"Allan","Scott","Male",35,1806,"Lanarkshire, Scotland"]
[3,59,"William","Ingles","Male",35,1806,"Lanarkshire, Scotland"]
[5,59,"James","Buchanan","Male",35,1806,"Lanarkshire, Scotland"]
[6,59,"James","Davie","Male",35,1806,"Scotland"]
[37,66,"Michael","Dollan","Male",35,1806,"Ireland"]
[38,66,"Sarah","Dollan","Female",35,1806,"Ireland"]
[57,67,"William","Doherty","Male",35,1806,"Ireland"]
[59,67,"Archibald","Thomson","Male",35,1806,"Scotland"]
[112,72,"Sarah","Dalrumple","Female",35,1806,"Ireland"]
[114,73,"Hugh","Paterson","Male",35,1806,"Scotland"]
[115,73,"Margaret","Paterson","Female",35,1806,"Scotland"]
[347,77,"Andrew","Mitchell","Male",35,1806,"Scotland"]
[164,79,"Alexander","Dobbie","Male",35,1806,"Scotland"]
[184,82,"Alexander","Martain","Male",35,1806,"Scotland"]
[192,83,"Martha","Chalmers","Female",35,1806,"Scotland"]
[401,86,"Archibald","McAustin","Male",35,1806,"Scotland"]
[218,87,"James","Brigs","Male",35,1806,"Ireland"]
[219,87,"Mary","Brigs","Female",35,1806,"Ireland"]
[423,97,"James","Coats","Male",35,1806,"Lanarkshire, Scotland"]
[506,43,"William","Stevenson","Male",36,1805,"Lanarkshire, Scotland"]
[456,50,"Mary","Muir","Female",36,1805,"Ireland"]
[307,70,"Charles","Dorrache","Male",37,1804,"Lanarkshire, Scotland"]
[522,28,"Ann","Crossan","Female",38,1803,"Ireland"]
[568,34,"Charles","Dufin","Male",38,1803,"Ireland"]
[408,55,"Jennet","McIlneher","Female",38,1803,"Scotland"]
[314,71,"Isabella","Brodie","Female",38,1803,"Lanarkshire, Scotland"]
[516,27,"John","Carmicheal","Male",40,1801,"Lanarkshire, Scotland"]
[517,27,"Helen","Carmicheal","Female",40,1801,"Lanarkshire, Scotland"]
[532,29,"Nancy","Sumers","Female",40,1801,"Ireland"]
[575,35,"Catherine","Sloan","Female",40,1801,"England"]
[585,37,"Jennet","Smith","Female",40,1801,"Scotland"]
[484,39,"Jean","Shaw","Female",40,1801,"Lanarkshire, Scotland"]
[498,41,"Susan","McGregor","Female",40,1801,"Lanarkshire, Scotland"]
[427,44,"Finlay","Stalker","Male",40,1801,"Scotland"]
[246,58,"Michael","Goodwin","Male",40,1801,"Ireland"]
[4,59,"Alexander","Grieve","Male",40,1801,"Scotland"]
[16,62,"Jane","McLaghlen","Female",40,1801,"Scotland"]
[29,65,"Mary","Marlay","Female",40,1801,"Ireland"]
[43,66,"Patrick","McGowan","Male",40,1801,"Ireland"]
[44,66,"Mary","McGowan","Female",40,1801,"Ireland"]
[49,66,"Catherine","Dick","Female",40,1801,"Lanarkshire, Scotland"]
[56,67,"Catherine","Boyle","Female",40,1801,"Lanarkshire, Scotland"]
[296,68,"James","Anderson","Male",40,1801,"Scotland"]
[297,68,"Elizabeth","Anderson","Female",40,1801,"Lanarkshire, Scotland"]
[74,69,"James","Dowie","Male",40,1801,"Scotland"]
[88,70,"Mary","Bagnell","Female",40,1801,"-"]
[101,71,"John","Dodds","Male",40,1801,"Lanarkshire, Scotland"]
[317,71,"Mary","Stewart","Female",40,1801,"Scotland"]
[147,78,"Elizabeth","Sherkey","Female",40,1801,"Ireland"]
[158,78,"Catherine","Kelly","Female",40,1801,"Ireland"]
[177,81,"Jane","McGill","Female",40,1801,"Lanarkshire, Scotland"]
[191,83,"Crawford","Chalmers","Male",40,1801,"Scotland"]
[196,84,"Peter","Shordan","Male",40,1801,"Ireland"]
[234,89,"Agnes","Feren","Female",40,1801,"Ireland"]
[499,41,"Janet","McGregor","Female",45,1796,"Lanarkshire, Scotland"]
[1,59,"John","Hamilton","Male",45,1796,"Scotland"]
[285,66,"Isabella","Freil","Female",45,1796,"Ireland"]
[53,67,"Patrick","Hanna","Male",45,1796,"Ireland"]
[54,67,"-","Hanna","Female",45,1796,"Ireland"]
[67,68,"Robert","Gillies","Male",45,1796,"Ireland"]
[75,69,"Janet","Dowie","Female",45,1796,"Scotland"]
[81,69,"William","McKean","Male",45,1796,"Ireland"]
[332,75,"Helen","Steven","Female",45,1796,"Scotland"]
[146,78,"Daniel","Sherkey","Male",45,1796,"Ireland"]
[165,79,"Agnes","Dobbie","Female",45,1796,"Scotland"]
[357,79,"Mary","Turner","Female",45,1796,"Scotland"]
[371,82,"James","Roberton","Male",45,1796,"Scotland"]
[372,82,"Isabella","Roberton","Female",45,1796,"Scotland"]
[406,86,"Mary","Campbell","Female",45,1796,"Scotland"]
[462,52,"James","Little","Male",46,1795,"England"]
[471,53,"Robert","Muir","Male",46,1795,"Ireland"]
[385,83,"Catherine","McLachlan","Female",46,1795,"Scotland"]
[331,75,"Robert","Steven","Male",49,1792,"Scotland"]
[514,26,"Jennet","Adams","Female",50,1791,"Ireland"]
[547,31,"Robert","Nichal","Male",50,1791,"Ireland"]
[548,31,"Ann","Nichal","Female",50,1791,"Ireland"]
[558,32,"Helen","McNaulty","Female",50,1791,"Ireland"]
[504,42,"Jonas","Wilson","Female",50,1791,"England"]
[442,47,"Mary","Cameron","Female",50,1791,"Lanarkshire, Scotland"]
[459,51,"James","Finlater","Male",50,1791,"Lanarkshire, Scotland"]
[460,51,"Ann","Finlater","Female",50,1791,"Lanarkshire, Scotland"]
[250,58,"Francis","Mulqueen","Male",50,1791,"Ireland"]
[58,67,"Thomas","White","Male",50,1791,"Scotland"]
[68,68,"Sarah","Gillies","Female",50,1791,"England"]
[77,69,"Elizabeth","Short","Female",50,1791,"Ireland"]
[99,70,"Cathern","Horn","Female",50,1791,"Ireland"]
[110,71,"Agnes","Dalglish","Female",50,1791,"-"]
[338,76,"Robert","Campble","Male",50,1791,"Scotland"]
[208,86,"Robert","Mairs","Male",50,1791,"Ireland"]
[209,86,"Sarah","Mairs","Female",51,1790,"Ireland"]
[433,45,"John","Ramsay","Male",54,1787,"Scotland"]
[527,28,"Ann","Harison","Female",55,1786,"Ireland"]
[73,69,"Emellea","Dillan","Female",55,1786,"Ireland"]
[76,69,"Thomas","Short","Male",55,1786,"Ireland"]
[154,78,"Rebecca","Maden","Female",55,1786,"Ireland"]
[497,41,"Daniel","McGregor","Male",56,1785,"Lanarkshire, Scotland"]
[313,71,"Robert","Brodie","Male",56,1785,"Lanarkshire, Scotland"]
[388,84,"Andrew","Bruce","Male",56,1785,"Scotland"]
[380,82,"John","Ensing","Male",58,1783,"Scotland"]
[528,28,"Thomas","Higgins","Male",60,1781,"Ireland"]
[247,58,"Mary","Goodwin","Female",60,1781,"Ireland"]
[13,61,"William","White","Male",60,1781,"Lanarkshire, Scotland"]
[98,70,"Torrance","Horn","Male",60,1781,"Ireland"]
[203,85,"Helen","O'Hara","Female",60,1781,"Ireland"]
[396,85,"Andrew","Eddie","Male",60,1781,"Lanarkshire, Scotland"]
[397,85,"Elizebith","Eddie","Female",60,1781,"Scotland"]
[501,42,"Peter","McNaught","Male",61,1780,"Scotland"]
[329,74,"Agness","Durrah","Female",62,1779,"Lanarkshire, Scotland"]
[502,42,"Ellison","McNaught","Female",65,1776,"Scotland"]
[440,46,"Janet","Laird","Female",65,1776,"Scotland"]
[240,56,"David","Dougald","Male",65,1776,"Scotland"]
[8,60,"Margaret","Leatch","Female",70,1771,"Lanarkshire, Scotland"]
[355,78,"Mary","Cowan","Female",70,1771,"Lanarkshire, Scotland"]
[362,80,"Lillias","Brekenride","Female",73,1768,"Lanarkshire, Scotland"]
[361,80,"William","Brekenride","Male",74,1767,"Lanarkshire, Scotland"]
[15,62,"Margaret","McLachlen","Female",75,1766,"Scotland"]
[47,66,"Widow","McDead","Female",75,1766,"Ireland"]
[231,88,"Bridget","Shiels","Female",80,1761,"Ireland"]
[328,74,"Charles","Durrah","Male",82,1759,"Ireland"]
[266,61,"Andrew","Carter","Male","-","-","Lanarkshire, Scotland"]

{"sheet":"sex of residents","index":4,"n_rows":606,"n_cols":18,"rows_kept":606}
[null,null,"FEMALES",254,{"$nulls":6},"MALES",254,null,"that is surprising !!!"]
[]
["My Index","Schedule","First name(s)","Last name","Sex","Age","Birth year","Birth place",null,"My Index","Schedule","First name(s)","Last name","Sex","Age","Birth year","Birth place"]
[8,60,"Margaret","Leatch","Female",70,1771,"Lanarkshire, Scotland",null,1,59,"John","Hamilton","Male",45,1796,"Scotland"]
[9,60,"Ann","Leatch","Female",25,1816,"Lanarkshire, Scotland",null,2,59,"George","Knox","Male",30,1811,"Lanarkshire, Scotland"]
[15,62,"Margaret","McLachlen","Female",75,1766,"Scotland",null,3,59,"William","Ingles","Male",35,1806,"Lanarkshire, Scotland"]
[16,62,"Jane","McLaghlen","Female",40,1801,"Scotland",null,4,59,"Alexander","Grieve","Male",40,1801,"Scotland"]
[17,62,"Catherine","McLaghlen","Female",25,1816,"Lanarkshire, Scotland",null,5,59,"James","Buchanan","Male",35,1806,"Lanarkshire, Scotland"]
[24,64,"Ellen","Dalgliesh","Female",25,1816,"Scotland",null,6,59,"James","Davie","Male",35,1806,"Scotland"]
[26,64,"Mary","Allan","Female",9,1832,"Scotland",null,10,60,"John","Leatch","Male",25,1816,"Lanarkshire, Scotland"]
[29,65,"Mary","Marlay","Female",40,1801,"Ireland",null,11,60,"John","McGregor","Male",3,1838,"Lanarkshire, Scotland"]
[30,65,"Ann","Marlay","Female",14,1827,"Lanarkshire, Scotland",null,13,61,"William","White","Male",60,1781,"Lanarkshire, Scotland","Night watch"]
[31,65,"Bridget","Marlay","Female",12,1829,"Lanarkshire, Scotland",null,19,63,"James","Spright","Male",20,1821,"Lanarkshire, Scotland"]
[32,65,"Mary","Marlay","Female",11,1830,"Lanarkshire, Scotland",null,20,63,"Colven","Woods","Male",30,1811,"Ireland"]
[33,65,"Terressy","Marlay","Female",8,1833,"Lanarkshire, Scotland",null,23,64,"John","Dalgliesh","Male",25,1816,"Scotland"]
[34,65,"Bridget","McAvoy","Female",28,1813,"Ireland",null,25,64,"Thomas","Dalgliesh","Male",0,1841,"Lanarkshire, Scotland"]
[35,65,"Sarah","McCallay","Female",20,1821,"Lanarkshire, Scotland",null,37,66,"Michael","Dollan","Male",35,1806,"Ireland"]
[38,66,"Sarah","Dollan","Female",35,1806,"Ireland",null,41,66,"Henry","Grieve","Male",30,1811,"Lanarkshire, Scotland"]
[39,66,"Mary","Dollan","Female",5,1836,"Ireland",null,43,66,"Patrick","McGowan","Male",40,1801,"Ireland"]
[40,66,"Sarah","Dollan","Female",1,1840,"Lanarkshire, Scotland",null,45,66,"Patrick","McGowan","Male",15,1826,"Lanarkshire, Scotland"]
[42,66,"Isabella","Grieve","Female",20,1821,"Lanarkshire, Scotland",null,53,67,"Patrick","Hanna","Male",45,1796,"Ireland"]
[44,66,"Mary","McGowan","Female",40,1801,"Ireland",null,57,67,"William","Doherty","Male",35,1806,"Ireland"]
[46,66,"Mary","McGowan","Female",5,1836,"Lanarkshire, Scotland",null,58,67,"Thomas","White","Male",50,1791,"Scotland"]
[47,66,"Widow","McDead","Female",75,1766,"Ireland",null,59,67,"Archibald","Thomson","Male",35,1806,"Scotland"]
[48,66,"Mary","Alexander","Female",20,1821,"Lanarkshire, Scotland",null,60,67,"Archibald","Thomson","Male",10,1831,"Scotland"]
[49,66,"Catherine","Dick","Female",40,1801,"Lanarkshire, Scotland",null,61,67,"James","Hilly","Male",30,1811,"Scotland"]
[50,66,"Jane","Dick","Female",5,1836,"Lanarkshire, Scotland",null,63,67,"James","Hilly","Male",3,1838,"Scotland"]
[51,66,"Mary","Dick","Female",1,1840,"Lanarkshire, Scotland",null,64,67,"John","Green","Male",20,1821,"Ireland"]
[54,67,"-","Hanna","Female",45,1796,"Ireland",null,65,67,"John","Knox","Male",15,1826,"Scotland"]
[55,67,"Mary","Hanna","Female",10,1831,"Scotland",null,67,68,"Robert","Gillies","Male",45,1796,"Ireland"]
[56,67,"Catherine","Boyle","Female",40,1801,"Lanarkshire, Scotland",null,69,68,"Archibald","Gillies","Male",20,1821,"Lanarkshire, Scotland"]
[62,67,"-","Hilly","Female",25,1816,"Ireland",null,71,68,"Thomas","Paterson","Male",20,1821,"Lanarkshire, Scotland"]
[68,68,"Sarah","Gillies","Female",50,1791,"England",null,74,69,"James","Dowie","Male",40,1801,"Scotland"]
[70,68,"Margaret","Gillies","Female",15,1826,"Lanarkshire, Scotland",null,76,69,"Thomas","Short","Male",55,1786,"Ireland"]
[73,69,"Emellea","Dillan","Female",55,1786,"Ireland",null,78,69,"James","McGowan","Male",25,1816,"Scotland"]
[75,69,"Janet","Dowie","Female",45,1796,"Scotland",null,79,69,"Thomas","McGowan","Male",1,1840,"Lanarkshire, Scotland"]
[77,69,"Elizabeth","Short","Female",50,1791,"Ireland",null,81,69,"William","McKean","Male",45,1796,"Ireland"]
[80,69,"Elizabeth","McGowan","Female",20,1821,"Ireland",null,83,69,"Hamilton","Hay","Male",10,1831,"Lanarkshire, Scotland"]
[82,69,"Janet","Stewart","Female",10,1831,"Scotland",null,87,70,"Hugh","Bagnell","Male",25,1816,"Lanarkshire, Scotland"]
[84,69,"Barbara","Ross","Female",20,1821,"Scotland",null,89,70,"George","Bagnell","Male",5,1836,"Lanarkshire, Scotland"]
[85,69,"Agnes","McKean","Female",10,1831,"Scotland",null,90,70,"John","O'Bryan","Male",10,1831,"Lanarkshire, Scotland"]
[88,70,"Mary","Bagnell","Female",40,1801,"-",null,91,70,"Philip","O'Bryan","Male",10,1831,"Ireland"]
[92,70,"Penelopy","O'Bryan","Female",10,1831,"Lanarkshire, Scotland",null,94,70,"John","Orr","Male",25,1816,"Ireland"]
[93,70,"Mary","O'Bryan","Female",5,1836,"Lanarkshire, Scotland",null,96,70,"James","Orr","Male",4,1837,"Ireland"]
[95,70,"Margaret","Orr","Female",25,1816,"Ireland",null,97,70,"Rob","Orr","Male",2,1839,"Ireland"]
[99,70,"Cathern","Horn","Female",50,1791,"Ireland",null,98,70,"Torrance","Horn","Male",60,1781,"Ireland"]
[109,71,"Jane","Murry","Female",30,1811,"Scotland",null,101,71,"John","Dodds","Male",40,1801,"Lanarkshire, Scotland"]
[110,71,"Agnes","Dalglish","Female",50,1791,"-",null,102,71,"Alexander","Crooks","Male",20,1821,"Scotland"]
[112,72,"Sarah","Dalrumple","Female",35,1806,"Ireland",null,103,71,"William","Stewart","Male",15,1826,"Scotland"]
[115,73,"Margaret","Paterson","Female",35,1806,"Scotland",null,104,71,"William","Anderson","Male",20,1821,"Scotland"]
[116,73,"Jenat","Paterson","Female",10,1831,"Lanarkshire, Scotland",null,105,71,"William","Moffer","Male",20,1821,"Lanarkshire, Scotland"]
[117,73,"Margaret","Paterson","Female",7,1834,"Lanarkshire, Scotland",null,106,71,"Alexander","Fraser","Male",15,1826,"Scotland"]
[121,74,"Margaret","McGillion","Female",25,1816,"Ireland",null,107,71,"Angus","Fraser","Male",15,1826,"Scotland"]
[125,75,"Janet","Anderson","Female",20,1821,"Lanarkshire, Scotland",null,108,71,"John","Oswald","Male",20,1821,"Scotland"]
[126,75,"Mary","Anderson","Female",1,1840,"Lanarkshire, Scotland",null,114,73,"Hugh","Paterson","Male",35,1806,"Scotland"]
[130,76,"Mary","Campbell","Female",20,1821,"Scotland",null,118,73,"George","Paterson","Male",4,1837,"Lanarkshire, Scotland"]
[132,76,"Margaret","Wallace","Female",25,1816,"Scotland",null,120,74,"Thomas","McHail","Male",30,1811,"Ireland"]
[135,76,"Martha","McNab","Female",20,1821,"Scotland",null,122,74,"Thomas","McHail","Male",0,1841,"Lanarkshire, Scotland"]
[138,77,"Martha","McCarn","Female",30,1811,"Ireland",null,124,75,"David","Anderson","Male",25,1816,"Scotland"]
[139,77,"Biddy","McCarn","Female",15,1826,"Ireland",null,127,75,"John","Henderson","Male",18,1823,"Lanarkshire, Scotland"]
[140,77,"Margaret","McCarn","Female",10,1831,"Ireland",null,129,76,"Collin","Campbell","Male",30,1811,"Scotland"]
[142,77,"Catherine","McCarn","Female",5,1836,"Lanarkshire, Scotland",null,131,76,"John","Walker","Male",30,1811,"Scotland"]
[147,78,"Elizabeth","Sherkey","Female",40,1801,"Ireland",null,133,76,"Robert","Wallace","Male",6,1835,"Scotland"]
[148,78,"Mary","Sherkey","Female",20,1821,"Ireland",null,134,76,"Collin","Wallace","Male",0,1841,"Scotland"]
[149,78,"Catherine","Sherkey","Female",13,1828,"Ireland",null,137,77,"Patrick","McCarn","Male",30,1811,"Ireland"]
[152,78,"Lowise","Sherkey","Female",9,1832,"Ireland",null,141,77,"Patrick","McCarn","Male",5,1836,"Lanarkshire, Scotland"]
[153,78,"Michael","Sherkey","Female",6,1835,"Ireland",null,143,77,"John","McCarn","Male",2,1839,"Lanarkshire, Scotland"]
[154,78,"Rebecca","Maden","Female",55,1786,"Ireland",null,145,78,"Peter","Docherty","Male",20,1821,"Ireland"]
[155,78,"Rebecca","Maden","Female",15,1826,"Ireland",null,146,78,"Daniel","Sherkey","Male",45,1796,"Ireland"]
[157,78,"Ellen","Hanna","Female",30,1811,"Ireland",null,150,78,"James","Sherkey","Male",15,1826,"Ireland"]
[158,78,"Catherine","Kelly","Female",40,1801,"Ireland",null,151,78,"Hugh","Sherkey","Male",11,1830,"Ireland"]
[161,78,"Mary","Frirsen","Female",20,1821,"Ireland",null,156,78,"Patrick","Maden","Male",14,1827,"Ireland"]
[165,79,"Agnes","Dobbie","Female",45,1796,"Scotland",null,159,78,"John","Cunningham","Male",20,1821,"Ireland"]
[174,80,"Catherine","McFarlane","Female",30,1811,"Scotland",null,160,78,"Samuel","Cunningham","Male",15,1826,"Ireland"]
[175,80,"Catherine","McFarlane","Female",1,1840,"Lanarkshire, Scotland",null,162,78,"Thomas","Cunningham","Male",1,1840,"Lanarkshire, Scotland"]
[177,81,"Jane","McGill","Female",40,1801,"Lanarkshire, Scotland",null,164,79,"Alexander","Dobbie","Male",35,1806,"Scotland"]
[178,81,"Jane","McGill","Female",15,1826,"Lanarkshire, Scotland",null,166,79,"William","Dobbie","Male",15,1826,"Lanarkshire, Scotland"]
[187,82,"Christian","Martain","Female",31,1810,"Scotland",null,167,79,"David","Dobbie","Male",13,1828,"Lanarkshire, Scotland"]
[188,82,"Jessie","Morter","Female",1,1840,"Scotland",null,168,79,"Alexander","Dobbie","Male",11,1830,"Lanarkshire, Scotland"]
[189,82,"Margaret","Macinnis","Female",1,1840,"Scotland",null,169,79,"James","Dobbie","Male",9,1832,"Lanarkshire, Scotland"]
[192,83,"Martha","Chalmers","Female",35,1806,"Scotland",null,170,79,"Andrew","Dobbie","Male",7,1834,"Lanarkshire, Scotland"]
[194,83,"Ann","Chalmers","Female",5,1836,"Lanarkshire, Scotland",null,171,79,"John","Algie","Male",20,1821,"Scotland"]
[197,84,"Jane","Shordan","Female",20,1821,"Ireland",null,173,80,"John","McFarlane","Male",25,1816,"Scotland"]
[199,84,"Barbara","Murry","Female",30,1811,"Ireland",null,179,81,"James","McGill","Male",15,1826,"Lanarkshire, Scotland"]
[200,84,"Ellen","McDonald","Female",25,1816,"Scotland",null,180,81,"Hugh","McGill","Male",13,1828,"Lanarkshire, Scotland"]
[203,85,"Helen","O'Hara","Female",60,1781,"Ireland",null,181,81,"William","McGill","Male",10,1831,"Lanarkshire, Scotland"]
[204,85,"Helen","O'Hara","Female",15,1826,"Lanarkshire, Scotland",null,182,81,"George","McGill","Male",7,1834,"Lanarkshire, Scotland"]
[205,85,"Ann","O'Hara","Female",14,1827,"Lanarkshire, Scotland",null,184,82,"Alexander","Martain","Male",35,1806,"Scotland"]
[209,86,"Sarah","Mairs","Female",51,1790,"Ireland",null,185,82,"Farquhar","Martain","Male",20,1821,"Scotland"]
[211,86,"Sarah","Mairs","Female",18,1823,"Lanarkshire, Scotland",null,186,82,"Donald","Martain","Male",4,1837,"Scotland"]
[212,86,"Margaret","Mairs","Female",15,1826,"Lanarkshire, Scotland",null,191,83,"Crawford","Chalmers","Male",40,1801,"Scotland"]
[213,86,"Letitia","Mairs","Female",10,1831,"Lanarkshire, Scotland",null,193,83,"David","Chalmers","Male",10,1831,"Lanarkshire, Scotland"]
[219,87,"Mary","Brigs","Female",35,1806,"Ireland",null,196,84,"Peter","Shordan","Male",40,1801,"Ireland"]
[220,87,"Margaret","Brigs","Female",10,1831,"Ireland",null,198,84,"James","Murry","Male",30,1811,"Ireland"]
[222,87,"Mary","Brigs","Female",7,1834,"Ireland",null,201,84,"John","McDonald","Male",2,1839,"Scotland"]
[223,87,"Catherine","Brigs","Female",5,1836,"Ireland",null,206,85,"Felix","O'Hara","Male",13,1828,"Lanarkshire, Scotland"]
[225,87,"Mary","McDonald","Female",20,1821,"Scotland",null,208,86,"Robert","Mairs","Male",50,1791,"Ireland"]
[229,88,"Susan","Kennedy","Female",25,1816,"Ireland",null,210,86,"David","Mairs","Male",26,1815,"Lanarkshire, Scotland"]
[230,88,"Ann","Kennedy","Female",20,1821,"Ireland",null,214,86,"James","Mairs","Male",6,1835,"Lanarkshire, Scotland"]
[231,88,"Bridget","Shiels","Female",80,1761,"Ireland",null,215,86,"Robert","Mairs","Male",4,1837,"Lanarkshire, Scotland"]
[234,89,"Agnes","Feren","Female",40,1801,"Ireland",null,216,86,"Peter","Mairs","Male",2,1839,"Lanarkshire, Scotland"]
[239,56,"Sophia","Dougald","Female",27,1814,"Ireland"," 5 MUIRHEAD STREET",218,87,"James","Brigs","Male",35,1806,"Ireland"]
[243,57,"Ann","McThaen","Female",20,1821,"Ireland"," 5 MUIRHEAD STREET",221,87,"John","Brigs","Male",12,1829,"Ireland"]
[247,58,"Mary","Goodwin","Female",60,1781,"Ireland"," 5 MUIRHEAD STREET",224,87,"James","Brigs","Male",3,1838,"Ireland"]
[248,58,"Mary","Goodwin","Female",17,1824,"Scotland"," 5 MUIRHEAD STREET",227,88,"Alexander","Cammeron","Male",30,1811,"Scotland"]
[249,58,"Sarah","Goodwin","Female",13,1828,"Scotland"," 5 MUIRHEAD STREET",228,88,"Dennis","Thompson","Male",31,1810,"Ireland"]
[253,59,"Margaret","McNeel","Female",25,1816,"Scotland"," 5 MUIRHEAD STREET",232,88,"Hugh","McAllister","Male",13,1828,"Lanarkshire, Scotland"]
[254,59,"Jennet","McNeel","Female",5,1836,"Scotland"," 5 MUIRHEAD STREET",235,89,"Charles","McMul","Male",14,1827,"Lanarkshire, Scotland","Mc Neil actually"]
[259,60,"Manrien","Manson","Female",24,1817,"Lanarkshire, Scotland"," 5 MUIRHEAD STREET",236,89,"John","McMul","Male",4,1837,"Lanarkshire, Scotland","Mc Neil actually"]
[260,60,"Agness","Manson","Female",4,1837,"Lanarkshire, Scotland"," 5 MUIRHEAD STREET",238,56,"Walter","Dougald","Male",30,1811,"Lanarkshire, Scotland"," 5 MUIRHEAD STREET"]
[262,60,"Jean","Simpson","Female",20,1821,"-"," 5 MUIRHEAD STREET",240,56,"David","Dougald","Male",65,1776,"Scotland"," 5 MUIRHEAD STREET"]
[265,61,"Margaret","Carter","Female",30,1811,"Lanarkshire, Scotland"," 5 MUIRHEAD STREET",242,57,"Terrence","McThaen","Male",25,1816,"Ireland"," 5 MUIRHEAD STREET"]
[267,61,"Isabell","Carter","Female",9,1832,"Lanarkshire, Scotland"," 5 MUIRHEAD STREET",244,57,"James","McThaen","Male",0,1841,"Lanarkshire, Scotland"," 5 MUIRHEAD STREET"]
[270,62,"Isabella","Sumpson","Female",30,1811,"Lanarkshire, Scotland"," 5 MUIRHEAD STREET",246,58,"Michael","Goodwin","Male",40,1801,"Ireland"," 5 MUIRHEAD STREET"]
[273,63,"Mary","Scouler","Female",22,1819,"Scotland"," 5 MUIRHEAD STREET",250,58,"Francis","Mulqueen","Male",50,1791,"Ireland"," 5 MUIRHEAD STREET"]
[276,64,"Marrion","Spencer","Female",30,1811,"England"," 5 MUIRHEAD STREET",252,59,"John","McNeel","Male",25,1816,"Scotland"," 5 MUIRHEAD STREET"]
[280,65,"Agness","Henry","Female",29,1812,"Ireland"," 5 MUIRHEAD STREET",255,59,"Alexander","McNeel","Male",1,1840,"Lanarkshire, Scotland"," 5 MUIRHEAD STREET"]
[283,65,"Elizabeth","Henry","Female",5,1836,"Lanarkshire, Scotland"," 5 MUIRHEAD STREET",256,59,"Nk","-","Male",0,1841,"Lanarkshire, Scotland"," 5 MUIRHEAD STREET"]
[285,66,"Isabella","Freil","Female",45,1796,"Ireland"," 5 MUIRHEAD STREET",258,60,"John","Manson","Male",24,1817,"Lanarkshire, Scotland"," 5 MUIRHEAD STREET"]
[286,66,"Susey","Freil","Female",25,1816,"Ireland"," 5 MUIRHEAD STREET",261,60,"Robert","Manson","Male",2,1839,"Lanarkshire, Scotland"," 5 MUIRHEAD STREET"]
[287,66,"Bridget","Freil","Female",20,1821,"Ireland"," 5 MUIRHEAD STREET",264,61,"Andrew","Carter","Male",34,1807,"Scotland"," 5 MUIRHEAD STREET"]
[288,66,"Rosanah","Freil","Female",18,1823,"Lanarkshire, Scotland"," 5 MUIRHEAD STREET",266,61,"Andrew","Carter","Male","-","-","Lanarkshire, Scotland"," 5 MUIRHEAD STREET"]
[289,66,"Isabella","Freil","Female",15,1826,"Lanarkshire, Scotland"," 5 MUIRHEAD STREET",269,62,"John","Sumpson","Male",34,1807,"Lanarkshire, Scotland"," 5 MUIRHEAD STREET"]
[292,67,"Catherine","Turnbull","Female",28,1813,"Scotland"," 5 MUIRHEAD STREET",272,63,"Robert","Scouler","Male",25,1816,"Lanarkshire, Scotland"," 5 MUIRHEAD STREET"]
[294,67,"Elizabeth","Turnbull","Female",1,1840,"Scotland"," 5 MUIRHEAD STREET",275,64,"John","Spencer","Male",30,1811,"England"," 5 MUIRHEAD STREET"]
[297,68,"Elizabeth","Anderson","Female",40,1801,"Lanarkshire, Scotland"," 5 MUIRHEAD STREET",277,64,"Thomas","Spencer","Male",6,1835,"England"," 5 MUIRHEAD STREET"]
[300,68,"Racheal","Muir","Female",7,1834,"Lanarkshire, Scotland"," 5 MUIRHEAD STREET",279,65,"Mathew","Henry","Male",28,1813,"Lanarkshire, Scotland"," 5 MUIRHEAD STREET"]
[301,68,"Margaret","Rankin","Female",30,1811,"Lanarkshire, Scotland"," 5 MUIRHEAD STREET",281,65,"George","Henry","Male",9,1832,"Lanarkshire, Scotland"," 5 MUIRHEAD STREET"]
[304,69,"Jean","Gardner","Female",30,1811,"Scotland"," 5 MUIRHEAD STREET",282,65,"Samuel","Henry","Male",7,1834,"Lanarkshire, Scotland"," 5 MUIRHEAD STREET"]
[305,69,"Christina","Gardner","Female",1,1840,"Lanarkshire, Scotland"," 5 MUIRHEAD STREET",291,67,"Robert","Turnbull","Male",34,1807,"Scotland"," 5 MUIRHEAD STREET"]
[308,70,"Janet","Dorrache","Female",30,1811,"Lanarkshire, Scotland"," 5 MUIRHEAD STREET",293,67,"Robert","Turnbull","Male",12,1829,"Scotland"," 5 MUIRHEAD STREET"]
[314,71,"Isabella","Brodie","Female",38,1803,"Lanarkshire, Scotland"," 5 MUIRHEAD STREET",296,68,"James","Anderson","Male",40,1801,"Scotland"," 5 MUIRHEAD STREET"]
[315,71,"Margaret","Brodie","Female",4,1837,"Lanarkshire, Scotland"," 5 MUIRHEAD STREET",298,68,"William","Anderson","Male",15,1826,"Lanarkshire, Scotland"," 5 MUIRHEAD STREET"]
[316,71,"Christinia","Brodie","Female",0,1841,"Lanarkshire, Scotland"," 5 MUIRHEAD STREET",299,68,"James","Muir","Male",13,1828,"Lanarkshire, Scotland"," 5 MUIRHEAD STREET"]
[317,71,"Mary","Stewart","Female",40,1801,"Scotland"," 5 MUIRHEAD STREET",303,69,"Henry","Gardner","Male",29,1812,"Scotland"," 5 MUIRHEAD STREET"]
[320,72,"Jean","Johnston","Female",15,1826,"Lanarkshire, Scotland"," 5 MUIRHEAD STREET",307,70,"Charles","Dorrache","Male",37,1804,"Lanarkshire, Scotland"," 5 MUIRHEAD STREET"]
[321,72,"Margaret","Taylor","Female",20,1821,"Lanarkshire, Scotland"," 5 MUIRHEAD STREET",309,70,"Charles","Dorrache","Male",15,1826,"Lanarkshire, Scotland"," 5 MUIRHEAD STREET"]
[322,72,"Margaret","Naught","Female",1,1840,"Lanarkshire, Scotland"," 5 MUIRHEAD STREET",310,70,"David","Dorrache","Male",12,1829,"Lanarkshire, Scotland"," 5 MUIRHEAD STREET"]
[325,73,"Christiana","King Sr","Female",30,1811,"Lanarkshire, Scotland"," 5 MUIRHEAD STREET",311,70,"Neil","Dorrache","Male",3,1838,"Lanarkshire, Scotland"," 5 MUIRHEAD STREET"]
[326,73,"Mary","Smith","Female",8,1833,"Lanarkshire, Scotland"," 5 MUIRHEAD STREET",313,71,"Robert","Brodie","Male",56,1785,"Lanarkshire, Scotland"," 5 MUIRHEAD STREET"]
[329,74,"Agness","Durrah","Female",62,1779,"Lanarkshire, Scotland"," 5 MUIRHEAD STREET",319,72,"Robert","Johnston","Male",20,1821,"Lanarkshire, Scotland"," 5 MUIRHEAD STREET"]
[332,75,"Helen","Steven","Female",45,1796,"Scotland"," 5 MUIRHEAD STREET",324,73,"Mathew","King","Male",30,1811,"Lanarkshire, Scotland"," 5 MUIRHEAD STREET"]
[339,76,"Christiana","Campble","Female",25,1816,"Scotland"," 5 MUIRHEAD STREET",328,74,"Charles","Durrah","Male",82,1759,"Ireland"," 5 MUIRHEAD STREET"]
[340,76,"Catherine","Campble","Female",5,1836,"Scotland"," 5 MUIRHEAD STREET",331,75,"Robert","Steven","Male",49,1792,"Scotland"," 5 MUIRHEAD STREET"]
[342,76,"Jennet","Campble","Female",0,1841,"Lanarkshire, Scotland"," 5 MUIRHEAD STREET",333,75,"Thomas","Steven","Male",17,1824,"Lanarkshire, Scotland"," 5 MUIRHEAD STREET"]
[344,76,"Mary","McDonald","Female",18,1823,"Scotland"," 5 MUIRHEAD STREET",334,75,"Robert","Steven","Male",13,1828,"Lanarkshire, Scotland"," 5 MUIRHEAD STREET"]
[348,77,"Elezibeth","Mitchell","Female",34,1807,"Scotland"," 5 MUIRHEAD STREET",335,75,"John","Steven","Male",9,1832,"Lanarkshire, Scotland"," 5 MUIRHEAD STREET"]
[350,77,"Elezibeth","Mitchell","Female",9,1832,"Lanarkshire, Scotland"," 5 MUIRHEAD STREET",336,75,"James","Steven","Male",7,1834,"Lanarkshire, Scotland"," 5 MUIRHEAD STREET"]
[353,78,"Elizabeth","Cowan","Female",24,1817,"England"," 5 MUIRHEAD STREET",338,76,"Robert","Campble","Male",50,1791,"Scotland"," 5 MUIRHEAD STREET"]
[355,78,"Mary","Cowan","Female",70,1771,"Lanarkshire, Scotland"," 5 MUIRHEAD STREET",341,76,"James","Campble","Male",3,1838,"Scotland"," 5 MUIRHEAD STREET"]
[357,79,"Mary","Turner","Female",45,1796,"Scotland"," 5 MUIRHEAD STREET",343,76,"James","Clark","Male",23,1818,"England"," 5 MUIRHEAD STREET"]
[359,79,"Agnes","Turner","Female",20,1821,"-"," 5 MUIRHEAD STREET",345,76,"Peter","Brodie","Male",20,1821,"Ireland"," 5 MUIRHEAD STREET"]
[362,80,"Lillias","Brekenride","Female",73,1768,"Lanarkshire, Scotland"," 5 MUIRHEAD STREET",347,77,"Andrew","Mitchell","Male",35,1806,"Scotland"," 5 MUIRHEAD STREET"]
[365,81,"Margaret","Brekenride","Female",30,1811,"Scotland"," 5 MUIRHEAD STREET",349,77,"John","Mitchell","Male",10,1831,"Scotland"," 5 MUIRHEAD STREET"]
[367,81,"Agness","Lawrie","Female",20,1821,"Lanarkshire, Scotland"," 5 MUIRHEAD STREET",352,78,"Gilbert","Cowan","Male",27,1814,"Lanarkshire, Scotland"," 5 MUIRHEAD STREET"]
[369,81,"Helen","Miller","Female",25,1816,"Lanarkshire, Scotland"," 5 MUIRHEAD STREET",354,78,"James","Cowan","Male",0,1841,"Lanarkshire, Scotland"," 5 MUIRHEAD STREET"]
[372,82,"Isabella","Roberton","Female",45,1796,"Scotland"," 5 MUIRHEAD STREET",358,79,"Alexander","Turner","Male",25,1816,"Scotland"," 5 MUIRHEAD STREET"]
[373,82,"Jean","Roberton","Female",20,1821,"Scotland"," 5 MUIRHEAD STREET",361,80,"William","Brekenride","Male",74,1767,"Lanarkshire, Scotland"," 5 MUIRHEAD STREET"]
[374,82,"Isabella","Roberton","Female",15,1826,"Scotland"," 5 MUIRHEAD STREET",364,81,"William","Brekenride","Male",30,1811,"Lanarkshire, Scotland"," 5 MUIRHEAD STREET"]
[376,82,"Mary","Roberton","Female",9,1832,"Lanarkshire, Scotland"," 5 MUIRHEAD STREET",366,81,"James","Lawrie","Male",20,1821,"Lanarkshire, Scotland"," 5 MUIRHEAD STREET"]
[378,82,"Helen","Roberton","Female",13,1828,"-"," 5 MUIRHEAD STREET",368,81,"Alexander","Lawrie","Male",0,1841,"Lanarkshire, Scotland"," 5 MUIRHEAD STREET"]
[382,82,"Jennet","Coupeer","Female",28,1813,"Scotland"," 5 MUIRHEAD STREET",371,82,"James","Roberton","Male",45,1796,"Scotland"," 5 MUIRHEAD STREET"]
[383,82,"Jennet","Coupeer","Female",3,1838,"Lanarkshire, Scotland"," 5 MUIRHEAD STREET",375,82,"Johnston","Roberton","Male",13,1828,"Scotland"," 5 MUIRHEAD STREET"]
[385,83,"Catherine","McLachlan","Female",46,1795,"Scotland"," 5 MUIRHEAD STREET",377,82,"James","Roberton","Male",5,1836,"Lanarkshire, Scotland"," 5 MUIRHEAD STREET"]
[390,84,"Agness","Bruce","Female",24,1817,"Scotland"," 5 MUIRHEAD STREET",379,82,"John","Chisholm","Male",20,1821,"England"," 5 MUIRHEAD STREET"]
[397,85,"Elizebith","Eddie","Female",60,1781,"Scotland"," 5 MUIRHEAD STREET",380,82,"John","Ensing","Male",58,1783,"Scotland"," 5 MUIRHEAD STREET"]
[402,86,"Jean","McAustin","Female",30,1811,"Lanarkshire, Scotland"," 5 MUIRHEAD STREET",381,82,"James","Coupeer","Male",31,1810,"Lanarkshire, Scotland"," 5 MUIRHEAD STREET"]
[404,86,"Mary","McAustin","Female",5,1836,"Lanarkshire, Scotland"," 5 MUIRHEAD STREET",386,83,"Andrew","McLachlan","Male",21,1820,"Lanarkshire, Scotland"," 5 MUIRHEAD STREET"]
[405,86,"Margaret","McAustin","Female",3,1838,"Lanarkshire, Scotland"," 5 MUIRHEAD STREET",388,84,"Andrew","Bruce","Male",56,1785,"Scotland"," 5 MUIRHEAD STREET"]
[406,86,"Mary","Campbell","Female",45,1796,"Scotland"," 5 MUIRHEAD STREET",389,84,"William","Bruce","Male",33,1808,"Scotland"," 5 MUIRHEAD STREET"]
[408,55,"Jennet","McIlneher","Female",38,1803,"Scotland","7 MUIRHEAD STREET",391,84,"Charles","Bruce","Male",22,1819,"Scotland"," 5 MUIRHEAD STREET"]
[410,55,"Margaret","McIlneher","Female",13,1828,"Lanarkshire, Scotland","7 MUIRHEAD STREET",392,84,"James","Bruce","Male",20,1821,"Scotland"," 5 MUIRHEAD STREET"]
[411,55,"Jennet","McIlneher","Female",8,1833,"Lanarkshire, Scotland","7 MUIRHEAD STREET",393,84,"Peter","Bruce","Male",16,1825,"Scotland"," 5 MUIRHEAD STREET"]
[412,55,"Mary","McIlneher","Female",6,1835,"Lanarkshire, Scotland","7 MUIRHEAD STREET",394,84,"Henry","Bruce","Male",14,1827,"Scotland"," 5 MUIRHEAD STREET"]
[416,54,"Martha","Parcel","Female",30,1811,"Scotland","9 MUIRHEAD STREET",396,85,"Andrew","Eddie","Male",60,1781,"Lanarkshire, Scotland"," 5 MUIRHEAD STREET"]
[417,54,"Martha","Parcel","Female",19,1822,"Lanarkshire, Scotland","9 MUIRHEAD STREET",398,85,"John","Eddie","Male",25,1816,"Lanarkshire, Scotland"," 5 MUIRHEAD STREET"]
[418,54,"Marian","Parcel","Female",7,1834,"Lanarkshire, Scotland","9 MUIRHEAD STREET",399,85,"James","Eddie","Male",15,1826,"Lanarkshire, Scotland"," 5 MUIRHEAD STREET"]
[419,54,"Euphemia","Parcel","Female",3,1838,"Lanarkshire, Scotland","9 MUIRHEAD STREET",401,86,"Archibald","McAustin","Male",35,1806,"Scotland"," 5 MUIRHEAD STREET"]
[420,54,"Jean","Parcel","Female",0,1841,"Lanarkshire, Scotland","9 MUIRHEAD STREET",403,86,"Archibald","McAustin","Male",9,1832,"Lanarkshire, Scotland"," 5 MUIRHEAD STREET"]
[421,54,"Jean","Anderson","Female",20,1821,"-","9 MUIRHEAD STREET",409,55,"James","McIlneher","Male",15,1826,"Lanarkshire, Scotland","7 MUIRHEAD STREET"]
[424,97,"Jennet","Coats","Female",20,1821,"Lanarkshire, Scotland","13 MUIRHEAD STREET",413,55,"William","McIlneher","Male",4,1837,"Lanarkshire, Scotland","7 MUIRHEAD STREET"]
[425,97,"Mary","Muir","Female",20,1821,"Lanarkshire, Scotland","13 MUIRHEAD STREET",415,54,"James","Parcel","Male",26,1815,"Lanarkshire, Scotland","9 MUIRHEAD STREET"]
[428,44,"Margaret","Stalker","Female",35,1806,"Scotland","19 MUIRHEAD STREET",423,97,"James","Coats","Male",35,1806,"Lanarkshire, Scotland","13 MUIRHEAD STREET"]
[429,44,"Isabela","Stalker","Female",12,1829,"Lanarkshire, Scotland","19 MUIRHEAD STREET",427,44,"Finlay","Stalker","Male",40,1801,"Scotland","19 MUIRHEAD STREET"]
[438,46,"Ann","Laird","Female",4,1837,"Lanarkshire, Scotland","19 MUIRHEAD STREET",430,44,"John","Stalker","Male",3,1838,"Lanarkshire, Scotland","19 MUIRHEAD STREET"]
[440,46,"Janet","Laird","Female",65,1776,"Scotland","19 MUIRHEAD STREET",431,44,"Tinlay","Stalker","Male",0,1841,"Lanarkshire, Scotland","19 MUIRHEAD STREET"]
[442,47,"Mary","Cameron","Female",50,1791,"Lanarkshire, Scotland","19 MUIRHEAD STREET",433,45,"John","Ramsay","Male",54,1787,"Scotland","19 MUIRHEAD STREET"]
[443,47,"Margaret","Cameron","Female",20,1821,"Lanarkshire, Scotland","19 MUIRHEAD STREET",434,45,"Thomas","Jaffray","Male",6,1835,"Lanarkshire, Scotland","19 MUIRHEAD STREET"]
[445,48,"Jean","Cameron","Female",19,1822,"Lanarkshire, Scotland","19 MUIRHEAD STREET",436,46,"Walter","Laird","Male",30,1811,"Scotland","19 MUIRHEAD STREET"]
[446,48,"Marian","Barclay","Female",20,1821,"Lanarkshire, Scotland","19 MUIRHEAD STREET",437,46,"John","Laird","Male",6,1835,"Lanarkshire, Scotland","19 MUIRHEAD STREET"]
[447,48,"Margaret","Barclay","Female",18,1823,"-","19 MUIRHEAD STREET",439,46,"Joseph","Laird","Male",3,1838,"Lanarkshire, Scotland","19 MUIRHEAD STREET"]
[451,49,"Elizabeth","Henderson","Female",25,1816,"Scotland","19 MUIRHEAD STREET",448,48,"M Wm","Barclay","Male",14,1827,"Scotland","19 MUIRHEAD STREET"]
[454,50,"Agness","Agnew","Female",12,1829,"Lanarkshire, Scotland","19 MUIRHEAD STREET",450,49,"David","Henderson","Male",30,1811,"Scotland","19 MUIRHEAD STREET"]
[456,50,"Mary","Muir","Female",36,1805,"Ireland","19 MUIRHEAD STREET",453,50,"James","Henderson","Male",0,1841,"Lanarkshire, Scotland","19 MUIRHEAD STREET"]
[457,50,"Jean","Muir","Female",5,1836,"Ireland","19 MUIRHEAD STREET",455,50,"Hendry","Muir","Male",31,1810,"Ireland","19 MUIRHEAD STREET"]
[460,51,"Ann","Finlater","Female",50,1791,"Lanarkshire, Scotland","19 MUIRHEAD STREET",459,51,"James","Finlater","Male",50,1791,"Lanarkshire, Scotland","19 MUIRHEAD STREET"]
[465,52,"Mary","Little","Female",11,1830,"Lanarkshire, Scotland","19 MUIRHEAD STREET",462,52,"James","Little","Male",46,1795,"England","19 MUIRHEAD STREET"]
[469,53,"Elizabeth","Muir","Female",25,1816,"England","19 MUIRHEAD STREET",463,52,"James","Little","Male",17,1824,"Lanarkshire, Scotland","19 MUIRHEAD STREET"]
[476,53,"Isabella","Scott","Female",5,1836,"Lanarkshire, Scotland","19 MUIRHEAD STREET",464,52,"Robert","Little","Male",13,1828,"Lanarkshire, Scotland","19 MUIRHEAD STREET"]
[477,53,"Jean","Scott","Female",4,1837,"Lanarkshire, Scotland","19 MUIRHEAD STREET",467,53,"Alexander","Little","Male",7,1834,"Lanarkshire, Scotland","19 MUIRHEAD STREET"]
[480,39,"Isabella","McIntyre","Female",25,1816,"Lanarkshire, Scotland","21 MUIRHEAD STREET",468,53,"John","Muir","Male",25,1816,"Ireland","19 MUIRHEAD STREET"]
[481,39,"Isabella","McIntyre","Female",5,1836,"Lanarkshire, Scotland","21 MUIRHEAD STREET",470,53,"John","Muir","Male",1,1840,"Lanarkshire, Scotland","19 MUIRHEAD STREET"]
[483,39,"Christiane","McIntyre","Female",1,1840,"Lanarkshire, Scotland","21 MUIRHEAD STREET",471,53,"Robert","Muir","Male",46,1795,"Ireland","19 MUIRHEAD STREET"]
[484,39,"Jean","Shaw","Female",40,1801,"Lanarkshire, Scotland","21 MUIRHEAD STREET",472,53,"Allan","Scott","Male",35,1806,"Lanarkshire, Scotland","19 MUIRHEAD STREET"]
[487,39,"Jean","Shaw","Female",10,1831,"Lanarkshire, Scotland","21 MUIRHEAD STREET",473,53,"William","Scott","Male",15,1826,"Lanarkshire, Scotland","19 MUIRHEAD STREET"]
[490,40,"Jean","Henderson","Female",30,1811,"Scotland","21 MUIRHEAD STREET",474,53,"Archabilad","Scott","Male",14,1827,"Lanarkshire, Scotland","19 MUIRHEAD STREET"]
[492,40,"Jennet","Henderson","Female",5,1836,"Lanarkshire, Scotland","21 MUIRHEAD STREET",475,53,"Allan","Scott","Male",10,1831,"Lanarkshire, Scotland","19 MUIRHEAD STREET"]
[498,41,"Susan","McGregor","Female",40,1801,"Lanarkshire, Scotland","21 MUIRHEAD STREET",479,39,"James","McIntyre","Male",30,1811,"Lanarkshire, Scotland","21 MUIRHEAD STREET"]
[499,41,"Janet","McGregor","Female",45,1796,"Lanarkshire, Scotland","21 MUIRHEAD STREET",482,39,"James","McIntyre","Male",3,1838,"Lanarkshire, Scotland","21 MUIRHEAD STREET"]
[502,42,"Ellison","McNaught","Female",65,1776,"Scotland","21 MUIRHEAD STREET",485,39,"Neil","Shaw","Male",15,1826,"Lanarkshire, Scotland","21 MUIRHEAD STREET"]
[504,42,"Jonas","Wilson","Female",50,1791,"England","21 MUIRHEAD STREET",486,39,"James","Shaw","Male",14,1827,"Lanarkshire, Scotland","21 MUIRHEAD STREET"]
[507,43,"Helen","Stevenson","Female",30,1811,"Lanarkshire, Scotland","21 MUIRHEAD STREET",489,40,"George","Henderson","Male",35,1806,"Scotland","21 MUIRHEAD STREET"]
[510,26,"Sally","Kerr","Female",25,1816,"Ireland","25 MUIRHEAD STREET",491,40,"George","Henderson","Male",9,1832,"Lanarkshire, Scotland","21 MUIRHEAD STREET"]
[511,26,"Mary","Kerr","Female",7,1834,"Lanarkshire, Scotland","25 MUIRHEAD STREET",493,40,"Alex","Chinies","Male",25,1816,"Scotland","21 MUIRHEAD STREET"]
[513,26,"Agness","Mardy","Female",30,1811,"Lanarkshire, Scotland","25 MUIRHEAD STREET",494,40,"James","Leviston","Male",28,1813,"Scotland","21 MUIRHEAD STREET"]
[514,26,"Jennet","Adams","Female",50,1791,"Ireland","25 MUIRHEAD STREET",495,40,"John","Wright","Male",19,1822,"Scotland","21 MUIRHEAD STREET"]
[517,27,"Helen","Carmicheal","Female",40,1801,"Lanarkshire, Scotland","25 MUIRHEAD STREET",497,41,"Daniel","McGregor","Male",56,1785,"Lanarkshire, Scotland","21 MUIRHEAD STREET"]
[518,27,"Agness","Carmicheal","Female",15,1826,"Lanarkshire, Scotland","25 MUIRHEAD STREET",501,42,"Peter","McNaught","Male",61,1780,"Scotland","21 MUIRHEAD STREET"]
[519,27,"Margaret","Carmicheal","Female",13,1828,"Lanarkshire, Scotland","25 MUIRHEAD STREET",503,42,"Archibald","Wilson","Male",35,1806,"-","21 MUIRHEAD STREET"]
[522,28,"Ann","Crossan","Female",38,1803,"Ireland","25 MUIRHEAD STREET",506,43,"William","Stevenson","Male",36,1805,"Lanarkshire, Scotland","21 MUIRHEAD STREET"]
[524,28,"Catherine","Crossan","Female",10,1831,"Lanarkshire, Scotland","25 MUIRHEAD STREET",509,26,"Charles","Kerr","Male",25,1816,"Ireland","25 MUIRHEAD STREET"]
[525,28,"Agness","Crossan","Female",4,1837,"Lanarkshire, Scotland","25 MUIRHEAD STREET",512,26,"Charles","Kerr","Male",2,1839,"Lanarkshire, Scotland","25 MUIRHEAD STREET"]
[527,28,"Ann","Harison","Female",55,1786,"Ireland","25 MUIRHEAD STREET",516,27,"John","Carmicheal","Male",40,1801,"Lanarkshire, Scotland","25 MUIRHEAD STREET"]
[532,29,"Nancy","Sumers","Female",40,1801,"Ireland","25 MUIRHEAD STREET",521,28,"Peter","Crossan","Male",34,1807,"Ireland","25 MUIRHEAD STREET"]
[534,29,"Mary","Crossan","Female",15,1826,"Lanarkshire, Scotland","25 MUIRHEAD STREET",523,28,"Peter","Crossan","Male",16,1825,"Lanarkshire, Scotland","25 MUIRHEAD STREET"]
[536,29,"Mary","Docherty","Female",20,1821,"Ireland","25 MUIRHEAD STREET",526,28,"Daniel","Crossan","Male",1,1840,"Lanarkshire, Scotland","25 MUIRHEAD STREET"]
[537,29,"Nancy","Docherty","Female",15,1826,"Ireland","25 MUIRHEAD STREET",528,28,"Thomas","Higgins","Male",60,1781,"Ireland","25 MUIRHEAD STREET"]
[538,29,"Mary","Docherty","Female",18,1823,"Ireland","25 MUIRHEAD STREET",529,28,"Pat","Backs","Male",15,1826,"Ireland","25 MUIRHEAD STREET"]
[540,30,"Margaret","Gowie","Female",29,1812,"Scotland","25 MUIRHEAD STREET",531,29,"John","Sumers","Male",30,1811,"Ireland","25 MUIRHEAD STREET"]
[541,30,"Ann","Gowie","Female",13,1828,"Scotland","25 MUIRHEAD STREET",533,29,"Bryce","Sumers","Male",20,1821,"Ireland","25 MUIRHEAD STREET"]
[543,30,"Jean","Ingles","Female",25,1816,"Scotland","25 MUIRHEAD STREET",535,29,"John","Crossan","Male",13,1828,"Lanarkshire, Scotland","25 MUIRHEAD STREET"]
[546,31,"Margaret","McIlneher","Female",20,1821,"Lanarkshire, Scotland","25 MUIRHEAD STREET",542,30,"David","Gowie","Male",5,1836,"Lanarkshire, Scotland","25 MUIRHEAD STREET"]
[548,31,"Ann","Nichal","Female",50,1791,"Ireland","25 MUIRHEAD STREET",545,31,"William","McIlneher","Male",25,1816,"Lanarkshire, Scotland","25 MUIRHEAD STREET"]
[553,32,"Rosanah","McCaul","Female",30,1811,"Ireland","25 MUIRHEAD STREET",547,31,"Robert","Nichal","Male",50,1791,"Ireland","25 MUIRHEAD STREET"]
[558,32,"Helen","McNaulty","Female",50,1791,"Ireland","25 MUIRHEAD STREET",549,31,"Robert","Nichal","Male",10,1831,"Ireland","25 MUIRHEAD STREET"]
[559,32,"Mary","McCaul","Female",20,1821,"Ireland","25 MUIRHEAD STREET",550,31,"Thomas","Cully","Male",22,1819,"Ireland","25 MUIRHEAD STREET"]
[562,33,"Janet","Scott","Female",20,1821,"Lanarkshire, Scotland","25 MUIRHEAD STREET",552,32,"Thomas","McCaul","Male",30,1811,"Ireland","25 MUIRHEAD STREET"]
[563,33,"Margaret","Sutherland","Female",35,1806,"Lanarkshire, Scotland","25 MUIRHEAD STREET",554,32,"Timothy","McCaul","Male",11,1830,"Ireland","25 MUIRHEAD STREET"]
[564,33,"Barbra","Sutherland","Female",15,1826,"Lanarkshire, Scotland","25 MUIRHEAD STREET",555,32,"John","Melen","Male",25,1816,"Ireland","25 MUIRHEAD STREET"]
[566,33,"Agness","Sutherland","Female",3,1838,"Lanarkshire, Scotland","25 MUIRHEAD STREET",556,32,"Archibald","Melen","Male",18,1823,"Ireland","25 MUIRHEAD STREET"]
[569,34,"Elizabeth","Dufin","Female",35,1806,"Ireland","25 MUIRHEAD STREET",557,32,"James","Kettley","Male",20,1821,"Ireland","25 MUIRHEAD STREET"]
[570,34,"Margaret","Dufin","Female",12,1829,"Scotland","25 MUIRHEAD STREET",561,33,"William","Scott","Male",25,1816,"Scotland","25 MUIRHEAD STREET"]
[572,34,"Elizabeth","Duffin","Female",6,1835,"Scotland","25 MUIRHEAD STREET",565,33,"James","Sutherland","Male",13,1828,"Lanarkshire, Scotland","25 MUIRHEAD STREET"]
[573,34,"Mary","Duffin","Female",3,1838,"Lanarkshire, Scotland","25 MUIRHEAD STREET",568,34,"Charles","Dufin","Male",38,1803,"Ireland","25 MUIRHEAD STREET"]
[575,35,"Catherine","Sloan","Female",40,1801,"England","25 MUIRHEAD STREET",571,34,"James","Duffin","Male",8,1833,"Scotland","25 MUIRHEAD STREET"]
[577,35,"Ann","Sloan","Female",10,1831,"Lanarkshire, Scotland","25 MUIRHEAD STREET",576,35,"John","Sloan","Male",15,1826,"Lanarkshire, Scotland","25 MUIRHEAD STREET"]
[581,36,"Jennet","Fitspatrick","Female",25,1816,"Lanarkshire, Scotland","25 MUIRHEAD STREET",578,35,"William","Sloan","Male",5,1836,"Lanarkshire, Scotland","25 MUIRHEAD STREET"]
[582,36,"Mary","Fitspatrick","Female",8,1833,"Lanarkshire, Scotland","25 MUIRHEAD STREET",580,36,"John","Fitspatrick","Male",30,1811,"Lanarkshire, Scotland","25 MUIRHEAD STREET"]
[583,36,"Agness","Fitspatrick","Female",0,1841,"Lanarkshire, Scotland","25 MUIRHEAD STREET",587,37,"Robert","Smith","Male",10,1831,"Scotland","25 MUIRHEAD STREET"]
[585,37,"Jennet","Smith","Female",40,1801,"Scotland","25 MUIRHEAD STREET",590,38,"James","Miller","Male",25,1816,"Lanarkshire, Scotland","25 MUIRHEAD STREET"]
[586,37,"Elezibeth","Smith","Female",18,1823,"Lanarkshire, Scotland","25 MUIRHEAD STREET",594,38,"David","Miller","Male",0,1841,"Lanarkshire, Scotland","25 MUIRHEAD STREET"]
[588,37,"Lillias","Smith","Female",13,1828,"Lanarkshire, Scotland","25 MUIRHEAD STREET",596,25,"John","Buchanan","Male",35,1806,"Lanarkshire, Scotland","37MUIRHEAD STREET"]
[591,38,"Elizabeth","Miller","Female",25,1816,"Lanarkshire, Scotland","25 MUIRHEAD STREET",598,25,"David","Buchanan","Male",10,1831,"Lanarkshire, Scotland","37MUIRHEAD STREET"]
[592,38,"Elizabeth","Miller","Female",6,1835,"Lanarkshire, Scotland","25 MUIRHEAD STREET",599,25,"John","Buchanan","Male",8,1833,"Lanarkshire, Scotland","37MUIRHEAD STREET"]
[593,38,"Cathern","Miller","Female",4,1837,"Scotland","25 MUIRHEAD STREET",601,25,"Lawrence","Buchanan","Male",4,1837,"Lanarkshire, Scotland","37MUIRHEAD STREET"]
[597,25,"Margaret","Buchanan","Female",25,1816,"Lanarkshire, Scotland","37MUIRHEAD STREET",602,25,"William","Buchanan","Male",2,1839,"Lanarkshire, Scotland","37MUIRHEAD STREET"]
[600,25,"Jean","Buchanan","Female",6,1835,"Lanarkshire, Scotland","37MUIRHEAD STREET",603,25,"George","Buchanan","Male",0,1841,"Lanarkshire, Scotland","37MUIRHEAD STREET"]
{"$rows_empty":254}
[7,null,"First name(s)","Last name","Sex","Age","Birth year","Birth place"]
[12,null,"First name(s)","Last name","Sex","Age","Birth year","Birth place"]
[14,null,"First name(s)","Last name","Sex","Age","Birth year","Birth place"]
[18,null,"First name(s)","Last name","Sex","Age","Birth year","Birth place"]
[21,null,"First name(s)","Last name","Sex","Age","Birth year","Birth place"]
[22,64,"First name(s)","Last name","Sex","Age","Birth year","Birth place"]
[27,null,"First name(s)","Last name","Sex","Age","Birth year","Birth place"]
[28,65,"First name(s)","Last name","Sex","Age","Birth year","Birth place"]
[36,null,"First name(s)","Last name","Sex","Age","Birth year","Birth place"]
[52,null,"First name(s)","Last name","Sex","Age","Birth year","Birth place"]
[66,null,"First name(s)","Last name","Sex","Age","Birth year","Birth place"]
[72,null,"First name(s)","Last name","Sex","Age","Birth year","Birth place"]
[86,null,"First name(s)","Last name","Sex","Age","Birth year","Birth place"]
[100,null,"First name(s)","Last name","Sex","Age","Birth year","Birth place"]
[111,null,"First name(s)","Last name","Sex","Age","Birth year","Birth place"]
[113,null,"First name(s)","Last name","Sex","Age","Birth year","Birth place"]
[119,null,"First name(s)","Last name","Sex","Age","Birth year","Birth place"]
[123,null,"First name(s)","Last name","Sex","Age","Birth year","Birth place"]
[128,null,"First name(s)","Last name","Sex","Age","Birth year","Birth place"]
[136,null,"First name(s)","Last name","Sex","Age","Birth year","Birth place"]
[144,null,"First name(s)","Last name","Sex","Age","Birth year","Birth place"]
[163,null,"First name(s)","Last name","Sex","Age","Birth year","Birth place"]
[172,null,"First name(s)","Last name","Sex","Age","Birth year","Birth place"]
[176,null,"First name(s)","Last name","Sex","Age","Birth year","Birth place"]
[183,null,"First name(s)","Last name","Sex","Age","Birth year","Birth place"]
[190,null,"First name(s)","Last name","Sex","Age","Birth year","Birth place"]
[195,null,"First name(s)","Last name","Sex","Age","Birth year","Birth place"]
[202,null,"First name(s)","Last name","Sex","Age","Birth year","Birth place"]
[207,null,"First name(s)","Last name","Sex","Age","Birth year","Birth place"]
[217,null,"First name(s)","Last name","Sex","Age","Birth year","Birth place"]
[226,null,"First name(s)","Last name","Sex","Age","Birth year","Birth place"]
[233,null,"First name(s)","Last name","Sex","Age","Birth year","Birth place"]
[237,null,"First name(s)","Last name","Sex","Age","Birth year","Birth place"]
[241,null,"First name(s)","Last name","Sex","Age","Birth year","Birth place"]
[245,null,"First name(s)","Last name","Sex","Age","Birth year","Birth place"]
[251,null,"First name(s)","Last name","Sex","Age","Birth year","Birth place"]
[257,null,"First name(s)","Last name","Sex","Age","Birth year","Birth place"]
[263,null,"First name(s)","Last name","Sex","Age","Birth year","Birth place"]
[268,null,"First name(s)","Last name","Sex","Age","Birth year","Birth place"]
[271,null,"First name(s)","Last name","Sex","Age","Birth year","Birth place"]
[274,null,"First name(s)","Last name","Sex","Age","Birth year","Birth place"]
[278,null,"First name(s)","Last name","Sex","Age","Birth year","Birth place"]
[284,null,"First name(s)","Last name","Sex","Age","Birth year","Birth place"]
[290,null,"First name(s)","Last name","Sex","Age","Birth year","Birth place"]
[295,null,"First name(s)","Last name","Sex","Age","Birth year","Birth place"]
[302,null,"First name(s)","Last name","Sex","Age","Birth year","Birth place"]
[306,null,"First name(s)","Last name","Sex","Age","Birth year","Birth place"]
[312,null,"First name(s)","Last name","Sex","Age","Birth year","Birth place"]
[318,null,"First name(s)","Last name","Sex","Age","Birth year","Birth place"]
[323,null,"First name(s)","Last name","Sex","Age","Birth year","Birth place"]
[327,null,"First name(s)","Last name","Sex","Age","Birth year","Birth place"]
[330,null,"First name(s)","Last name","Sex","Age","Birth year","Birth place"]
[337,null,"First name(s)","Last name","Sex","Age","Birth year","Birth place"]
[346,null,"First name(s)","Last name","Sex","Age","Birth year","Birth place"]
[351,null,"First name(s)","Last name","Sex","Age","Birth year","Birth place"]
[356,null,"First name(s)","Last name","Sex","Age","Birth year","Birth place"]
[360,null,"First name(s)","Last name","Sex","Age","Birth year","Birth place"]
[363,null,"First name(s)","Last name","Sex","Age","Birth year","Birth place"]
[370,null,"First name(s)","Last name","Sex","Age","Birth year","Birth place"]
[384,null,"First name(s)","Last name","Sex","Age","Birth year","Birth place"]
[387,null,"First name(s)","Last name","Sex","Age","Birth year","Birth place"]
[395,null,"First name(s)","Last name","Sex","Age","Birth year","Birth place"]
[400,null,"First name(s)","Last name","Sex","Age","Birth year","Birth place"]
[407,null,"First name(s)","Last name","Sex","Age","Birth year","Birth place"]
[414,null,"First name(s)","Last name","Sex","Age","Birth year","Birth place"]
[422,null,"First name(s)","Last name","Sex","Age","Birth year","Birth place"]
[426,null,"First name(s)","Last name","Sex","Age","Birth year","Birth place"]
[432,null,"First name(s)","Last name","Sex","Age","Birth year","Birth place"]
[435,null,"First name(s)","Last name","Sex","Age","Birth year","Birth place"]
[441,null,"First name(s)","Last name","Sex","Age","Birth year","Birth place"]
[444,null,"First name(s)","Last name","Sex","Age","Birth year","Birth place"]
[449,null,"First name(s)","Last name","Sex","Age","Birth year","Birth place"]
[452,null,"First name(s)","Last name","Sex","Age","Birth year","Birth place"]
[458,null,"First name(s)","Last name","Sex","Age","Birth year","Birth place"]
[461,null,"First name(s)","Last name","Sex","Age","Birth year","Birth place"]
[466,null,"First name(s)","Last name","Sex","Age","Birth year","Birth place"]
[478,null,"First name(s)","Last name","Sex","Age","Birth year","Birth place"]
[488,null,"First name(s)","Last name","Sex","Age","Birth year","Birth place"]
[496,null,"First name(s)","Last name","Sex","Age","Birth year","Birth place"]
[500,null,"First name(s)","Last name","Sex","Age","Birth year","Birth place"]
[505,null,"First name(s)","Last name","Sex","Age","Birth year","Birth place"]
[508,null,"First name(s)","Last name","Sex","Age","Birth year","Birth place"]
[515,null,"First name(s)","Last name","Sex","Age","Birth year","Birth place"]
[520,null,"First name(s)","Last name","Sex","Age","Birth year","Birth place"]
[530,null,"First name(s)","Last name","Sex","Age","Birth year","Birth place"]
[539,null,"First name(s)","Last name","Sex","Age","Birth year","Birth place"]
[544,null,"First name(s)","Last name","Sex","Age","Birth year","Birth place"]
[551,null,"First name(s)","Last name","Sex","Age","Birth year","Birth place"]
[560,null,"First name(s)","Last name","Sex","Age","Birth year","Birth place"]
[567,null,"First name(s)","Last name","Sex","Age","Birth year","Birth place"]
[574,null,"First name(s)","Last name","Sex","Age","Birth year","Birth place"]
[579,null,"First name(s)","Last name","Sex","Age","Birth year","Birth place"]
[584,null,"First name(s)","Last name","Sex","Age","Birth year","Birth place"]
[589,null,"First name(s)","Last name","Sex","Age","Birth year","Birth place"]
[595,null,"First name(s)","Last name","Sex","Age","Birth year","Birth place"]